{"text_format":"1","workbook":"xlsx","n_sheets":13,"sheets":["Anleitung","Startseite","Brief1","Brief2","Brief3","Spezial1","Spezial2","Spezial3","TicketEtiketten","DatenBuchungen","PivotStatistik1","PivotStatistik2","DatenPlan"],"not_rendered":{"charts":0,"images":2,"macros":1,"external_links":0,"defined_names":36,"comments":4,"pivot_tables":2},"unopened":[],"bounds":{"document_bytes":16777216,"sheet_cells":100000,"rows_first":2000,"rows_last":500,"rows_between":2000,"halvings":0,"cell_chars":16384,"cell_head_chars":4096},"cells_cut":0,"cells_raw":0,"read":"whole","date_system":"1900"}

{"sheet":"Anleitung","index":0,"n_rows":77,"n_cols":7,"rows_kept":77,"cut":false,"hidden":false,"merged":[]}
[null,null,null,null,"Muster-Version ",null," August 2017"]
[null,null,null,null,"Copyright IT-Kiosk"]
[null,null,null,null,"www.it-kiosk.ch"]
[null,null,null,null,"Liliane Hofer"]
[]
[]
["Anleitung:"]
["Wichtig: beim Öffnen dieser Datei muss die Warnung \"Bearbeiten bzw. Makro-erlauben\" mit JA quittiert werden!"]
["Die von EVENtTOOL gelieferte Excel-Datei soll auf Ihrem PC gespeichert und geschlossen sein."]
["Drücken Sie auf der Startseite den Knopf [Datei suchen] und wählen Sie die Datei."]
["Drücken Sie auf der Startseite den Knopf [Importieren]:"]
["Die Datei wird geöffnet und die Buchungen oder Plan-Daten werden in die entsprechende"]
["Arbeitsblatt-Tabelle hineinkopiert (dort bereits vorhandene Zeilen werden zuerst gelöscht."]
["A) Buchungen werden im Arbeitsblatt DatenReservationen abgelegt,"]
["B) Die Ticket-Daten eines Planes gelangen ins Arbeitsblatt DatenPlan"]
["Sobald diese Import-Prozedur korrekt erfolgt ist, können die Funktionen Brief1, Brief2... etc."]
["gewählt werden."]
[]
["Herkunft der Daten (Input): "]
["Variante Option-A"]
["Sie möchten die Reservationen von EVENtTOOL verarbeiten (Briefe und/oder Tickets drucken)."]
["Dazu benötigen Sie eine aktuelle Reservationstabelle (Datei), die über die"]
["Veranstalterebene von EVENtTOOL bestellt und als Email-Anhang empfangen wird."]
["Variante Option-B"]
["Sie möchten mit den Plan-Daten (Kategorien, Sektoren, Platz-Nummern) leere Tickets drucken."]
["Dazu benötigen Sie eine aktuelle Plan-Tabelle (Datei), die über die"]
["Veranstalterebene von EVENtTOOL bestellt und als Email-Anhang empfangen wird."]
[]
["Wählen Sie die gewünschte Variante über die Optionen auf der Startseite:"]
["Sobald die Option gewählt wird, werden in den grauen Zellen die"]
["entsprechenden Parameter automatisch festgelegt! Die Daten sind damit automatisch in der"]
["korrekten Tabelle. Die Option wird beim Importieren überprüft und automatisch angepasst."]
["D.h. wenn Sie eine Tabelle mit Plätzen (statt Buchungen) importieren, wird die Option B) eingestellt. Andernfalls A)"]
[]
["Layout-Anpassungen (Output)"]
[]
["Alle Vorlagen (Briefe und Spezial) können an die eigenen Bedürfnisse angepasst werden. "]
["Texte können entfernt und hinzugefügt werden. Zellen, die durch das Programm (per Knopfdruck)"]
["gefüllt werden, sind i.A. geschützt und können nicht entfernt werden (insbesondere Formeln)."]
["Durch das Ausblenden von Zeilen, Spalten, das Verkleinern, Vergrössern der Zeilen-/Spaltengrössen,"]
["Druckbereich-Einstellungen, Formatierungen (Schriftgrösse, Farbe etc.) kann das Layout angepasst werden."]
["Sie können Texte auch unsichtbar machen durch Schreibfarbe=weiss."]
["Setzen Sie das eigene Logo im Excel-Menu [Einfügen/Grafik]."]
[]
[]
["Drucken der Briefe und Ticket-Seiten (A4)"]
[]
["Arbeiten Sie mit dem Excel-Menu Seitenlayout/Druckbereich und ggf. Datei/Druck/Skalierung"]
["Achten Sie im Menu Druck auf die angegebene Seitenzahl (für Briefe =1)"]
["Ziehen Sie Spalten und/oder Zeilen enger, damit alles (ohne Skalierung) Platz auf A4 hat."]
["Arbeiten Sie am Anfang mit [Echt drucken]=Nein. "]
[]
["Ticketdruck für unnummerierte Plätze und/oder ohne Preis"]
[]
["Bearbeiten Sie die Spalten der Datentabelle ",null,null,"DatenPlan","(Option B)"]
["Schreiben Sie in die Spalte16 [Platz] durchgehend \"unnumm.\" oder \"unnummeriert\" oder nach Wunsch"]
["Die Tickets enthalten dann diesen Text. Löschen Sie den Text \"Kat.\" auf allen Tickets oder setzen"]
["Sie die Schriftfarbe dort auf weiss."]
[]
["Blattschutz"]
[]
["Datenfelder (Formelbezüge) sind teilweise geschützt, reine Text-Felder sind jedoch nicht geschützt und"]
["können mutiert und auch gelöscht werden (falls nicht benötigt)"]
["Falls Datenfelder gelöscht werden sollen (z.B. Vorname/Name auf dem Ticket): "]
["Blattschutz ausschalten und die Änderung auf allen Tickets oder auf dem Brief vornehmen."]
[]
["Statistik mit Pivot-Tabellen"]
[]
["Beide Pivot-Tabellen werten automatisch nur die Zeilen der eingestellten Option-Tabelle aus!"]
["Normalerweise werden eher die Buchungen ausgewertet"]
["Achtung: die Pivot-Tabellen funktionieren automatisch und werden beim Öffnen des Arbeitsblattes aktualisiert."]
["Standard: Verkauf (Einnahmen) oder Anzahl Besucher nach Kategorien, Preis-Optionen und Sektoren."]
[]
["Weitere Möglichkeiten wären: Bereichsfilter nach PLZ etc."]
["Wählen Sie dazu mit rechter Maustaste (in beliebige Zelle der Tabelle) --> Feldliste anzeigen und ziehen Sie "]
["dort die Felder in andere Bereiche (Zeilen, Spalten, Bereichsfilter)"]
["Informieren Sie sich bei Interesse über die Möglichkeiten und Technik der PivotTable."]

{"sheet":"Startseite","index":1,"n_rows":23,"n_cols":23,"rows_kept":23,"cut":false,"hidden":false,"merged":[[3,3,5,5],[16,2,16,3]]}
["Event-Admin-Tool",null,null,null,null,null,null,null,null,null,null,"Version Jan. 2017\nCopyright it-Kiosk"]
[]
[">>Anleitung",null,"Parameter",null,null,null,"nur A)",null,null,"A) oder B)"]
[null,"Titel der Veranstaltung","Titel der Veranstaltung","Die Angaben werden in \ndie Briefe und Tickets übertragen (Zell-Bezug)"]
[null,"Datum/Zeit Veranstaltung","SO 29. Januar 2017, 17 Uhr",null,null,null,null,null,"für Rechnung",null,null,"max. 12 Tickets pro Blatt(*)"]
[null,"Ort","Ref. Kirchgemeindehaus XYZ"]
[null,"Echt drucken (Ja/Nein) ?","Nein",null,null,null,null,null,"für Rechnung",null,null,"max. 4 Tickets pro Blatt"]
[null,null,"A) Buchungen-Daten verarbeiten"]
[null,null,"DatenBuchungen",null,null,null,null,null,"für Brief",null,null,"Etiketten, aktuell eingestellt auf"]
[null,null,"TabelleRes",null,null,null,null,null,null,null,null,"HERMA Movables No.4347"]
[null,null,"[Res-Nr]"]
[null,null,null,null,null,null,"Für die Serienbrief-Adressierung",null,null,"Für Tickets können sowohl die Buchungen (Option A)"]
[null,null,null,null,null,null,"werden immer die Buchungen verwendet.",null,null,"als auch die Daten des Planes verwendet werden (B)."]
[null,null,null,null,null,null,"Sortierung ggf. dort anpassen",null,null,"Setzen Sie links die gewünschte Option."]
[null,null,{"$f":"\"2:\" & ROWS(INDIRECT(thisTab))+1","v":"2:148"},null,null,null,null,null,null,"(*) diese Anzahl kann eingestellt werden"]
[]
[null,null,"C:\\Users\\liliho\\Desktop\\event7984879488999240425.xls"]
[]
[]
[]
[null,"Seat-Id","(leer)","Datum","Titel","Ort","leer","leer","leer","leer","leer","leer","leer","leer","leer","Kategorie","Sektor","Platz","Preisoption","Währung","Preis","Status"]
[null,"Res-Nr","Datum-Zeit","Res-Datum","Anrede","Vorname","Name","Zusatz","Strasse","Plz","Ort","Tel","Email","Newsletter ***(Ja)","Bemerkungen","Kategorie","Sektor","Platz","Preisoption","Währung ","Preis","Status","Versandart"]
[null,0,1,2,3,4,5,6,7,8,9,10,11,12,13,14,15,16,17,18,19,20,21]

{"sheet":"Brief1","index":2,"n_rows":54,"n_cols":14,"rows_kept":54,"cut":false,"hidden":false,"merged":[]}
[null,null,null,null,null,null,null,null,null,null,null,"Logo einsetzen (EINFÜGEN/Grafik)"]
["(LOGO)"]
[]
[]
[]
[]
["Absender:"]
["Liliane Hofer",null,null,null,null,null,null,"A-Post Priority | Kammerchor ABC, 5436 Würenlos ",null,null,null,"Absender-Zeilen anpassen"]
["IT-Kiosk",null,null,null,null,null,null,{"$f":"\"\" & M9","v":"Frau"},null,null,null,"Adresse automatisch!","Frau"]
["5436 Würenlos",null,null,null,null,null,null,{"$f":"\"\" & M10","v":"Verena Bider Ammann"},null,null,null,null,"Verena Bider Ammann"]
["liliane.hofer@itkiosk.ch",null,null,null,null,null,null,"Wanderstrasse 9",null,null,null,null,"Wanderstrasse 9"]
[null,null,null,null,null,null,null,"4054 Basel",null,null,null,null,"4054 Basel"]
[null,null,null,null,null,null,null,""]
[null,null,null,null,null,null,null,""]
[null,null,null,null,null,null,null,null,null,null,null,null,"18.09.2016/13:16h"]
[null,null,null,null,null,null,null,null,null,null,null,null,"387067-Bid"]
["Ihre Billettbestellung ",null,null,{"$f":"\"\" & M16","v":"387067-Bid"},null,null,{"$f":"\"am \" & M15","v":"am 18.09.2016/13:16h"}]
[]
[{"$f":"\"\" & Startseite!C4","v":"Titel der Veranstaltung"},null,null,null,null,null,null,null,null,null,null,"Muster für reinen Text-Brief"]
[{"$f":"\"\" & Startseite!C5","v":"SO 29. Januar 2017, 17 Uhr"},null,null,null,null,null,null,null,null,null,null,"Mahnung etc."]
[{"$f":"\"\" & Startseite!C6","v":"Ref. Kirchgemeindehaus XYZ"},null,null,null,null,null,null,null,null,null,null,"Formatierungen anpassen"]
["Liebe/r Billettbesteller/in"]
["Wir danken Ihnen für Ihre Bestellung und wünschen Ihnen einen genussreichen Konzertbesuch. "]
["Wir liefern Ihnen die bestellten Billette:"]
[]
["Kat.","Sektor",null,"Platz",null,"Preisoption"]
[1,"Mittelschiff rechts, Reihe 8 ",null,"341",null,"Regulär",null,null,null,"CHF",30,27,null,"Beginn der Ticket-Zeilen"]
[1,"Mittelschiff rechts, Reihe 8 ",null,"342",null,"Regulär",null,null,null,"CHF",30,10,null,"max. Anzahl Zeilen"]
[]
[]
[]
[]
[]
[]
[]
[]
[]
[]
[]
[null,null,null,"Spesen, Postzustellung",null,null,null,null,null,"CHF",7]
["Total",null,null,null,null,null,null,null,null,"CHF",{"$f":"SUM(K23:K40)","v":67}]
[]
["Bitte bezahlen Sie den Rechnungsbetrag vor dem Konzert auf folgendes Konto:"]
["xxxxxxxxxxxxxxxxxxxxxxxxxxxxxxx"]
[]
["Sie erleichtern unserem Kassier die Arbeit und sparen uns Spesen, wenn Sie bei der Zahlung "]
["Ihre Bestell-Nummer (s.o.) angeben und den Betrag von Ihrem Bank- oder Postkonto überweisen, "]
["also NICHT bar am Postschalter einzahlen. "]
[]
["Herzlichen Dank und freundliche Grüsse"]
[]
["Kammerchor ABC"]
[]
["(Unterschrift)"]

{"sheet":"Brief2","index":3,"n_rows":56,"n_cols":16,"rows_kept":56,"cut":false,"hidden":false,"merged":[]}
[null,null,null,null,null,null,null,null,null,null,null,"Logo einsetzen (EINFÜGEN/Grafik)"]
["(LOGO)"]
["Absender"]
[]
[]
[]
[]
[null,null,null,null,null,"A-Post Priority | Kammerchor ABC, 5436 Würenlos ",null,null,null,null,null,"Absender-Zeile anpassen"]
[null,null,null,null,null,{"$f":"\"\" & M9","v":"Frau"},null,null,null,null,null,"Adresse automatisch!","Frau"]
[null,null,null,null,null,{"$f":"\"\" & M10","v":"Liliane Hofer"},null,null,null,null,null,null,"Liliane Hofer"]
[null,null,null,null,null,"xxxxxxxxxx",null,null,null,null,null,null,"xxxxxxxxxx"]
[null,null,null,null,null,"Buechzelglistr. 67",null,null,null,null,null,null,"Buechzelglistr. 67"]
[null,null,null,null,null,"5436 Würenlos",null,null,null,null,null,null,"5436 Würenlos"]
[]
[null,null,null,null,null,null,null,null,null,null,null,null,"12.11.2014/16:49h"]
[null,null,null,null,null,null,null,null,null,null,null,null,"90149-Hof"]
["Ihre Billettbestellung ",null,null,{"$f":"\"Nr. \" & M16","v":"Nr. 90149-Hof"},null,{"$f":"\"am \" & M15","v":"am 12.11.2014/16:49h"}]
[]
["Mahnung",null,null,null,null,null,null,null,null,null,null,"Muster für reinen Text-Brief"]
[{"$f":"Startseite!C4 & \", \" & Startseite!C5","v":"Titel der Veranstaltung, SO 29. Januar 2017, 17 Uhr"},null,null,null,null,null,null,null,null,null,null,"Mahnung etc."]
[{"$f":"\"\" & Startseite!C6","v":"Ref. Kirchgemeindehaus XYZ"},null,null,null,null,null,null,null,null,null,null,"Formatierungen anpassen"]
["Liebe/r Billettbesteller/in"]
["Leider wurde diese Rechnung bis dato noch nicht an uns vergütet. Wir danken für die umgehende",null,null,null,null,null,null,null,null,null,null,27,null,null,null,"Beginn der Ticket-Zeilen"]
["Erledigung und wünschen viel Genuss im Konzert.",null,null,null,null,null,null,null,null,null,null,7,null,null,null,"max. Anzahl Zeilen"]
[]
["Kat.","Sektor",null,"Platz",null,"Preisoption"]
[3,"Empore Reihe 1 ",null,"495",null,null,null,null,null,"CHF",30]
[3,"Empore Reihe 2 ",null,"502",null,null,null,null,null,"CHF",30]
[]
[]
[]
[]
[]
[null,null,null,null,null,"TOTAL",null,null,null,"CHF",{"$f":"SUM(K27:K33)","v":60}]
[]
[]
[]
[]
[]
["Ermässigte Billette für Personen ab 16 Jahren sind nur gültig mit Ausbildungsausweis.",null,null,null,null,null,null,null,null,null,null,"Texte anpassen"]
["Bestellte Billette können nicht zurückgenommen oder umgetauscht werden.",null,null,null,null,null,null,null,null,null,null,"oder leeren"]
["Bitte kontrollieren Sie die erhaltenen Billette und kontaktieren Sie uns sofort, wenn etwas nicht stimmt, "]
["………………."]
[]
["Bitte bezahlen Sie den Rechnungsbetrag vor dem Konzert auf folgendes Konto:"]
["………………………"]
[]
["Sie erleichtern unserem Kassier die Arbeit und sparen uns Spesen, wenn Sie bei der Zahlung "]
["Ihre Bestell-Nummer (s.o.) angeben und den Betrag von Ihrem Bank- oder Postkonto überweisen, "]
["also NICHT bar am Postschalter einzahlen. "]
[]
["Herzlichen Dank und freundliche Grüsse"]
[]
["Kammerchor ABC"]
[]
["(Unterschrift)"]

{"sheet":"Brief3","index":4,"n_rows":68,"n_cols":15,"rows_kept":68,"cut":false,"hidden":false,"merged":[]}
[null,null,null,null,null,null,null,null,null,null,null,"Logo einsetzen (EINFÜGEN/Grafik)"]
[]
[]
[]
[]
[]
[]
[null,null,null,null,null,null,null,"A-Post Priority - Kammerchor ABC, 5436 Würenlos ",null,null,null,"Absender-Zeile anpassen"]
[null,null,null,null,null,null,null,{"$f":"\"\"& M9","v":"Mme"},null,null,null,"Adresse automatisch!","Mme"]
[null,null,null,null,null,null,null,{"$f":"\"\"& M10","v":"Liliane de Luxe"},null,null,null,null,"Liliane de Luxe"]
[null,null,null,null,null,null,null,"Président",null,null,null,null,"Président"]
[null,null,null,null,null,null,null,"45, rue du concert",null,null,null,null,"45, rue du concert"]
[null,null,null,null,null,null,null,{"$f":"\"\" & M13","v":"1222 Lausanne"},null,null,null,null,"1222 Lausanne"]
[]
[null,null,null,null,null,null,null,null,null,null,null,null,"11.12.2014/23:18h"]
[null,null,null,null,null,null,null,null,null,null,null,null,"96016-de "]
["Ihre Billettbestellung ",null,null,{"$f":"\"Nr. \" & M16","v":"Nr. 96016-de "},null,null,null,{"$f":"\"am \" & M15","v":"am 11.12.2014/23:18h"}]
[]
[{"$f":"\"\" & Startseite!C4","v":"Titel der Veranstaltung"},null,null,null,null,null,null,null,null,null,null,"Muster für reinen Text-Brief"]
[{"$f":"\"\" & Startseite!C5","v":"SO 29. Januar 2017, 17 Uhr"},null,null,null,null,null,null,null,null,null,null,"Mahnung etc."]
[{"$f":"\"\" & Startseite!C6","v":"Ref. Kirchgemeindehaus XYZ"},null,null,null,null,null,null,null,null,null,null,"Formatierungen anpassen"]
["Liebe/r Billettbesteller/in"]
["Wir danken Ihnen für Ihre Bestellung und wünschen Ihnen einen genussreichen Konzertbesuch. "]
["Wir liefern Ihnen die bestellten Billette:"]
[]
["Brief/Mahnung etc."]
["xxxxxxxxxxxxxxxx"]
["xxxxxxxxxxxxxxxx"]
["xxxxxxxxxxxxxxxx"]
["xxxxxxxxxxxxxxxx"]
["xxxxxxxxxxxxxxxx"]
["xxxxxxxxxxxxxxxx"]
["xxxxxxxxxxxxxxxx"]
["xxxxxxxxxxxxxxxx"]
["xxxxxxxxxxxxxxxx"]
["xxxxxxxxxxxxxxxx"]
["xxxxxxxxxxxxxxxx"]
[]
["Herzlichen Dank und freundliche Grüsse"]
[]
["KammerchorABC"]
[]
["(Unterschrift)"]
[]
[]
[]
[]
[]
[]
[null,null,null,null,null,null,null,null,null,null,null,65,null,null,"Beginn der Ticket-Zeilen (ausserhalb Druckbereich!)"]
[null,null,null,null,null,null,null,null,null,null,null,100,null,null,"max. Anzahl Zeilen"]
[]
[]
[]
[]
[]
[]
[]
[]
[]
[]
[]
[]
[]
[3,"links, Reihe 1 ",null,"440",null,null,null,null,null,"CHF",30]
[3,"links, Reihe 1 ",null,"441",null,null,null,null,null,"CHF",30]
[1,"links, Reihe 2 ",null,"21",null,"Normal",null,null,null,"CHF",50]
[1,"links, Reihe 2 ",null,"22",null,"Normal",null,null,null,"CHF",50]

{"sheet":"Spezial1","index":5,"n_rows":97,"n_cols":19,"rows_kept":97,"cut":false,"hidden":false,"merged":[[33,0,33,8],[35,0,35,8],[34,0,34,8]]}
["Hier können  max. 12 kleinformatige Tickets gestaltet werden"]
["Anzahl pro Blatt?",null,12,"(Maximal 12)"]
[3,"Vorverkaufsstelle für NamexyzVorverkaufsstelle für",null,null,null,null,"links, Reihe 11 ",null,230,null,1,null,"regulär",null,"CHF",30,"11.12.2016/23:53h",null,"407928-Kun"]
[4,"Vorverkaufsstelle für NamexyzVorverkaufsstelle für",null,null,null,null,"links, Reihe 11 ",null,231,null,1,null,"regulär",null,"CHF",30,"11.12.2016/23:53h",null,"407928-Kun"]
[5,"Vorverkaufsstelle für NamexyzVorverkaufsstelle für",null,null,null,null,"links, Reihe 11 ",null,232,null,1,null,"regulär",null,"CHF",30,"11.12.2016/23:53h",null,"407928-Kun"]
[6]
[7]
[8]
[9]
[10]
[11]
[12]
[13]
[14]
[]
[]
[]
[]
[]
[]
[]
[]
[]
[]
[]
[]
[]
[]
[]
[]
[]
[]
[]
[{"$f":"\"\" & Startseite!C4","v":"Titel der Veranstaltung"}]
[{"$f":"\"\" & Startseite!C5","v":"SO 29. Januar 2017, 17 Uhr"},null,null,null,null,null,null,null,null,null,null,null,null,null,"falls leere Tickets gedruckt werden, Zeilen 47,57... je Ticket ausblenden"]
[{"$f":"\"\" & Startseite!C6","v":"Ref. Kirchgemeindehaus XYZ"},null,null,null,null,null,null,null,null,null,null,null,null,null,"oder mit Schriftfarbe=weiss unsichtbar"]
[]
[]
[null,null,null,null,null,{"$f":"A3","v":3},null,null,null,null,null,null,{"$f":"A4","v":4}]
[{"$f":"\"\" & $A$34","v":"Titel der Veranstaltung"},null,null,null,null,null,null,{"$f":"\"\" & $A$34","v":"Titel der Veranstaltung"}]
[{"$f":"\"\" & $A$35","v":"SO 29. Januar 2017, 17 Uhr"},null,null,null,null,null,null,{"$f":"\"\" & $A$35","v":"SO 29. Januar 2017, 17 Uhr"}]
[{"$f":"\"\" & $A$36","v":"Ref. Kirchgemeindehaus XYZ"},null,null,null,null,null,null,{"$f":"\"\" & $A$36","v":"Ref. Kirchgemeindehaus XYZ"}]
[{"$f":"\"\" & INDIRECT(\"B\" & F39)","v":"Vorverkaufsstelle für NamexyzVorverkaufsstelle für"},null,null,null,null,null,null,{"$f":"\"\" & INDIRECT(\"B\" & M39)","v":"Vorverkaufsstelle für NamexyzVorverkaufsstelle für"}]
[{"$f":"\"\" & INDIRECT(\"G\" & F39)","v":"links, Reihe 11 "},null,"Kat.",null,{"$f":"\"\" & INDIRECT(\"M\" & F39)","v":"regulär"},null,null,{"$f":"\"\" & INDIRECT(\"G\" & M39)","v":"links, Reihe 11 "},null,"Kat.",null,{"$f":"\"\" & INDIRECT(\"M\" & M39)","v":"regulär"}]
[{"$f":"\"\" & INDIRECT(\"i\" & F39)","v":"230"},null,{"$f":"\"\" & INDIRECT(\"K\" & F39)","v":"1"},null,{"$f":"\"\" & INDIRECT(\"O\" & F39)","v":"CHF"},{"$f":"INDIRECT(\"P\" & F39)","v":30},null,{"$f":"\"\" & INDIRECT(\"i\" & M39)","v":"231"},null,{"$f":"\"\" & INDIRECT(\"K\" & M39)","v":"1"},null,{"$f":"\"\" & INDIRECT(\"O\" & M39)","v":"CHF"},{"$f":"INDIRECT(\"P\" & M39)","v":30}]
[]
["Reservationsdatum und Nr",null,{"$f":"INDIRECT(\"Q\" & F39) & \"   \" & INDIRECT(\"S\" & F39)","v":"11.12.2016/23:53h   407928-Kun"},null,null,null,null,"Reservationsdatum und Nr",null,{"$f":"INDIRECT(\"Q\" & M39) & \"   \" & INDIRECT(\"S\" & M39)","v":"11.12.2016/23:53h   407928-Kun"}]
[]
[null,null,null,null,null,{"$f":"A5","v":5},null,null,null,null,null,null,{"$f":"A6","v":6}]
[{"$f":"\"\" & $A$34","v":"Titel der Veranstaltung"},null,null,null,null,null,null,{"$f":"\"\" & $A$34","v":"Titel der Veranstaltung"}]
[{"$f":"\"\" & $A$35","v":"SO 29. Januar 2017, 17 Uhr"},null,null,null,null,null,null,{"$f":"\"\" & $A$35","v":"SO 29. Januar 2017, 17 Uhr"}]
[{"$f":"\"\" & $A$36","v":"Ref. Kirchgemeindehaus XYZ"},null,null,null,null,null,null,{"$f":"\"\" & $A$36","v":"Ref. Kirchgemeindehaus XYZ"}]
[{"$f":"\"\" & INDIRECT(\"B\" & F49)","v":"Vorverkaufsstelle für NamexyzVorverkaufsstelle für"},null,null,null,null,null,null,{"$f":"\"\" & INDIRECT(\"B\" & M49)","v":""}]
[{"$f":"\"\" & INDIRECT(\"G\" & F49)","v":"links, Reihe 11 "},null,"Kat.",null,{"$f":"\"\" & INDIRECT(\"M\" & F49)","v":"regulär"},null,null,{"$f":"\"\" & INDIRECT(\"G\" & M49)","v":""},null,"Kat.",null,{"$f":"\"\" & INDIRECT(\"M\" & M49)","v":""}]
[{"$f":"\"\" & INDIRECT(\"i\" & F49)","v":"232"},null,{"$f":"\"\" & INDIRECT(\"K\" & F49)","v":"1"},null,{"$f":"\"\" & INDIRECT(\"O\" & F49)","v":"CHF"},{"$f":"INDIRECT(\"P\" & F49)","v":30},null,{"$f":"\"\" & INDIRECT(\"i\" & M49)","v":""},null,{"$f":"\"\" & INDIRECT(\"K\" & M49)","v":""},null,{"$f":"\"\" & INDIRECT(\"O\" & M49)","v":""},{"$f":"INDIRECT(\"P\" & M49)","v":0}]
[]
["Reservationsdatum und Nr",null,{"$f":"INDIRECT(\"Q\" & F49) & \"   \" & INDIRECT(\"S\" & F49)","v":"11.12.2016/23:53h   407928-Kun"},null,null,null,null,"Reservationsdatum und Nr",null,{"$f":"INDIRECT(\"Q\" & M49) & \"   \" & INDIRECT(\"S\" & M49)","v":"   "}]
[]
[null,null,null,null,null,{"$f":"A7","v":7},null,null,null,null,null,null,{"$f":"A8","v":8}]
[{"$f":"\"\" & $A$34","v":"Titel der Veranstaltung"},null,null,null,null,null,null,{"$f":"\"\" & $A$34","v":"Titel der Veranstaltung"}]
[{"$f":"\"\" & $A$35","v":"SO 29. Januar 2017, 17 Uhr"},null,null,null,null,null,null,{"$f":"\"\" & $A$35","v":"SO 29. Januar 2017, 17 Uhr"}]
[{"$f":"\"\" & $A$36","v":"Ref. Kirchgemeindehaus XYZ"},null,null,null,null,null,null,{"$f":"\"\" & $A$36","v":"Ref. Kirchgemeindehaus XYZ"}]
[{"$f":"\"\" & INDIRECT(\"B\" & F59)","v":""},null,null,null,null,null,null,{"$f":"\"\" & INDIRECT(\"B\" & M59)","v":""}]
[{"$f":"\"\" & INDIRECT(\"G\" & F59)","v":""},null,"Kat.",null,{"$f":"\"\" & INDIRECT(\"M\" & F59)","v":""},null,null,{"$f":"\"\" & INDIRECT(\"G\" & M59)","v":""},null,"Kat.",null,{"$f":"\"\" & INDIRECT(\"M\" & M59)","v":""}]
[{"$f":"\"\" & INDIRECT(\"i\" & F59)","v":""},null,{"$f":"\"\" & INDIRECT(\"K\" & F59)","v":""},null,{"$f":"\"\" & INDIRECT(\"O\" & F59)","v":""},{"$f":"INDIRECT(\"P\" & F59)","v":0},null,{"$f":"\"\" & INDIRECT(\"i\" & M59)","v":""},null,{"$f":"\"\" & INDIRECT(\"K\" & M59)","v":""},null,{"$f":"\"\" & INDIRECT(\"O\" & M59)","v":""},{"$f":"INDIRECT(\"P\" & M59)","v":0}]
[]
["Reservationsdatum und Nr",null,{"$f":"INDIRECT(\"Q\" & F59) & \"   \" & INDIRECT(\"S\" & F59)","v":"   "},null,null,null,null,"Reservationsdatum und Nr",null,{"$f":"INDIRECT(\"Q\" & M59) & \"   \" & INDIRECT(\"S\" & M59)","v":"   "}]
[]
[null,null,null,null,null,{"$f":"A9","v":9},null,null,null,null,null,null,{"$f":"A10","v":10}]
[{"$f":"\"\" & $A$34","v":"Titel der Veranstaltung"},null,null,null,null,null,null,{"$f":"\"\" & $A$34","v":"Titel der Veranstaltung"}]
[{"$f":"\"\" & $A$35","v":"SO 29. Januar 2017, 17 Uhr"},null,null,null,null,null,null,{"$f":"\"\" & $A$35","v":"SO 29. Januar 2017, 17 Uhr"}]
[{"$f":"\"\" & $A$36","v":"Ref. Kirchgemeindehaus XYZ"},null,null,null,null,null,null,{"$f":"\"\" & $A$36","v":"Ref. Kirchgemeindehaus XYZ"}]
[null,{"$f":"\"\" & INDIRECT(\"B\" & F69)","v":""},null,null,null,null,null,null,{"$f":"\"\" & INDIRECT(\"B\" & M69)","v":""}]
[{"$f":"\"\" & INDIRECT(\"G\" & F69)","v":""},null,"Kat.",null,{"$f":"\"\" & INDIRECT(\"M\" & F69)","v":""},null,null,{"$f":"\"\" & INDIRECT(\"G\" & M69)","v":""},null,"Kat.",null,{"$f":"\"\" & INDIRECT(\"M\" & M69)","v":""}]
[{"$f":"\"\" & INDIRECT(\"i\" & F69)","v":""},null,{"$f":"\"\" & INDIRECT(\"K\" & F69)","v":""},null,{"$f":"\"\" & INDIRECT(\"O\" & F69)","v":""},{"$f":"INDIRECT(\"P\" & F69)","v":0},null,{"$f":"\"\" & INDIRECT(\"i\" & M69)","v":""},null,{"$f":"\"\" & INDIRECT(\"K\" & M69)","v":""},null,{"$f":"\"\" & INDIRECT(\"O\" & M69)","v":""},{"$f":"INDIRECT(\"P\" & M69)","v":0}]
[]
["Reservationsdatum und Nr",null,{"$f":"INDIRECT(\"Q\" & F69) & \"   \" & INDIRECT(\"S\" & F69)","v":"   "},null,null,null,null,"Reservationsdatum und Nr",null,{"$f":"INDIRECT(\"Q\" & M69) & \"   \" & INDIRECT(\"S\" & M69)","v":"   "}]
[]
[null,null,null,null,null,{"$f":"A11","v":11},null,null,null,null,null,null,{"$f":"A12","v":12}]
[{"$f":"\"\" & $A$34","v":"Titel der Veranstaltung"},null,null,null,null,null,null,{"$f":"\"\" & $A$34","v":"Titel der Veranstaltung"}]
[{"$f":"\"\" & $A$35","v":"SO 29. Januar 2017, 17 Uhr"},null,null,null,null,null,null,{"$f":"\"\" & $A$35","v":"SO 29. Januar 2017, 17 Uhr"}]
[{"$f":"\"\" & $A$36","v":"Ref. Kirchgemeindehaus XYZ"},null,null,null,null,null,null,{"$f":"\"\" & $A$36","v":"Ref. Kirchgemeindehaus XYZ"}]
[null,{"$f":"\"\" & INDIRECT(\"B\" & F79)","v":""},null,null,null,null,null,null,{"$f":"\"\" & INDIRECT(\"B\" & M79)","v":""}]
[{"$f":"\"\" & INDIRECT(\"G\" & F79)","v":""},null,"Kat.",null,{"$f":"\"\" & INDIRECT(\"M\" & F79)","v":""},null,null,{"$f":"\"\" & INDIRECT(\"G\" & M79)","v":""},null,"Kat.",null,{"$f":"\"\" & INDIRECT(\"M\" & M79)","v":""}]
[{"$f":"\"\" & INDIRECT(\"i\" & F79)","v":""},null,{"$f":"\"\" & INDIRECT(\"K\" & F79)","v":""},null,{"$f":"\"\" & INDIRECT(\"O\" & F79)","v":""},{"$f":"INDIRECT(\"P\" & F79)","v":0},null,{"$f":"\"\" & INDIRECT(\"i\" & M79)","v":""},null,{"$f":"\"\" & INDIRECT(\"K\" & M79)","v":""},null,{"$f":"\"\" & INDIRECT(\"O\" & M79)","v":""},{"$f":"INDIRECT(\"P\" & M79)","v":0}]
[]
["Reservationsdatum und Nr",null,{"$f":"INDIRECT(\"Q\" & F79) & \"   \" & INDIRECT(\"S\" & F79)","v":"   "},null,null,null,null,"Reservationsdatum und Nr",null,{"$f":"INDIRECT(\"Q\" & M79) & \"   \" & INDIRECT(\"S\" & M79)","v":"   "}]
[]
[null,null,null,null,null,{"$f":"A13","v":13},null,null,null,null,null,null,{"$f":"A14","v":14}]
[{"$f":"\"\" & $A$34","v":"Titel der Veranstaltung"},null,null,null,null,null,null,{"$f":"\"\" & $A$34","v":"Titel der Veranstaltung"}]
[{"$f":"\"\" & $A$35","v":"SO 29. Januar 2017, 17 Uhr"},null,null,null,null,null,null,{"$f":"\"\" & $A$35","v":"SO 29. Januar 2017, 17 Uhr"}]
[{"$f":"\"\" & $A$36","v":"Ref. Kirchgemeindehaus XYZ"},null,null,null,null,null,null,{"$f":"\"\" & $A$36","v":"Ref. Kirchgemeindehaus XYZ"}]
[null,{"$f":"\"\" & INDIRECT(\"B\" & F89)","v":""},null,null,null,null,null,null,{"$f":"\"\" & INDIRECT(\"B\" & M89)","v":""}]
[{"$f":"\"\" & INDIRECT(\"G\" & F89)","v":""},null,"Kat.",null,{"$f":"\"\" & INDIRECT(\"M\" & F89)","v":""},null,null,{"$f":"\"\" & INDIRECT(\"G\" & M89)","v":""},null,"Kat.",null,{"$f":"\"\" & INDIRECT(\"M\" & M89)","v":""}]
[{"$f":"\"\" & INDIRECT(\"i\" & F89)","v":""},null,{"$f":"\"\" & INDIRECT(\"K\" & F89)","v":""},null,{"$f":"\"\" & INDIRECT(\"O\" & F89)","v":""},{"$f":"INDIRECT(\"P\" & F89)","v":0},null,{"$f":"\"\" & INDIRECT(\"i\" & M89)","v":""},null,{"$f":"\"\" & INDIRECT(\"K\" & M89)","v":""},null,{"$f":"\"\" & INDIRECT(\"O\" & M89)","v":""},{"$f":"INDIRECT(\"P\" & M89)","v":0}]
[]
["Reservationsdatum und Nr",null,{"$f":"INDIRECT(\"Q\" & F89) & \"   \" & INDIRECT(\"S\" & F89)","v":"   "},null,null,null,null,"Reservationsdatum und Nr",null,{"$f":"INDIRECT(\"Q\" & M89) & \"   \" & INDIRECT(\"S\" & M89)","v":"   "}]

{"sheet":"Spezial2","index":6,"n_rows":79,"n_cols":19,"rows_kept":79,"cut":false,"hidden":false,"merged":[[31,0,31,5],[32,0,32,5],[33,0,33,5]]}
["Hier können  grossformatige Tickets gestaltet werden"]
["Anzahl pro Blatt",null,4,"(Maximal 4)"]
[3,"Arlette NamexyzArlette",null,null,null,null,"rechts, Reihe 2 ",null,38,null,1,null,"regulär",null,"CHF",30,"14.01.2017/15:43h",null,"410317-Pig"]
[4,"Silvia NamexyzSilvia",null,null,null,null,"links, Reihe 3 ",null,49,null,1,null,"regulär",null,"CHF",30,"11.01.2017/13:59h",null,"410089-Hof"]
[5,"Silvia NamexyzSilvia",null,null,null,null,"links, Reihe 3 ",null,50,null,1,null,"regulär",null,"CHF",30,"11.01.2017/13:59h",null,"410089-Hof"]
[6,"Germaine NamexyzGermaine",null,null,null,null,"links, Reihe 3 ",null,51,null,1,null,"regulär",null,"CHF",30,"11.01.2017/07:44h",null,"410077-Cam"]
[7]
[8]
[9]
[10]
[11]
[12]
[13]
[14]
[15]
[16]
[17]
[18]
[19]
[20]
[21]
[22]
[23]
[24]
[25]
[26]
[27]
[28]
[]
[]
[]
[{"$f":"\"\" & Startseite!C4","v":"Titel der Veranstaltung"}]
[{"$f":"\"\" & Startseite!C5","v":"SO 29. Januar 2017, 17 Uhr"}]
[{"$f":"\"\" & Startseite!C6","v":"Ref. Kirchgemeindehaus XYZ"}]
[]
[]
[null,null,null,null,null,null,null,null,null,null,null,{"$f":"A3","v":3}]
[{"$f":"$A$32","v":"Titel der Veranstaltung"}]
[{"$f":"$A$33","v":"SO 29. Januar 2017, 17 Uhr"}]
[{"$f":"$A$34","v":"Ref. Kirchgemeindehaus XYZ"}]
[]
["Sektor/Platz-Nr",null,null,null,null,null,"Kat.",null,null,null,null,null,null,"falls \"leere\" Tickets gedruckt werden, werden z.B. Zeilen 45/46ff.."]
[{"$f":"INDIRECT(\"G\" & L37) & \"   \" & INDIRECT(\"I\"&L37)","v":"rechts, Reihe 2    38"},null,null,null,null,null,{"$f":"\"\" & INDIRECT(\"K\" & L37)","v":"1"},{"$f":"\"\" & INDIRECT(\"M\" & L37)","v":"regulär"},null,null,{"$f":"\"\" & INDIRECT(\"O\" & L37)","v":"CHF"},{"$f":"INDIRECT(\"P\" & L37)","v":30},null," je Ticket ausgeblendet oder mit Schriftfarbe=weiss unsichtbar gemacht."]
[]
["Karte für",{"$f":"\"\" & INDIRECT(\"B\" & L37)","v":"Arlette NamexyzArlette"},null,null,null,null,"Reservationsdatum",null,{"$f":"\"\" & INDIRECT(\"Q\" & L37)","v":"14.01.2017/15:43h"}]
[null,null,null,null,null,null,"Reservations-Nr.",null,{"$f":" \"\" & INDIRECT(\"S\" & L37)","v":"410317-Pig"}]
[]
[null,null,null,null,null,null,null,null,null,null,null,{"$f":"A4","v":4}]
[{"$f":"$A$32","v":"Titel der Veranstaltung"}]
[{"$f":"$A$33","v":"SO 29. Januar 2017, 17 Uhr"}]
[{"$f":"$A$34","v":"Ref. Kirchgemeindehaus XYZ"}]
[]
["Sektor/Platz-Nr",null,null,null,null,null,"Kat."]
[{"$f":"INDIRECT(\"G\" & L48) & \"   \" & INDIRECT(\"I\"&L48)","v":"links, Reihe 3    49"},null,null,null,null,null,{"$f":"\"\" & INDIRECT(\"K\" & L48)","v":"1"},{"$f":"\"\" & INDIRECT(\"M\" & L48)","v":"regulär"},null,null,{"$f":"\"\" & INDIRECT(\"O\" & L48)","v":"CHF"},{"$f":"INDIRECT(\"P\" & L48)","v":30}]
[]
["Karte für",{"$f":"\"\" & INDIRECT(\"B\" & L48)","v":"Silvia NamexyzSilvia"},null,null,null,null,"Reservationsdatum",null,{"$f":"\"\" & INDIRECT(\"Q\" & L48)","v":"11.01.2017/13:59h"}]
[null,null,null,null,null,null,"Reservations-Nr.",null,{"$f":" \"\" & INDIRECT(\"S\" & L48)","v":"410089-Hof"}]
[]
[null,null,null,null,null,null,null,null,null,null,null,{"$f":"A5","v":5}]
[{"$f":"$A$32","v":"Titel der Veranstaltung"}]
[{"$f":"$A$33","v":"SO 29. Januar 2017, 17 Uhr"}]
[{"$f":"$A$34","v":"Ref. Kirchgemeindehaus XYZ"}]
[]
["Sektor/Platz-Nr",null,null,null,null,null,"Kat."]
[{"$f":"INDIRECT(\"G\" & L59) & \"   \" & INDIRECT(\"I\"&L59)","v":"links, Reihe 3    50"},null,null,null,null,null,{"$f":"\"\" & INDIRECT(\"K\" & L59)","v":"1"},{"$f":"\"\" & INDIRECT(\"M\" & L59)","v":"regulär"},null,null,{"$f":"\"\" & INDIRECT(\"O\" & L59)","v":"CHF"},{"$f":"INDIRECT(\"P\" & L59)","v":30}]
[]
["Karte für",{"$f":"\"\" & INDIRECT(\"B\" & L59)","v":"Silvia NamexyzSilvia"},null,null,null,null,"Reservationsdatum",null,{"$f":"\"\" & INDIRECT(\"Q\" & L59)","v":"11.01.2017/13:59h"}]
[null,null,null,null,null,null,"Reservations-Nr.",null,{"$f":" \"\" & INDIRECT(\"S\" & L59)","v":"410089-Hof"}]
[]
[null,null,null,null,null,null,null,null,null,null,null,{"$f":"A6","v":6}]
[{"$f":"$A$32","v":"Titel der Veranstaltung"}]
[{"$f":"$A$33","v":"SO 29. Januar 2017, 17 Uhr"}]
[{"$f":"$A$34","v":"Ref. Kirchgemeindehaus XYZ"}]
[]
["Sektor/Platz-Nr",null,null,null,null,null,"Kat."]
[{"$f":"INDIRECT(\"G\" & L70) & \"   \" & INDIRECT(\"I\"&L70)","v":"links, Reihe 3    51"},null,null,null,null,null,{"$f":"\"\" & INDIRECT(\"K\" & L70)","v":"1"},{"$f":"\"\" & INDIRECT(\"M\" & L70)","v":"regulär"},null,null,{"$f":"\"\" & INDIRECT(\"O\" & L70)","v":"CHF"},{"$f":"INDIRECT(\"P\" & L70)","v":30}]
[]
["Karte für",{"$f":"\"\" & INDIRECT(\"B\" & L70)","v":"Germaine NamexyzGermaine"},null,null,null,null,"Reservationsdatum",null,{"$f":"\"\" & INDIRECT(\"Q\" & L70)","v":"11.01.2017/07:44h"}]
[null,null,null,null,null,null,"Reservations-Nr.",null,{"$f":" \"\" & INDIRECT(\"S\" & L70)","v":"410077-Cam"}]

{"sheet":"Spezial3","index":7,"n_rows":76,"n_cols":19,"rows_kept":76,"cut":false,"hidden":false,"merged":[]}
["Hier können Etiketten für die Platz-Bezeichnung gestaltet werden, nur mit Nummer!"]
["Anzahl pro Blatt",null,27]
[null,"Domenica NamexyzDomenica",null,null,null,null,"links, Reihe 11 ",null,228,null,1,null,"regulär",null,"CHF",30,"06.01.2017/15:29h",null,"409571-Bon"]
[null,"Vorverkaufsstelle für NamexyzVorverkaufsstelle für",null,null,null,null,"links, Reihe 11 ",null,229,null,1,null,"regulär",null,"CHF",30,"11.12.2016/23:53h",null,"407928-Kun"]
[null,"Vorverkaufsstelle für NamexyzVorverkaufsstelle für",null,null,null,null,"links, Reihe 11 ",null,230,null,1,null,"regulär",null,"CHF",30,"11.12.2016/23:53h",null,"407928-Kun"]
[null,"Vorverkaufsstelle für NamexyzVorverkaufsstelle für",null,null,null,null,"links, Reihe 11 ",null,231,null,1,null,"regulär",null,"CHF",30,"11.12.2016/23:53h",null,"407928-Kun"]
[null,"Vorverkaufsstelle für NamexyzVorverkaufsstelle für",null,null,null,null,"links, Reihe 11 ",null,232,null,1,null,"regulär",null,"CHF",30,"11.12.2016/23:53h",null,"407928-Kun"]
[null," Urs Namexyz Urs",null,null,null,null,"rechts, Reihe 11 ",null,233,null,1,null,"regulär",null,"CHF",30,"23.12.2016/18:48h",null,"408866-Spi"]
[null," Urs Namexyz Urs",null,null,null,null,"rechts, Reihe 11 ",null,234,null,1,null,"regulär",null,"CHF",30,"23.12.2016/18:48h",null,"408866-Spi"]
[null,"Heidi NamexyzHeidi",null,null,null,null,"rechts, Reihe 11 ",null,235,null,1,null,"regulär",null,"CHF",30,"28.12.2016/15:14h",null,"409093-Kel"]
[null,"Peter NamexyzPeter",null,null,null,null,"rechts, Reihe 11 ",null,236,null,1,null,"regulär",null,"CHF",30,"04.01.2017/13:11h",null,"409418-Sch"]
[null,"Peter NamexyzPeter",null,null,null,null,"rechts, Reihe 11 ",null,237,null,1,null,"regulär",null,"CHF",30,"04.01.2017/13:11h",null,"409418-Sch"]
[null,"Fredi NamexyzFredi",null,null,null,null,"rechts, Reihe 11 ",null,238,null,1,null,"regulär",null,"CHF",30,"14.01.2017/10:58h",null,"410301-Kel"]
[null,"Fredi NamexyzFredi",null,null,null,null,"rechts, Reihe 11 ",null,239,null,1,null,"regulär",null,"CHF",30,"14.01.2017/10:58h",null,"410301-Kel"]
[]
[]
[]
[]
[]
[]
[]
[]
[]
[]
[]
[]
[]
[]
[]
[]
[]
[null,null,3,null,null,4,null,null,5,null,null,4]
["Platz gebucht/verkauft im Vorverkauf ",null,null,"Platz gebucht/verkauft im Vorverkauf ",null,null,"Platz gebucht/verkauft im Vorverkauf "]
[]
[{"$f":"\" Nr. \" & INDIRECT(\"I\" & C32)","v":" Nr. 228"},null,null,{"$f":"\" Nr. \" & INDIRECT(\"I\" & F32)","v":" Nr. 229"},null,null,{"$f":"\" Nr. \" & INDIRECT(\"I\" & I32)","v":" Nr. 230"}]
[{"$f":"\"\" & INDIRECT(\"G\" & C32)","v":"links, Reihe 11 "},null,null,{"$f":"\"\" & INDIRECT(\"G\" & F32)","v":"links, Reihe 11 "},null,null,{"$f":"\"\" & INDIRECT(\"G\" & I32)","v":"links, Reihe 11 "}]
[null,null,6,null,null,7,null,null,8,null,null,4]
["Platz gebucht/verkauft im Vorverkauf ",null,null,"Platz gebucht/verkauft im Vorverkauf ",null,null,"Platz gebucht/verkauft im Vorverkauf "]
[]
[{"$f":"\" Nr. \" & INDIRECT(\"I\" & C37)","v":" Nr. 231"},null,null,{"$f":"\" Nr. \" & INDIRECT(\"I\" & F37)","v":" Nr. 232"},null,null,{"$f":"\" Nr. \" & INDIRECT(\"I\" & I37)","v":" Nr. 233"}]
[{"$f":"\"\" & INDIRECT(\"G\" & C37)","v":"links, Reihe 11 "},null,null,{"$f":"\"\" & INDIRECT(\"G\" & F37)","v":"links, Reihe 11 "},null,null,{"$f":"\"\" & INDIRECT(\"G\" & I37)","v":"rechts, Reihe 11 "}]
[null,null,9,null,null,10,null,null,11,null,null,4]
["Platz gebucht/verkauft im Vorverkauf ",null,null,"Platz gebucht/verkauft im Vorverkauf ",null,null,"Platz gebucht/verkauft im Vorverkauf "]
[]
[{"$f":"\" Nr. \" & INDIRECT(\"I\" & C42)","v":" Nr. 234"},null,null,{"$f":"\" Nr. \" & INDIRECT(\"I\" & F42)","v":" Nr. 235"},null,null,{"$f":"\" Nr. \" & INDIRECT(\"I\" & I42)","v":" Nr. 236"}]
[{"$f":"\"\" & INDIRECT(\"G\" & C42)","v":"rechts, Reihe 11 "},null,null,{"$f":"\"\" & INDIRECT(\"G\" & F42)","v":"rechts, Reihe 11 "},null,null,{"$f":"\"\" & INDIRECT(\"G\" & I42)","v":"rechts, Reihe 11 "}]
[null,null,12,null,null,13,null,null,14,null,null,4]
["Platz gebucht/verkauft im Vorverkauf ",null,null,"Platz gebucht/verkauft im Vorverkauf ",null,null,"Platz gebucht/verkauft im Vorverkauf "]
[]
[{"$f":"\" Nr. \" & INDIRECT(\"I\" & C47)","v":" Nr. 237"},null,null,{"$f":"\" Nr. \" & INDIRECT(\"I\" & F47)","v":" Nr. 238"},null,null,{"$f":"\" Nr. \" & INDIRECT(\"I\" & I47)","v":" Nr. 239"}]
[{"$f":"\"\" & INDIRECT(\"G\" & C47)","v":"rechts, Reihe 11 "},null,null,{"$f":"\"\" & INDIRECT(\"G\" & F47)","v":"rechts, Reihe 11 "},null,null,{"$f":"\"\" & INDIRECT(\"G\" & I47)","v":"rechts, Reihe 11 "}]
[null,null,15,null,null,16,null,null,17]
["Platz gebucht/verkauft im Vorverkauf ",null,null,"Platz gebucht/verkauft im Vorverkauf ",null,null,"Platz gebucht/verkauft im Vorverkauf "]
[]
[{"$f":"\" Nr. \" & INDIRECT(\"I\" & C52)","v":" Nr. "},null,null,{"$f":"\" Nr. \" & INDIRECT(\"I\" & F52)","v":" Nr. "},null,null,{"$f":"\" Nr. \" & INDIRECT(\"I\" & I52)","v":" Nr. "}]
[{"$f":"\"\" & INDIRECT(\"G\" & C52)","v":""},null,null,{"$f":"\"\" & INDIRECT(\"G\" & F52)","v":""},null,null,{"$f":"\"\" & INDIRECT(\"G\" & I52)","v":""}]
[null,null,18,null,null,19,null,null,20]
["Platz gebucht/verkauft im Vorverkauf ",null,null,"Platz gebucht/verkauft im Vorverkauf ",null,null,"Platz gebucht/verkauft im Vorverkauf "]
[]
[{"$f":"\" Nr. \" & INDIRECT(\"I\" & C57)","v":" Nr. "},null,null,{"$f":"\" Nr. \" & INDIRECT(\"I\" & F57)","v":" Nr. "},null,null,{"$f":"\" Nr. \" & INDIRECT(\"I\" & I57)","v":" Nr. "}]
[{"$f":"\"\" & INDIRECT(\"G\" & C57)","v":""},null,null,{"$f":"\"\" & INDIRECT(\"G\" & F57)","v":""},null,null,{"$f":"\"\" & INDIRECT(\"G\" & I57)","v":""}]
[null,null,21,null,null,22,null,null,23]
["Platz gebucht/verkauft im Vorverkauf ",null,null,"Platz gebucht/verkauft im Vorverkauf ",null,null,"Platz gebucht/verkauft im Vorverkauf "]
[]
[{"$f":"\" Nr. \" & INDIRECT(\"I\" & C62)","v":" Nr. "},null,null,{"$f":"\" Nr. \" & INDIRECT(\"I\" & F62)","v":" Nr. "},null,null,{"$f":"\" Nr. \" & INDIRECT(\"I\" & I62)","v":" Nr. "}]
[{"$f":"\"\" & INDIRECT(\"G\" & C62)","v":""},null,null,{"$f":"\"\" & INDIRECT(\"G\" & F62)","v":""},null,null,{"$f":"\"\" & INDIRECT(\"G\" & I62)","v":""}]
[null,null,24,null,null,25,null,null,26]
["Platz gebucht/verkauft im Vorverkauf ",null,null,"Platz gebucht/verkauft im Vorverkauf ",null,null,"Platz gebucht/verkauft im Vorverkauf "]
[]
[{"$f":"\" Nr. \" & INDIRECT(\"I\" & C67)","v":" Nr. "},null,null,{"$f":"\" Nr. \" & INDIRECT(\"I\" & F67)","v":" Nr. "},null,null,{"$f":"\" Nr. \" & INDIRECT(\"I\" & I67)","v":" Nr. "}]
[{"$f":"\"\" & INDIRECT(\"G\" & C67)","v":""},null,null,{"$f":"\"\" & INDIRECT(\"G\" & F67)","v":""},null,null,{"$f":"\"\" & INDIRECT(\"G\" & I67)","v":""}]
[null,null,27,null,null,28,null,null,29]
["Platz gebucht/verkauft im Vorverkauf ",null,null,"Platz gebucht/verkauft im Vorverkauf ",null,null,"Platz gebucht/verkauft im Vorverkauf "]
[]
[{"$f":"\" Nr. \" & INDIRECT(\"I\" & C72)","v":" Nr. "},null,null,{"$f":"\" Nr. \" & INDIRECT(\"I\" & F72)","v":" Nr. "},null,null,{"$f":"\" Nr. \" & INDIRECT(\"I\" & I72)","v":" Nr. "}]
[{"$f":"\"\" & INDIRECT(\"G\" & C72)","v":""},null,null,{"$f":"\"\" & INDIRECT(\"G\" & F72)","v":""},null,null,{"$f":"\"\" & INDIRECT(\"G\" & I72)","v":""}]

{"sheet":"TicketEtiketten","index":8,"n_rows":56,"n_cols":11,"rows_kept":56,"cut":false,"hidden":false,"merged":[[36,10,38,13],[43,10,45,13],[50,10,52,13],[8,10,10,13],[15,10,17,13],[22,10,24,13],[29,10,31,13]]}
[]
["Eintrittskarte",null,null,{"$f":"A2","v":"Eintrittskarte"},null,null,{"$f":"D2","v":"Eintrittskarte"},null,null,null,"aktuell eingestellt auf AVERY 3474"]
["Orchester XYZ",null,null,{"$f":"A3","v":"Orchester XYZ"},null,null,{"$f":"D3","v":"Orchester XYZ"}]
["Mozart & Salieri",null,null,"Mozart & Salieri",null,null,"Mozart & Salieri"]
["Bad Zurzach, Verenamünster",null,null,"Bad Zurzach, Verenamünster",null,null,"Bad Zurzach, Verenamünster"]
["Sonntag, 25. Sept. 2016, 17:15 Uhr",null,null,"Sonntag, 25. Sept. 2016, 17:15 Uhr",null,null,"Sonntag, 25. Sept. 2016, 17:15 Uhr"]
["(unnummeriert)",null,null,"(unnummeriert)",null,null,"(unnummeriert)"]
[]
["Eintrittskarte",null,null,{"$f":"A9","v":"Eintrittskarte"},null,null,{"$f":"D9","v":"Eintrittskarte"}]
["Orchester XYZ",null,null,{"$f":"A10","v":"Orchester XYZ"},null,null,{"$f":"D10","v":"Orchester XYZ"}]
["Mozart & Salieri",null,null,"Mozart & Salieri",null,null,"Mozart & Salieri"]
["Bad Zurzach, Verenamünster",null,null,"Bad Zurzach, Verenamünster",null,null,"Bad Zurzach, Verenamünster"]
["Sonntag, 25. Sept. 2016, 17:15 Uhr",null,null,"Sonntag, 25. Sept. 2016, 17:15 Uhr",null,null,"Sonntag, 25. Sept. 2016, 17:15 Uhr"]
["(unnummeriert)",null,null,"(unnummeriert)",null,null,"(unnummeriert)"]
[]
[{"$f":"A9","v":"Eintrittskarte"},null,null,{"$f":"A16","v":"Eintrittskarte"},null,null,{"$f":"D16","v":"Eintrittskarte"}]
[{"$f":"A10","v":"Orchester XYZ"},null,null,{"$f":"A17","v":"Orchester XYZ"},null,null,{"$f":"D17","v":"Orchester XYZ"}]
["Mozart & Salieri",null,null,"Mozart & Salieri",null,null,"Mozart & Salieri"]
["Bad Zurzach, Verenamünster",null,null,"Bad Zurzach, Verenamünster",null,null,"Bad Zurzach, Verenamünster"]
["Sonntag, 25. Sept. 2016, 17:15 Uhr",null,null,"Sonntag, 25. Sept. 2016, 17:15 Uhr",null,null,"Sonntag, 25. Sept. 2016, 17:15 Uhr"]
["(unnummeriert)",null,null,"(unnummeriert)",null,null,"(unnummeriert)"]
[]
[{"$f":"A16","v":"Eintrittskarte"},null,null,{"$f":"A23","v":"Eintrittskarte"},null,null,{"$f":"D23","v":"Eintrittskarte"}]
[{"$f":"A17","v":"Orchester XYZ"},null,null,{"$f":"A24","v":"Orchester XYZ"},null,null,{"$f":"D24","v":"Orchester XYZ"}]
["Mozart & Salieri",null,null,"Mozart & Salieri",null,null,"Mozart & Salieri"]
["Bad Zurzach, Verenamünster",null,null,"Bad Zurzach, Verenamünster",null,null,"Bad Zurzach, Verenamünster"]
["Sonntag, 25. Sept. 2016, 17:15 Uhr",null,null,"Sonntag, 25. Sept. 2016, 17:15 Uhr",null,null,"Sonntag, 25. Sept. 2016, 17:15 Uhr"]
["(unnummeriert)",null,null,"(unnummeriert)",null,null,"(unnummeriert)"]
[]
[{"$f":"A23","v":"Eintrittskarte"},null,null,{"$f":"A30","v":"Eintrittskarte"},null,null,{"$f":"D30","v":"Eintrittskarte"}]
[{"$f":"A24","v":"Orchester XYZ"},null,null,{"$f":"A31","v":"Orchester XYZ"},null,null,{"$f":"D31","v":"Orchester XYZ"}]
["Mozart & Salieri",null,null,"Mozart & Salieri",null,null,"Mozart & Salieri"]
["Bad Zurzach, Verenamünster",null,null,"Bad Zurzach, Verenamünster",null,null,"Bad Zurzach, Verenamünster"]
["Sonntag, 25. Sept. 2016, 17:15 Uhr",null,null,"Sonntag, 25. Sept. 2016, 17:15 Uhr",null,null,"Sonntag, 25. Sept. 2016, 17:15 Uhr"]
["(unnummeriert)",null,null,"(unnummeriert)",null,null,"(unnummeriert)"]
[]
[{"$f":"A30","v":"Eintrittskarte"},null,null,{"$f":"A37","v":"Eintrittskarte"},null,null,{"$f":"D37","v":"Eintrittskarte"}]
[{"$f":"A31","v":"Orchester XYZ"},null,null,{"$f":"A38","v":"Orchester XYZ"},null,null,{"$f":"D38","v":"Orchester XYZ"}]
["Mozart & Salieri",null,null,"Mozart & Salieri",null,null,"Mozart & Salieri"]
["Bad Zurzach, Verenamünster",null,null,"Bad Zurzach, Verenamünster",null,null,"Bad Zurzach, Verenamünster"]
["Sonntag, 25. Sept. 2016, 17:15 Uhr",null,null,"Sonntag, 25. Sept. 2016, 17:15 Uhr",null,null,"Sonntag, 25. Sept. 2016, 17:15 Uhr"]
["(unnummeriert)",null,null,"(unnummeriert)",null,null,"(unnummeriert)"]
[]
[{"$f":"A37","v":"Eintrittskarte"},null,null,{"$f":"A44","v":"Eintrittskarte"},null,null,{"$f":"D44","v":"Eintrittskarte"}]
[{"$f":"A38","v":"Orchester XYZ"},null,null,{"$f":"A45","v":"Orchester XYZ"},null,null,{"$f":"D45","v":"Orchester XYZ"}]
["Mozart & Salieri",null,null,"Mozart & Salieri",null,null,"Mozart & Salieri"]
["Bad Zurzach, Verenamünster",null,null,"Bad Zurzach, Verenamünster",null,null,"Bad Zurzach, Verenamünster"]
["Sonntag, 25. Sept. 2016, 17:15 Uhr",null,null,"Sonntag, 25. Sept. 2016, 17:15 Uhr",null,null,"Sonntag, 25. Sept. 2016, 17:15 Uhr"]
["(unnummeriert)",null,null,"(unnummeriert)",null,null,"(unnummeriert)"]
[]
[{"$f":"A44","v":"Eintrittskarte"},null,null,{"$f":"A51","v":"Eintrittskarte"},null,null,{"$f":"D51","v":"Eintrittskarte"}]
[{"$f":"A45","v":"Orchester XYZ"},null,null,{"$f":"A52","v":"Orchester XYZ"},null,null,{"$f":"D52","v":"Orchester XYZ"}]
["Mozart & Salieri",null,null,"Mozart & Salieri",null,null,"Mozart & Salieri"]
["Bad Zurzach, Verenamünster",null,null,"Bad Zurzach, Verenamünster",null,null,"Bad Zurzach, Verenamünster"]
["Sonntag, 25. Sept. 2016, 17:15 Uhr",null,null,"Sonntag, 25. Sept. 2016, 17:15 Uhr",null,null,"Sonntag, 25. Sept. 2016, 17:15 Uhr"]
["(unnummeriert)",null,null,"(unnummeriert)",null,null,"(unnummeriert)"]

{"sheet":"DatenBuchungen","index":9,"n_rows":148,"n_cols":28,"rows_kept":148,"cut":false,"hidden":false,"merged":[]}
["Res-Nr","Datum-Zeit","Res-Datum","Anrede","Vorname","Name","Zusatz","Strasse","Plz","Ort","Tel","Email","Newsletter ***(Ja)","Bemerkungen","Kategorie","Sektor","Platz","Preisoption","Währung ","Preis","Status","Versandart","Spalte1",{"$f":"SUM(TabelleRes[Preis])","v":4170},{"$f":"GETPIVOTDATA(\"Preis\",PivotStatistik1!$A$6)","v":4170},{"$f":"COUNTA(TabelleRes[Res-Nr])","v":147},{"$f":"GETPIVOTDATA(\"Kategorie\",PivotStatistik2!$A$6)","v":147},"Kontrolle mit Pivot-Tab!"]
["410208-Isl","12.01.2017/19:18h","12.01.2017","Herr","Albert",{"$f":"\"Namexyz\" & TabelleRes[[#This Row],[Vorname]]","v":"NamexyzAlbert"},"","Hirslanderstr. 33","CH-9913","ort136",null,"liliane.hofer@itkiosk.ch","Nein","4 Erwachsene\r\n2 Kinder (13 & 15 Jahre)","1","links, Reihe 1 ",5,"regulär","CHF",30,"*** e-Tickets gedruckt ***","1"]
["410208-Isl","12.01.2017/19:18h","12.01.2017","Herr","Albert",{"$f":"\"Namexyz\" & TabelleRes[[#This Row],[Vorname]]","v":"NamexyzAlbert"},"","Hirslanderstr. 33","CH-9914","ort137",null,"liliane.hofer@itkiosk.ch","Nein","4 Erwachsene\r\n2 Kinder (13 & 15 Jahre)","1","links, Reihe 1 ",6,"regulär","CHF",30,"*** e-Tickets gedruckt ***","1"]
["410208-Isl","12.01.2017/19:18h","12.01.2017","Herr","Albert",{"$f":"\"Namexyz\" & TabelleRes[[#This Row],[Vorname]]","v":"NamexyzAlbert"},"","Hirslanderstr. 33","CH-9915","ort138",null,"liliane.hofer@itkiosk.ch","Nein","4 Erwachsene\r\n2 Kinder (13 & 15 Jahre)","1","links, Reihe 1 ",7,"regulär","CHF",30,"*** e-Tickets gedruckt ***","1"]
["410208-Isl","12.01.2017/19:18h","12.01.2017","Herr","Albert",{"$f":"\"Namexyz\" & TabelleRes[[#This Row],[Vorname]]","v":"NamexyzAlbert"},"","Hirslanderstr. 33","CH-9916","ort139",null,"liliane.hofer@itkiosk.ch","Nein","4 Erwachsene\r\n2 Kinder (13 & 15 Jahre)","1","links, Reihe 1 ",8,"regulär","CHF",30,"*** e-Tickets gedruckt ***","1"]
["410208-Isl","12.01.2017/19:18h","12.01.2017","Herr","Albert",{"$f":"\"Namexyz\" & TabelleRes[[#This Row],[Vorname]]","v":"NamexyzAlbert"},"","Hirslanderstr. 33","CH-9917","ort140",null,"liliane.hofer@itkiosk.ch","Nein","4 Erwachsene\r\n2 Kinder (13 & 15 Jahre)","1","links, Reihe 1 ",9,"ermässigt","CHF",15,"*** e-Tickets gedruckt ***","1"]
["410208-Isl","12.01.2017/19:18h","12.01.2017","Herr","Albert",{"$f":"\"Namexyz\" & TabelleRes[[#This Row],[Vorname]]","v":"NamexyzAlbert"},"","Hirslanderstr. 33","CH-9918","ort141",null,"liliane.hofer@itkiosk.ch","Nein","4 Erwachsene\r\n2 Kinder (13 & 15 Jahre)","1","links, Reihe 1 ",10,"ermässigt","CHF",15,"*** e-Tickets gedruckt ***","1"]
["409458-Ott","05.01.2017/10:13h","05.01.2017","Herr und Frau","Livia und Franz",{"$f":"\"Namexyz\" & TabelleRes[[#This Row],[Vorname]]","v":"NamexyzLivia und Franz"},"","Milchbuckstr. 18","CH-9982","ort205",null,"liliane.hofer@itkiosk.ch","Nein","","1","links, Reihe 1 ",11,"regulär","CHF",30,"*** e-Tickets gedruckt ***","1"]
["409458-Ott","05.01.2017/10:13h","05.01.2017","Herr und Frau","Livia und Franz",{"$f":"\"Namexyz\" & TabelleRes[[#This Row],[Vorname]]","v":"NamexyzLivia und Franz"},"","Milchbuckstr. 18","CH-9983","ort206",null,"liliane.hofer@itkiosk.ch","Nein","","1","links, Reihe 1 ",12,"regulär","CHF",30,"*** e-Tickets gedruckt ***","1"]
["410403-Hof","15.01.2017/20:34h","15.01.2017","Frau","Liliane",{"$f":"\"Namexyz\" & TabelleRes[[#This Row],[Vorname]]","v":"NamexyzLiliane"},"","Buechzelglistr. 67","CH-9900","ort123",null,"liliane.hofer@itkiosk.ch","Nein",null,"1","rechts, Reihe 1 ",15,"regulär","CHF",30,"*** e-Tickets gedruckt ***","3"]
["410057-Kau","10.01.2017/22:04h","10.01.2017","","Sabine",{"$f":"\"Namexyz\" & TabelleRes[[#This Row],[Vorname]]","v":"NamexyzSabine"},"","Gsteigstrasse 9","CH-9940","ort163",null,"liliane.hofer@itkiosk.ch","Nein","","1","links, Reihe 2 ",27,"regulär","CHF",30,"*** e-Tickets gedruckt ***","1"]
["410057-Kau","10.01.2017/22:04h","10.01.2017","","Sabine",{"$f":"\"Namexyz\" & TabelleRes[[#This Row],[Vorname]]","v":"NamexyzSabine"},"","Gsteigstrasse 9","CH-9941","ort164",null,"liliane.hofer@itkiosk.ch","Nein","","1","links, Reihe 2 ",28,"regulär","CHF",30,"*** e-Tickets gedruckt ***","1"]
["410057-Kau","10.01.2017/22:04h","10.01.2017","","Sabine",{"$f":"\"Namexyz\" & TabelleRes[[#This Row],[Vorname]]","v":"NamexyzSabine"},"","Gsteigstrasse 9","CH-9942","ort165",null,"liliane.hofer@itkiosk.ch","Nein","","1","links, Reihe 2 ",29,"regulär","CHF",30,"*** e-Tickets gedruckt ***","1"]
["410057-Kau","10.01.2017/22:04h","10.01.2017","","Sabine",{"$f":"\"Namexyz\" & TabelleRes[[#This Row],[Vorname]]","v":"NamexyzSabine"},"","Gsteigstrasse 9","CH-9943","ort166",null,"liliane.hofer@itkiosk.ch","Nein","","1","links, Reihe 2 ",30,"ermässigt","CHF",15,"*** e-Tickets gedruckt ***","1"]
["410057-Kau","10.01.2017/22:04h","10.01.2017","","Sabine",{"$f":"\"Namexyz\" & TabelleRes[[#This Row],[Vorname]]","v":"NamexyzSabine"},"","Gsteigstrasse 9","CH-9944","ort167",null,"liliane.hofer@itkiosk.ch","Nein","","1","links, Reihe 2 ",31,"ermässigt","CHF",15,"*** e-Tickets gedruckt ***","1"]
["408870-Mar","23.12.2016/19:20h","23.12.2016","Frau","Anna",{"$f":"\"Namexyz\" & TabelleRes[[#This Row],[Vorname]]","v":"NamexyzAnna"},"","Nötzlistrasse 6","CH-10030","ort253",null,"liliane.hofer@itkiosk.ch","Nein","Gutschein für 2 Billette erhalten von Ernst Lätsch","1","links, Reihe 2 ",32,"regulär","CHF",30,"*** e-Tickets gedruckt ***","1"]
["408870-Mar","23.12.2016/19:20h","23.12.2016","Frau","Anna",{"$f":"\"Namexyz\" & TabelleRes[[#This Row],[Vorname]]","v":"NamexyzAnna"},"","Nötzlistrasse 6","CH-10031","ort254",null,"liliane.hofer@itkiosk.ch","Nein","Gutschein für 2 Billette erhalten von Ernst Lätsch","1","links, Reihe 2 ",33,"Freikarte","CHF",0,"*** e-Tickets gedruckt ***","1"]
["408870-Mar","23.12.2016/19:20h","23.12.2016","Frau","Anna",{"$f":"\"Namexyz\" & TabelleRes[[#This Row],[Vorname]]","v":"NamexyzAnna"},"","Nötzlistrasse 6","CH-10032","ort255",null,"liliane.hofer@itkiosk.ch","Nein","Gutschein für 2 Billette erhalten von Ernst Lätsch","1","links, Reihe 2 ",34,"Freikarte","CHF",0,"*** e-Tickets gedruckt ***","1"]
["408512-Bae","17.12.2016/21:54h","17.12.2016","Herr","Francois",{"$f":"\"Namexyz\" & TabelleRes[[#This Row],[Vorname]]","v":"NamexyzFrancois"},"","Rüchligstr. 10","CH-10041","ort264",null,"liliane.hofer@itkiosk.ch","Nein","","1","rechts, Reihe 2 ",35,"Freikarte","CHF",0,"*** e-Tickets gedruckt ***","1"]
["408512-Bae","17.12.2016/21:54h","17.12.2016","Herr","Francois",{"$f":"\"Namexyz\" & TabelleRes[[#This Row],[Vorname]]","v":"NamexyzFrancois"},"","Rüchligstr. 10","CH-10042","ort265",null,"liliane.hofer@itkiosk.ch","Nein","","1","rechts, Reihe 2 ",36,"Freikarte","CHF",0,"*** e-Tickets gedruckt ***","1"]
["410317-Pig","14.01.2017/15:43h","14.01.2017","Frau","Arlette",{"$f":"\"Namexyz\" & TabelleRes[[#This Row],[Vorname]]","v":"NamexyzArlette"},"","Bäulistrasse 8a","CH-9907","ort130",null,"liliane.hofer@itkiosk.ch","Nein","","1","rechts, Reihe 2 ",37,"regulär","CHF",30,"*** e-Tickets gedruckt ***","1"]
["410317-Pig","14.01.2017/15:43h","14.01.2017","Frau","Arlette",{"$f":"\"Namexyz\" & TabelleRes[[#This Row],[Vorname]]","v":"NamexyzArlette"},"","Bäulistrasse 8a","CH-9908","ort131",null,"liliane.hofer@itkiosk.ch","Nein","","1","rechts, Reihe 2 ",38,"regulär","CHF",30,"*** e-Tickets gedruckt ***","1"]
["410089-Hof","11.01.2017/13:59h","11.01.2017","Frau","Silvia",{"$f":"\"Namexyz\" & TabelleRes[[#This Row],[Vorname]]","v":"NamexyzSilvia"},"","Wissenbacherstrasse 12","CH-9933","ort156",null,"liliane.hofer@itkiosk.ch","Nein","","1","links, Reihe 3 ",49,"regulär","CHF",30,"*** e-Tickets gedruckt ***","1"]
["410089-Hof","11.01.2017/13:59h","11.01.2017","Frau","Silvia",{"$f":"\"Namexyz\" & TabelleRes[[#This Row],[Vorname]]","v":"NamexyzSilvia"},"","Wissenbacherstrasse 12","CH-9934","ort157",null,"liliane.hofer@itkiosk.ch","Nein","","1","links, Reihe 3 ",50,"regulär","CHF",30,"*** e-Tickets gedruckt ***","1"]
["410077-Cam","11.01.2017/07:44h","11.01.2017","","Germaine",{"$f":"\"Namexyz\" & TabelleRes[[#This Row],[Vorname]]","v":"NamexyzGermaine"},"","Hofwiesenstrasse 11/8","CH-9935","ort158",null,"liliane.hofer@itkiosk.ch","Nein","","1","links, Reihe 3 ",51,"regulär","CHF",30,"*** e-Tickets gedruckt ***","1"]
["410077-Cam","11.01.2017/07:44h","11.01.2017","","Germaine",{"$f":"\"Namexyz\" & TabelleRes[[#This Row],[Vorname]]","v":"NamexyzGermaine"},"","Hofwiesenstrasse 11/8","CH-9936","ort159",null,"liliane.hofer@itkiosk.ch","Nein","","1","links, Reihe 3 ",52,"regulär","CHF",30,"*** e-Tickets gedruckt ***","1"]
["410074-Ben","11.01.2017/02:21h","11.01.2017","Frau","Elisabeth",{"$f":"\"Namexyz\" & TabelleRes[[#This Row],[Vorname]]","v":"NamexyzElisabeth"},"","Leutholdstrasse, 17","CH-9937","ort160",null,"liliane.hofer@itkiosk.ch","Nein","","1","links, Reihe 3 ",53,"regulär","CHF",30,"*** e-Tickets gedruckt ***","1"]
["409893-Web","09.01.2017/15:33h","09.01.2017","Frau","Verena",{"$f":"\"Namexyz\" & TabelleRes[[#This Row],[Vorname]]","v":"NamexyzVerena"},"","Imbisbühlstrasse 35","CH-9952","ort175",null,"liliane.hofer@itkiosk.ch","Nein","","1","links, Reihe 3 ",54,"regulär","CHF",30,"*** e-Tickets gedruckt ***","1"]
["409504-Web","05.01.2017/17:07h","05.01.2017","Frau","Verena",{"$f":"\"Namexyz\" & TabelleRes[[#This Row],[Vorname]]","v":"NamexyzVerena"},"Verena Weber","Imbisbühlstrasse 35","CH-9980","ort203",null,"liliane.hofer@itkiosk.ch","Nein","","1","links, Reihe 3 ",55,"regulär","CHF",30,"*** e-Tickets gedruckt ***","1"]
["409504-Web","05.01.2017/17:07h","05.01.2017","Frau","Verena",{"$f":"\"Namexyz\" & TabelleRes[[#This Row],[Vorname]]","v":"NamexyzVerena"},"Verena Weber","Imbisbühlstrasse 35","CH-9981","ort204",null,"liliane.hofer@itkiosk.ch","Nein","","1","links, Reihe 3 ",56,"regulär","CHF",30,"*** e-Tickets gedruckt ***","1"]
["409527-Haf","05.01.2017/21:43h","05.01.2017","Frau","Regula",{"$f":"\"Namexyz\" & TabelleRes[[#This Row],[Vorname]]","v":"NamexyzRegula"},"","Sonneggsteig 3","CH-9978","ort201",null,"liliane.hofer@itkiosk.ch","Nein","","1","rechts, Reihe 3 ",57,"regulär","CHF",30,"*** e-Tickets gedruckt ***","1"]
["409527-Haf","05.01.2017/21:43h","05.01.2017","Frau","Regula",{"$f":"\"Namexyz\" & TabelleRes[[#This Row],[Vorname]]","v":"NamexyzRegula"},"","Sonneggsteig 3","CH-9979","ort202",null,"liliane.hofer@itkiosk.ch","Nein","","1","rechts, Reihe 3 ",58,"regulär","CHF",30,"*** e-Tickets gedruckt ***","1"]
["410064-Gül","10.01.2017/22:45h","10.01.2017","Frau","Elisabeth",{"$f":"\"Namexyz\" & TabelleRes[[#This Row],[Vorname]]","v":"NamexyzElisabeth"},"","Bachwiesenstrasse 16","CH-9938","ort161",null,"liliane.hofer@itkiosk.ch","Nein","","1","rechts, Reihe 3 ",59,"regulär","CHF",30,"*** e-Tickets gedruckt ***","1"]
["410064-Gül","10.01.2017/22:45h","10.01.2017","Frau","Elisabeth",{"$f":"\"Namexyz\" & TabelleRes[[#This Row],[Vorname]]","v":"NamexyzElisabeth"},"","Bachwiesenstrasse 16","CH-9939","ort162",null,"liliane.hofer@itkiosk.ch","Nein","","1","rechts, Reihe 3 ",60,"regulär","CHF",30,"*** e-Tickets gedruckt ***","1"]
["410391-Lüs","15.01.2017/17:37h","15.01.2017","Frau","Agnes",{"$f":"\"Namexyz\" & TabelleRes[[#This Row],[Vorname]]","v":"NamexyzAgnes"},"","Im Klösterli 18","CH-9901","ort124",null,"liliane.hofer@itkiosk.ch","Nein","","1","rechts, Reihe 3 ",61,"regulär","CHF",30,"*** e-Tickets gedruckt ***","1"]
["410391-Lüs","15.01.2017/17:37h","15.01.2017","Frau","Agnes",{"$f":"\"Namexyz\" & TabelleRes[[#This Row],[Vorname]]","v":"NamexyzAgnes"},"","Im Klösterli 18","CH-9902","ort125",null,"liliane.hofer@itkiosk.ch","Nein","","1","rechts, Reihe 3 ",62,"regulär","CHF",30,"*** e-Tickets gedruckt ***","1"]
["410391-Lüs","15.01.2017/17:37h","15.01.2017","Frau","Agnes",{"$f":"\"Namexyz\" & TabelleRes[[#This Row],[Vorname]]","v":"NamexyzAgnes"},"","Im Klösterli 18","CH-9903","ort126",null,"liliane.hofer@itkiosk.ch","Nein","","1","rechts, Reihe 3 ",63,"regulär","CHF",30,"*** e-Tickets gedruckt ***","1"]
["410391-Lüs","15.01.2017/17:37h","15.01.2017","Frau","Agnes",{"$f":"\"Namexyz\" & TabelleRes[[#This Row],[Vorname]]","v":"NamexyzAgnes"},"","Im Klösterli 18","CH-9904","ort127",null,"liliane.hofer@itkiosk.ch","Nein","","1","rechts, Reihe 3 ",64,"regulär","CHF",30,"*** e-Tickets gedruckt ***","1"]
["410391-Lüs","15.01.2017/17:37h","15.01.2017","Frau","Agnes",{"$f":"\"Namexyz\" & TabelleRes[[#This Row],[Vorname]]","v":"NamexyzAgnes"},"","Im Klösterli 18","CH-9905","ort128",null,"liliane.hofer@itkiosk.ch","Nein","","1","rechts, Reihe 3 ",65,"regulär","CHF",30,"*** e-Tickets gedruckt ***","1"]
["410391-Lüs","15.01.2017/17:37h","15.01.2017","Frau","Agnes",{"$f":"\"Namexyz\" & TabelleRes[[#This Row],[Vorname]]","v":"NamexyzAgnes"},"","Im Klösterli 18","CH-9906","ort129",null,"liliane.hofer@itkiosk.ch","Nein","","1","rechts, Reihe 3 ",66,"regulär","CHF",30,"*** e-Tickets gedruckt ***","1"]
["410250-Gig","13.01.2017/10:12h","13.01.2017","","Walter",{"$f":"\"Namexyz\" & TabelleRes[[#This Row],[Vorname]]","v":"NamexyzWalter"},"","Seebacherstrasse 64","CH-9911","ort134",null,"liliane.hofer@itkiosk.ch","Nein","","1","links, Reihe 4 ",67,"regulär","CHF",30,"*** e-Tickets gedruckt ***","1"]
["410250-Gig","13.01.2017/10:12h","13.01.2017","","Walter",{"$f":"\"Namexyz\" & TabelleRes[[#This Row],[Vorname]]","v":"NamexyzWalter"},"","Seebacherstrasse 64","CH-9912","ort135",null,"liliane.hofer@itkiosk.ch","Nein","","1","links, Reihe 4 ",68,"regulär","CHF",30,"*** e-Tickets gedruckt ***","1"]
["410154-Büh","11.01.2017/21:34h","11.01.2017","","Ariane ",{"$f":"\"Namexyz\" & TabelleRes[[#This Row],[Vorname]]","v":"NamexyzAriane "},"","Grossmannstrasse 47","CH-9920","ort143",null,"liliane.hofer@itkiosk.ch","Nein","Orchestermitglied\r\n","1","links, Reihe 4 ",69,"regulär","CHF",30,"*** e-Tickets gedruckt ***","1"]
["410154-Büh","11.01.2017/21:34h","11.01.2017","","Ariane ",{"$f":"\"Namexyz\" & TabelleRes[[#This Row],[Vorname]]","v":"NamexyzAriane "},"","Grossmannstrasse 47","CH-9921","ort144",null,"liliane.hofer@itkiosk.ch","Nein","Orchestermitglied\r\n","1","links, Reihe 4 ",70,"ermässigt","CHF",15,"*** e-Tickets gedruckt ***","1"]
["410154-Büh","11.01.2017/21:34h","11.01.2017","","Ariane ",{"$f":"\"Namexyz\" & TabelleRes[[#This Row],[Vorname]]","v":"NamexyzAriane "},"","Grossmannstrasse 47","CH-9922","ort145",null,"liliane.hofer@itkiosk.ch","Nein","Orchestermitglied\r\n","1","links, Reihe 4 ",71,"ermässigt","CHF",15,"*** e-Tickets gedruckt ***","1"]
["410154-Büh","11.01.2017/21:34h","11.01.2017","","Ariane ",{"$f":"\"Namexyz\" & TabelleRes[[#This Row],[Vorname]]","v":"NamexyzAriane "},"","Grossmannstrasse 47","CH-9923","ort146",null,"liliane.hofer@itkiosk.ch","Nein","Orchestermitglied\r\n","1","links, Reihe 4 ",72,"ermässigt","CHF",15,"*** e-Tickets gedruckt ***","1"]
["409303-Sch","02.01.2017/10:39h","02.01.2017","","Peter",{"$f":"\"Namexyz\" & TabelleRes[[#This Row],[Vorname]]","v":"NamexyzPeter"},"","Kloosfeldstrasse 21","CH-9995","ort218",null,"liliane.hofer@itkiosk.ch","Nein","","1","links, Reihe 4 ",73,"regulär","CHF",30,"*** e-Tickets gedruckt ***","1"]
["409303-Sch","02.01.2017/10:39h","02.01.2017","","Peter",{"$f":"\"Namexyz\" & TabelleRes[[#This Row],[Vorname]]","v":"NamexyzPeter"},"","Kloosfeldstrasse 21","CH-9996","ort219",null,"liliane.hofer@itkiosk.ch","Nein","","1","links, Reihe 4 ",74,"regulär","CHF",30,"*** e-Tickets gedruckt ***","1"]
["409303-Sch","02.01.2017/10:39h","02.01.2017","","Peter",{"$f":"\"Namexyz\" & TabelleRes[[#This Row],[Vorname]]","v":"NamexyzPeter"},"","Kloosfeldstrasse 21","CH-9997","ort220",null,"liliane.hofer@itkiosk.ch","Nein","","1","links, Reihe 4 ",75,"regulär","CHF",30,"*** e-Tickets gedruckt ***","1"]
["408620-Gre","19.12.2016/18:24h","19.12.2016","Frau","Gabi",{"$f":"\"Namexyz\" & TabelleRes[[#This Row],[Vorname]]","v":"NamexyzGabi"},"","Limmattalstrasse 143","CH-10038","ort261",null,"liliane.hofer@itkiosk.ch","Nein","","1","links, Reihe 4 ",76,"regulär","CHF",30,"*** e-Tickets gedruckt ***","1"]
["408620-Gre","19.12.2016/18:24h","19.12.2016","Frau","Gabi",{"$f":"\"Namexyz\" & TabelleRes[[#This Row],[Vorname]]","v":"NamexyzGabi"},"","Limmattalstrasse 143","CH-10039","ort262",null,"liliane.hofer@itkiosk.ch","Nein","","1","links, Reihe 4 ",77,"regulär","CHF",30,"*** e-Tickets gedruckt ***","1"]
["408620-Gre","19.12.2016/18:24h","19.12.2016","Frau","Gabi",{"$f":"\"Namexyz\" & TabelleRes[[#This Row],[Vorname]]","v":"NamexyzGabi"},"","Limmattalstrasse 143","CH-10040","ort263",null,"liliane.hofer@itkiosk.ch","Nein","","1","links, Reihe 4 ",78,"ermässigt","CHF",15,"*** e-Tickets gedruckt ***","1"]
["409049-Kun","28.12.2016/10:15h","28.12.2016","Allg.","Vorverkaufsstelle für",{"$f":"\"Namexyz\" & TabelleRes[[#This Row],[Vorname]]","v":"NamexyzVorverkaufsstelle für"},"","keine Strasse","CH-10018","ort241",null,"liliane.hofer@itkiosk.ch","Nein","12 Tickets für VV1 Höngg","1","rechts, Reihe 4 ",79,"regulär","CHF",30,"*** e-Tickets gedruckt ***","3"]
["409049-Kun","28.12.2016/10:15h","28.12.2016","Allg.","Vorverkaufsstelle für",{"$f":"\"Namexyz\" & TabelleRes[[#This Row],[Vorname]]","v":"NamexyzVorverkaufsstelle für"},"","keine Strasse","CH-10019","ort242",null,"liliane.hofer@itkiosk.ch","Nein","12 Tickets für VV1 Höngg","1","rechts, Reihe 4 ",80,"regulär","CHF",30,"*** e-Tickets gedruckt ***","3"]
["409049-Kun","28.12.2016/10:15h","28.12.2016","Allg.","Vorverkaufsstelle für",{"$f":"\"Namexyz\" & TabelleRes[[#This Row],[Vorname]]","v":"NamexyzVorverkaufsstelle für"},"","keine Strasse","CH-10020","ort243",null,"liliane.hofer@itkiosk.ch","Nein","12 Tickets für VV1 Höngg","1","rechts, Reihe 4 ",81,"regulär","CHF",30,"*** e-Tickets gedruckt ***","3"]
["409049-Kun","28.12.2016/10:15h","28.12.2016","Allg.","Vorverkaufsstelle für",{"$f":"\"Namexyz\" & TabelleRes[[#This Row],[Vorname]]","v":"NamexyzVorverkaufsstelle für"},"","keine Strasse","CH-10021","ort244",null,"liliane.hofer@itkiosk.ch","Nein","12 Tickets für VV1 Höngg","1","rechts, Reihe 4 ",82,"regulär","CHF",30,"*** e-Tickets gedruckt ***","3"]
["409049-Kun","28.12.2016/10:15h","28.12.2016","Allg.","Vorverkaufsstelle für",{"$f":"\"Namexyz\" & TabelleRes[[#This Row],[Vorname]]","v":"NamexyzVorverkaufsstelle für"},"","keine Strasse","CH-10022","ort245",null,"liliane.hofer@itkiosk.ch","Nein","12 Tickets für VV1 Höngg","1","rechts, Reihe 4 ",83,"regulär","CHF",30,"*** e-Tickets gedruckt ***","3"]
["409049-Kun","28.12.2016/10:15h","28.12.2016","Allg.","Vorverkaufsstelle für",{"$f":"\"Namexyz\" & TabelleRes[[#This Row],[Vorname]]","v":"NamexyzVorverkaufsstelle für"},"","keine Strasse","CH-10023","ort246",null,"liliane.hofer@itkiosk.ch","Nein","12 Tickets für VV1 Höngg","1","rechts, Reihe 4 ",84,"regulär","CHF",30,"*** e-Tickets gedruckt ***","3"]
["410123-Kun","11.01.2017/15:57h","11.01.2017","Allg.","Vorverkaufsstelle für",{"$f":"\"Namexyz\" & TabelleRes[[#This Row],[Vorname]]","v":"NamexyzVorverkaufsstelle für"},"","keine Strasse","CH-9927","ort150",null,"liliane.hofer@itkiosk.ch","Nein","für M. Kaltenbach\r\nBarzahlung","1","links, Reihe 5 ",89,"regulär","CHF",30,"*** e-Tickets gedruckt ***","3"]
["410123-Kun","11.01.2017/15:57h","11.01.2017","Allg.","Vorverkaufsstelle für",{"$f":"\"Namexyz\" & TabelleRes[[#This Row],[Vorname]]","v":"NamexyzVorverkaufsstelle für"},"","keine Strasse","CH-9928","ort151",null,"liliane.hofer@itkiosk.ch","Nein","für M. Kaltenbach\r\nBarzahlung","1","links, Reihe 5 ",90,"regulär","CHF",30,"*** e-Tickets gedruckt ***","3"]
["410123-Kun","11.01.2017/15:57h","11.01.2017","Allg.","Vorverkaufsstelle für",{"$f":"\"Namexyz\" & TabelleRes[[#This Row],[Vorname]]","v":"NamexyzVorverkaufsstelle für"},"","keine Strasse","CH-9929","ort152",null,"liliane.hofer@itkiosk.ch","Nein","für M. Kaltenbach\r\nBarzahlung","1","links, Reihe 5 ",91,"regulär","CHF",30,"*** e-Tickets gedruckt ***","3"]
["410123-Kun","11.01.2017/15:57h","11.01.2017","Allg.","Vorverkaufsstelle für",{"$f":"\"Namexyz\" & TabelleRes[[#This Row],[Vorname]]","v":"NamexyzVorverkaufsstelle für"},"","keine Strasse","CH-9930","ort153",null,"liliane.hofer@itkiosk.ch","Nein","für M. Kaltenbach\r\nBarzahlung","1","links, Reihe 5 ",92,"regulär","CHF",30,"*** e-Tickets gedruckt ***","3"]
["410123-Kun","11.01.2017/15:57h","11.01.2017","Allg.","Vorverkaufsstelle für",{"$f":"\"Namexyz\" & TabelleRes[[#This Row],[Vorname]]","v":"NamexyzVorverkaufsstelle für"},"","keine Strasse","CH-9931","ort154",null,"liliane.hofer@itkiosk.ch","Nein","für M. Kaltenbach\r\nBarzahlung","1","links, Reihe 5 ",93,"regulär","CHF",30,"*** e-Tickets gedruckt ***","3"]
["410123-Kun","11.01.2017/15:57h","11.01.2017","Allg.","Vorverkaufsstelle für",{"$f":"\"Namexyz\" & TabelleRes[[#This Row],[Vorname]]","v":"NamexyzVorverkaufsstelle für"},"","keine Strasse","CH-9932","ort155",null,"liliane.hofer@itkiosk.ch","Nein","für M. Kaltenbach\r\nBarzahlung","1","links, Reihe 5 ",94,"regulär","CHF",30,"*** e-Tickets gedruckt ***","3"]
["409063-Kun","28.12.2016/10:18h","28.12.2016","Allg.","Vorverkaufsstelle für",{"$f":"\"Namexyz\" & TabelleRes[[#This Row],[Vorname]]","v":"NamexyzVorverkaufsstelle für"},"","keine Strasse","CH-10006","ort229",null,"liliane.hofer@itkiosk.ch","Nein","VV Höngg, Verkauf in Laden","1","links, Reihe 5 ",95,"regulär","CHF",30,"*** e-Tickets gedruckt ***","3"]
["409063-Kun","28.12.2016/10:18h","28.12.2016","Allg.","Vorverkaufsstelle für",{"$f":"\"Namexyz\" & TabelleRes[[#This Row],[Vorname]]","v":"NamexyzVorverkaufsstelle für"},"","keine Strasse","CH-10007","ort230",null,"liliane.hofer@itkiosk.ch","Nein","VV Höngg, Verkauf in Laden","1","links, Reihe 5 ",96,"regulär","CHF",30,"*** e-Tickets gedruckt ***","3"]
["409063-Kun","28.12.2016/10:18h","28.12.2016","Allg.","Vorverkaufsstelle für",{"$f":"\"Namexyz\" & TabelleRes[[#This Row],[Vorname]]","v":"NamexyzVorverkaufsstelle für"},"","keine Strasse","CH-10008","ort231",null,"liliane.hofer@itkiosk.ch","Nein","VV Höngg, Verkauf in Laden","1","links, Reihe 5 ",97,"regulär","CHF",30,"*** e-Tickets gedruckt ***","3"]
["409063-Kun","28.12.2016/10:18h","28.12.2016","Allg.","Vorverkaufsstelle für",{"$f":"\"Namexyz\" & TabelleRes[[#This Row],[Vorname]]","v":"NamexyzVorverkaufsstelle für"},"","keine Strasse","CH-10009","ort232",null,"liliane.hofer@itkiosk.ch","Nein","VV Höngg, Verkauf in Laden","1","links, Reihe 5 ",98,"regulär","CHF",30,"*** e-Tickets gedruckt ***","3"]
["409063-Kun","28.12.2016/10:18h","28.12.2016","Allg.","Vorverkaufsstelle für",{"$f":"\"Namexyz\" & TabelleRes[[#This Row],[Vorname]]","v":"NamexyzVorverkaufsstelle für"},"","keine Strasse","CH-10010","ort233",null,"liliane.hofer@itkiosk.ch","Nein","VV Höngg, Verkauf in Laden","1","links, Reihe 5 ",99,"regulär","CHF",30,"*** e-Tickets gedruckt ***","3"]
["409063-Kun","28.12.2016/10:18h","28.12.2016","Allg.","Vorverkaufsstelle für",{"$f":"\"Namexyz\" & TabelleRes[[#This Row],[Vorname]]","v":"NamexyzVorverkaufsstelle für"},"","keine Strasse","CH-10011","ort234",null,"liliane.hofer@itkiosk.ch","Nein","VV Höngg, Verkauf in Laden","1","links, Reihe 5 ",100,"regulär","CHF",30,"*** e-Tickets gedruckt ***","3"]
["409222-Sch","30.12.2016/14:21h","30.12.2016","","Luzi",{"$f":"\"Namexyz\" & TabelleRes[[#This Row],[Vorname]]","v":"NamexyzLuzi"},"","Höhenstrasse 20","CH-10000","ort223",null,"liliane.hofer@itkiosk.ch","Nein","e liebe Gruess!","1","rechts, Reihe 5 ",101,"regulär","CHF",30,"*** e-Tickets gedruckt ***","1"]
["409222-Sch","30.12.2016/14:21h","30.12.2016","","Luzi",{"$f":"\"Namexyz\" & TabelleRes[[#This Row],[Vorname]]","v":"NamexyzLuzi"},"","Höhenstrasse 20","CH-10001","ort224",null,"liliane.hofer@itkiosk.ch","Nein","e liebe Gruess!","1","rechts, Reihe 5 ",102,"regulär","CHF",30,"*** e-Tickets gedruckt ***","1"]
["409266-Sch","31.12.2016/14:38h","31.12.2016","","Luzi",{"$f":"\"Namexyz\" & TabelleRes[[#This Row],[Vorname]]","v":"NamexyzLuzi"},"","xxxx","CH-9998","ort221",null,"liliane.hofer@itkiosk.ch","Nein","","1","rechts, Reihe 5 ",103,"regulär","CHF",30,"*** e-Tickets gedruckt ***","1"]
["409266-Sch","31.12.2016/14:38h","31.12.2016","","Luzi",{"$f":"\"Namexyz\" & TabelleRes[[#This Row],[Vorname]]","v":"NamexyzLuzi"},"","xxxx","CH-9999","ort222",null,"liliane.hofer@itkiosk.ch","Nein","","1","rechts, Reihe 5 ",104,"regulär","CHF",30,"*** e-Tickets gedruckt ***","1"]
["409935-Wür","09.01.2017/21:36h","09.01.2017","","Markus",{"$f":"\"Namexyz\" & TabelleRes[[#This Row],[Vorname]]","v":"NamexyzMarkus"},"","Ankenhofstrasse 17","CH-9948","ort171",null,"liliane.hofer@itkiosk.ch","Nein","","1","rechts, Reihe 5 ",106,"regulär","CHF",30,"*** e-Tickets gedruckt ***","1"]
["409935-Wür","09.01.2017/21:36h","09.01.2017","","Markus",{"$f":"\"Namexyz\" & TabelleRes[[#This Row],[Vorname]]","v":"NamexyzMarkus"},"","Ankenhofstrasse 17","CH-9949","ort172",null,"liliane.hofer@itkiosk.ch","Nein","","1","rechts, Reihe 5 ",107,"regulär","CHF",30,"*** e-Tickets gedruckt ***","1"]
["409373-Bra","03.01.2017/17:51h","03.01.2017","Frau","Ruth",{"$f":"\"Namexyz\" & TabelleRes[[#This Row],[Vorname]]","v":"NamexyzRuth"},"","Rütiweg 13","CH-9990","ort213",null,"liliane.hofer@itkiosk.ch","Nein","","1","links, Reihe 6 ",115,"regulär","CHF",30,"*** e-Tickets gedruckt ***","1"]
["409373-Bra","03.01.2017/17:51h","03.01.2017","Frau","Ruth",{"$f":"\"Namexyz\" & TabelleRes[[#This Row],[Vorname]]","v":"NamexyzRuth"},"","Rütiweg 13","CH-9991","ort214",null,"liliane.hofer@itkiosk.ch","Nein","","1","links, Reihe 6 ",116,"regulär","CHF",30,"*** e-Tickets gedruckt ***","1"]
["409373-Bra","03.01.2017/17:51h","03.01.2017","Frau","Ruth",{"$f":"\"Namexyz\" & TabelleRes[[#This Row],[Vorname]]","v":"NamexyzRuth"},"","Rütiweg 13","CH-9992","ort215",null,"liliane.hofer@itkiosk.ch","Nein","","1","links, Reihe 6 ",117,"regulär","CHF",30,"*** e-Tickets gedruckt ***","1"]
["409373-Bra","03.01.2017/17:51h","03.01.2017","Frau","Ruth",{"$f":"\"Namexyz\" & TabelleRes[[#This Row],[Vorname]]","v":"NamexyzRuth"},"","Rütiweg 13","CH-9993","ort216",null,"liliane.hofer@itkiosk.ch","Nein","","1","links, Reihe 6 ",118,"regulär","CHF",30,"*** e-Tickets gedruckt ***","1"]
["409373-Bra","03.01.2017/17:51h","03.01.2017","Frau","Ruth",{"$f":"\"Namexyz\" & TabelleRes[[#This Row],[Vorname]]","v":"NamexyzRuth"},"","Rütiweg 13","CH-9994","ort217",null,"liliane.hofer@itkiosk.ch","Nein","","1","links, Reihe 6 ",119,"regulär","CHF",30,"*** e-Tickets gedruckt ***","1"]
["409222-Sch","30.12.2016/14:21h","30.12.2016","","Luzi",{"$f":"\"Namexyz\" & TabelleRes[[#This Row],[Vorname]]","v":"NamexyzLuzi"},"","Höhenstrasse 20","CH-10002","ort225",null,"liliane.hofer@itkiosk.ch","Nein","e liebe Gruess!","1","links, Reihe 6 ",120,"regulär","CHF",30,"*** e-Tickets gedruckt ***","1"]
["409222-Sch","30.12.2016/14:21h","30.12.2016","","Luzi",{"$f":"\"Namexyz\" & TabelleRes[[#This Row],[Vorname]]","v":"NamexyzLuzi"},"","Höhenstrasse 20","CH-10003","ort226",null,"liliane.hofer@itkiosk.ch","Nein","e liebe Gruess!","1","links, Reihe 6 ",121,"regulär","CHF",30,"*** e-Tickets gedruckt ***","1"]
["409222-Sch","30.12.2016/14:21h","30.12.2016","","Luzi",{"$f":"\"Namexyz\" & TabelleRes[[#This Row],[Vorname]]","v":"NamexyzLuzi"},"","Höhenstrasse 20","CH-10004","ort227",null,"liliane.hofer@itkiosk.ch","Nein","e liebe Gruess!","1","links, Reihe 6 ",122,"regulär","CHF",30,"*** e-Tickets gedruckt ***","1"]
["408705-Amm","21.12.2016/06:21h","21.12.2016","Herr","Hans",{"$f":"\"Namexyz\" & TabelleRes[[#This Row],[Vorname]]","v":"NamexyzHans"},"","Beckenhofstrasse 46","CH-10035","ort258",null,"liliane.hofer@itkiosk.ch","Nein","","1","rechts, Reihe 6 ",123,"regulär","CHF",30,"*** e-Tickets gedruckt ***","1"]
["408705-Amm","21.12.2016/06:21h","21.12.2016","Herr","Hans",{"$f":"\"Namexyz\" & TabelleRes[[#This Row],[Vorname]]","v":"NamexyzHans"},"","Beckenhofstrasse 46","CH-10036","ort259",null,"liliane.hofer@itkiosk.ch","Nein","","1","rechts, Reihe 6 ",124,"regulär","CHF",30,"*** e-Tickets gedruckt ***","1"]
["408705-Amm","21.12.2016/06:21h","21.12.2016","Herr","Hans",{"$f":"\"Namexyz\" & TabelleRes[[#This Row],[Vorname]]","v":"NamexyzHans"},"","Beckenhofstrasse 46","CH-10037","ort260",null,"liliane.hofer@itkiosk.ch","Nein","","1","rechts, Reihe 6 ",125,"regulär","CHF",30,"*** e-Tickets gedruckt ***","1"]
["409822-Sch","09.01.2017/11:09h","09.01.2017","Frau","Marlis",{"$f":"\"Namexyz\" & TabelleRes[[#This Row],[Vorname]]","v":"NamexyzMarlis"},"","Ankenhofstrasse 19","CH-9956","ort179",null,"liliane.hofer@itkiosk.ch","Nein","","1","rechts, Reihe 6 ",126,"regulär","CHF",30,"*** e-Tickets gedruckt ***","1"]
["409822-Sch","09.01.2017/11:09h","09.01.2017","Frau","Marlis",{"$f":"\"Namexyz\" & TabelleRes[[#This Row],[Vorname]]","v":"NamexyzMarlis"},"","Ankenhofstrasse 19","CH-9957","ort180",null,"liliane.hofer@itkiosk.ch","Nein","","1","rechts, Reihe 6 ",127,"regulär","CHF",30,"*** e-Tickets gedruckt ***","1"]
["409841-Sch","09.01.2017/13:54h","09.01.2017","","Luzi",{"$f":"\"Namexyz\" & TabelleRes[[#This Row],[Vorname]]","v":"NamexyzLuzi"},"","xcxcxc","CH-9953","ort176",null,"liliane.hofer@itkiosk.ch","Nein","der Car wird immer grösser!","1","rechts, Reihe 6 ",128,"regulär","CHF",30,"*** e-Tickets gedruckt ***","1"]
["409841-Sch","09.01.2017/13:54h","09.01.2017","","Luzi",{"$f":"\"Namexyz\" & TabelleRes[[#This Row],[Vorname]]","v":"NamexyzLuzi"},"","xcxcxc","CH-9954","ort177",null,"liliane.hofer@itkiosk.ch","Nein","der Car wird immer grösser!","1","rechts, Reihe 6 ",129,"regulär","CHF",30,"*** e-Tickets gedruckt ***","1"]
["409841-Sch","09.01.2017/13:54h","09.01.2017","","Luzi",{"$f":"\"Namexyz\" & TabelleRes[[#This Row],[Vorname]]","v":"NamexyzLuzi"},"","xcxcxc","CH-9955","ort178",null,"liliane.hofer@itkiosk.ch","Nein","der Car wird immer grösser!","1","rechts, Reihe 6 ",130,"regulär","CHF",30,"*** e-Tickets gedruckt ***","1"]
["410164-Sch","12.01.2017/09:07h","12.01.2017","","Luzi",{"$f":"\"Namexyz\" & TabelleRes[[#This Row],[Vorname]]","v":"NamexyzLuzi"},"","xcxc","CH-9919","ort142",null,"liliane.hofer@itkiosk.ch","Nein","no eins!","1","rechts, Reihe 6 ",131,"regulär","CHF",30,"*** e-Tickets gedruckt ***","1"]
["410032-Hau","10.01.2017/20:38h","10.01.2017","","Ernst",{"$f":"\"Namexyz\" & TabelleRes[[#This Row],[Vorname]]","v":"NamexyzErnst"},"","Naglerwiesenstr. 72","CH-9945","ort168",null,"liliane.hofer@itkiosk.ch","Nein","","1","links, Reihe 7 ",136,"regulär","CHF",30,"*** e-Tickets gedruckt ***","1"]
["410032-Hau","10.01.2017/20:38h","10.01.2017","","Ernst",{"$f":"\"Namexyz\" & TabelleRes[[#This Row],[Vorname]]","v":"NamexyzErnst"},"","Naglerwiesenstr. 72","CH-9946","ort169",null,"liliane.hofer@itkiosk.ch","Nein","","1","links, Reihe 7 ",137,"regulär","CHF",30,"*** e-Tickets gedruckt ***","1"]
["410032-Hau","10.01.2017/20:38h","10.01.2017","","Ernst",{"$f":"\"Namexyz\" & TabelleRes[[#This Row],[Vorname]]","v":"NamexyzErnst"},"","Naglerwiesenstr. 72","CH-9947","ort170",null,"liliane.hofer@itkiosk.ch","Nein","","1","links, Reihe 7 ",138,"regulär","CHF",30,"*** e-Tickets gedruckt ***","1"]
["409049-Kun","28.12.2016/10:15h","28.12.2016","Allg.","Vorverkaufsstelle für",{"$f":"\"Namexyz\" & TabelleRes[[#This Row],[Vorname]]","v":"NamexyzVorverkaufsstelle für"},"","keine Strasse","CH-10024","ort247",null,"liliane.hofer@itkiosk.ch","Nein","12 Tickets für VV1 Höngg","1","links, Reihe 7 ",139,"regulär","CHF",30,"*** e-Tickets gedruckt ***","3"]
["409049-Kun","28.12.2016/10:15h","28.12.2016","Allg.","Vorverkaufsstelle für",{"$f":"\"Namexyz\" & TabelleRes[[#This Row],[Vorname]]","v":"NamexyzVorverkaufsstelle für"},"","keine Strasse","CH-10025","ort248",null,"liliane.hofer@itkiosk.ch","Nein","12 Tickets für VV1 Höngg","1","links, Reihe 7 ",140,"regulär","CHF",30,"*** e-Tickets gedruckt ***","3"]
["409049-Kun","28.12.2016/10:15h","28.12.2016","Allg.","Vorverkaufsstelle für",{"$f":"\"Namexyz\" & TabelleRes[[#This Row],[Vorname]]","v":"NamexyzVorverkaufsstelle für"},"","keine Strasse","CH-10026","ort249",null,"liliane.hofer@itkiosk.ch","Nein","12 Tickets für VV1 Höngg","1","links, Reihe 7 ",141,"regulär","CHF",30,"*** e-Tickets gedruckt ***","3"]
["409049-Kun","28.12.2016/10:15h","28.12.2016","Allg.","Vorverkaufsstelle für",{"$f":"\"Namexyz\" & TabelleRes[[#This Row],[Vorname]]","v":"NamexyzVorverkaufsstelle für"},"","keine Strasse","CH-10027","ort250",null,"liliane.hofer@itkiosk.ch","Nein","12 Tickets für VV1 Höngg","1","links, Reihe 7 ",142,"regulär","CHF",30,"*** e-Tickets gedruckt ***","3"]
["409049-Kun","28.12.2016/10:15h","28.12.2016","Allg.","Vorverkaufsstelle für",{"$f":"\"Namexyz\" & TabelleRes[[#This Row],[Vorname]]","v":"NamexyzVorverkaufsstelle für"},"","keine Strasse","CH-10028","ort251",null,"liliane.hofer@itkiosk.ch","Nein","12 Tickets für VV1 Höngg","1","links, Reihe 7 ",143,"regulär","CHF",30,"*** e-Tickets gedruckt ***","3"]
["409049-Kun","28.12.2016/10:15h","28.12.2016","Allg.","Vorverkaufsstelle für",{"$f":"\"Namexyz\" & TabelleRes[[#This Row],[Vorname]]","v":"NamexyzVorverkaufsstelle für"},"","keine Strasse","CH-10029","ort252",null,"liliane.hofer@itkiosk.ch","Nein","12 Tickets für VV1 Höngg","1","links, Reihe 7 ",144,"regulär","CHF",30,"*** e-Tickets gedruckt ***","3"]
["409063-Kun","28.12.2016/10:18h","28.12.2016","Allg.","Vorverkaufsstelle für",{"$f":"\"Namexyz\" & TabelleRes[[#This Row],[Vorname]]","v":"NamexyzVorverkaufsstelle für"},"","keine Strasse","CH-10012","ort235",null,"liliane.hofer@itkiosk.ch","Nein","VV Höngg, Verkauf in Laden","1","rechts, Reihe 7 ",145,"regulär","CHF",30,"*** e-Tickets gedruckt ***","3"]
["409063-Kun","28.12.2016/10:18h","28.12.2016","Allg.","Vorverkaufsstelle für",{"$f":"\"Namexyz\" & TabelleRes[[#This Row],[Vorname]]","v":"NamexyzVorverkaufsstelle für"},"","keine Strasse","CH-10013","ort236",null,"liliane.hofer@itkiosk.ch","Nein","VV Höngg, Verkauf in Laden","1","rechts, Reihe 7 ",146,"regulär","CHF",30,"*** e-Tickets gedruckt ***","3"]
["409063-Kun","28.12.2016/10:18h","28.12.2016","Allg.","Vorverkaufsstelle für",{"$f":"\"Namexyz\" & TabelleRes[[#This Row],[Vorname]]","v":"NamexyzVorverkaufsstelle für"},"","keine Strasse","CH-10014","ort237",null,"liliane.hofer@itkiosk.ch","Nein","VV Höngg, Verkauf in Laden","1","rechts, Reihe 7 ",147,"regulär","CHF",30,"*** e-Tickets gedruckt ***","3"]
["409063-Kun","28.12.2016/10:18h","28.12.2016","Allg.","Vorverkaufsstelle für",{"$f":"\"Namexyz\" & TabelleRes[[#This Row],[Vorname]]","v":"NamexyzVorverkaufsstelle für"},"","keine Strasse","CH-10015","ort238",null,"liliane.hofer@itkiosk.ch","Nein","VV Höngg, Verkauf in Laden","1","rechts, Reihe 7 ",148,"regulär","CHF",30,"*** e-Tickets gedruckt ***","3"]
["409063-Kun","28.12.2016/10:18h","28.12.2016","Allg.","Vorverkaufsstelle für",{"$f":"\"Namexyz\" & TabelleRes[[#This Row],[Vorname]]","v":"NamexyzVorverkaufsstelle für"},"","keine Strasse","CH-10016","ort239",null,"liliane.hofer@itkiosk.ch","Nein","VV Höngg, Verkauf in Laden","1","rechts, Reihe 7 ",149,"regulär","CHF",30,"*** e-Tickets gedruckt ***","3"]
["409063-Kun","28.12.2016/10:18h","28.12.2016","Allg.","Vorverkaufsstelle für",{"$f":"\"Namexyz\" & TabelleRes[[#This Row],[Vorname]]","v":"NamexyzVorverkaufsstelle für"},"","keine Strasse","CH-10017","ort240",null,"liliane.hofer@itkiosk.ch","Nein","VV Höngg, Verkauf in Laden","1","rechts, Reihe 7 ",150,"regulär","CHF",30,"*** e-Tickets gedruckt ***","3"]
["409677-Spy","07.01.2017/21:28h","07.01.2017","Frau","Theres",{"$f":"\"Namexyz\" & TabelleRes[[#This Row],[Vorname]]","v":"NamexyzTheres"},"","Rüchligstr. 10","CH-9962","ort185",null,"liliane.hofer@itkiosk.ch","Nein","","1","links, Reihe 8 ",162,"regulär","CHF",30,"*** e-Tickets gedruckt ***","1"]
["409380-Büc","03.01.2017/18:11h","03.01.2017","Fam.","Alfred und Elisabeth",{"$f":"\"Namexyz\" & TabelleRes[[#This Row],[Vorname]]","v":"NamexyzAlfred und Elisabeth"},"","Loorenrain 34","CH-9986","ort209",null,"liliane.hofer@itkiosk.ch","Nein","","1","links, Reihe 8 ",163,"regulär","CHF",30,"*** e-Tickets gedruckt ***","1"]
["409380-Büc","03.01.2017/18:11h","03.01.2017","Fam.","Alfred und Elisabeth",{"$f":"\"Namexyz\" & TabelleRes[[#This Row],[Vorname]]","v":"NamexyzAlfred und Elisabeth"},"","Loorenrain 34","CH-9987","ort210",null,"liliane.hofer@itkiosk.ch","Nein","","1","links, Reihe 8 ",164,"regulär","CHF",30,"*** e-Tickets gedruckt ***","1"]
["409380-Büc","03.01.2017/18:11h","03.01.2017","Fam.","Alfred und Elisabeth",{"$f":"\"Namexyz\" & TabelleRes[[#This Row],[Vorname]]","v":"NamexyzAlfred und Elisabeth"},"","Loorenrain 34","CH-9988","ort211",null,"liliane.hofer@itkiosk.ch","Nein","","1","links, Reihe 8 ",165,"regulär","CHF",30,"*** e-Tickets gedruckt ***","1"]
["409380-Büc","03.01.2017/18:11h","03.01.2017","Fam.","Alfred und Elisabeth",{"$f":"\"Namexyz\" & TabelleRes[[#This Row],[Vorname]]","v":"NamexyzAlfred und Elisabeth"},"","Loorenrain 34","CH-9989","ort212",null,"liliane.hofer@itkiosk.ch","Nein","","1","links, Reihe 8 ",166,"regulär","CHF",30,"*** e-Tickets gedruckt ***","1"]
["409663-Böh","07.01.2017/20:46h","07.01.2017","Frau","Anja",{"$f":"\"Namexyz\" & TabelleRes[[#This Row],[Vorname]]","v":"NamexyzAnja"},"Freizeit & Reisen (tel. Vereinbarung)","Rüchligstr. 10","CH-9963","ort186",null,"liliane.hofer@itkiosk.ch","Nein","Habe ich tel. vereinbart mit der Organisation 'Freizeit & Reisen'. Ich drucke die Tickets aus und sie werden an Abendkasse abgeholt.","1","rechts, Reihe 8 ",167,"regulär","CHF",30,"*** e-Tickets gedruckt ***","1"]
["409663-Böh","07.01.2017/20:46h","07.01.2017","Frau","Anja",{"$f":"\"Namexyz\" & TabelleRes[[#This Row],[Vorname]]","v":"NamexyzAnja"},"Freizeit & Reisen (tel. Vereinbarung)","Rüchligstr. 10","CH-9964","ort187",null,"liliane.hofer@itkiosk.ch","Nein","Habe ich tel. vereinbart mit der Organisation 'Freizeit & Reisen'. Ich drucke die Tickets aus und sie werden an Abendkasse abgeholt.","1","rechts, Reihe 8 ",168,"regulär","CHF",30,"*** e-Tickets gedruckt ***","1"]
["409663-Böh","07.01.2017/20:46h","07.01.2017","Frau","Anja",{"$f":"\"Namexyz\" & TabelleRes[[#This Row],[Vorname]]","v":"NamexyzAnja"},"Freizeit & Reisen (tel. Vereinbarung)","Rüchligstr. 10","CH-9965","ort188",null,"liliane.hofer@itkiosk.ch","Nein","Habe ich tel. vereinbart mit der Organisation 'Freizeit & Reisen'. Ich drucke die Tickets aus und sie werden an Abendkasse abgeholt.","1","rechts, Reihe 8 ",169,"regulär","CHF",30,"*** e-Tickets gedruckt ***","1"]
["409663-Böh","07.01.2017/20:46h","07.01.2017","Frau","Anja",{"$f":"\"Namexyz\" & TabelleRes[[#This Row],[Vorname]]","v":"NamexyzAnja"},"Freizeit & Reisen (tel. Vereinbarung)","Rüchligstr. 10","CH-9966","ort189",null,"liliane.hofer@itkiosk.ch","Nein","Habe ich tel. vereinbart mit der Organisation 'Freizeit & Reisen'. Ich drucke die Tickets aus und sie werden an Abendkasse abgeholt.","1","rechts, Reihe 8 ",170,"regulär","CHF",30,"*** e-Tickets gedruckt ***","1"]
["409663-Böh","07.01.2017/20:46h","07.01.2017","Frau","Anja",{"$f":"\"Namexyz\" & TabelleRes[[#This Row],[Vorname]]","v":"NamexyzAnja"},"Freizeit & Reisen (tel. Vereinbarung)","Rüchligstr. 10","CH-9967","ort190",null,"liliane.hofer@itkiosk.ch","Nein","Habe ich tel. vereinbart mit der Organisation 'Freizeit & Reisen'. Ich drucke die Tickets aus und sie werden an Abendkasse abgeholt.","1","rechts, Reihe 8 ",171,"regulär","CHF",30,"*** e-Tickets gedruckt ***","1"]
["409663-Böh","07.01.2017/20:46h","07.01.2017","Frau","Anja",{"$f":"\"Namexyz\" & TabelleRes[[#This Row],[Vorname]]","v":"NamexyzAnja"},"Freizeit & Reisen (tel. Vereinbarung)","Rüchligstr. 10","CH-9968","ort191",null,"liliane.hofer@itkiosk.ch","Nein","Habe ich tel. vereinbart mit der Organisation 'Freizeit & Reisen'. Ich drucke die Tickets aus und sie werden an Abendkasse abgeholt.","1","rechts, Reihe 8 ",172,"regulär","CHF",30,"*** e-Tickets gedruckt ***","1"]
["409799-Lät","08.01.2017/22:07h","08.01.2017","Herr","Ernst",{"$f":"\"Namexyz\" & TabelleRes[[#This Row],[Vorname]]","v":"NamexyzErnst"},"","Samstagernstr. 1","CH-9958","ort181",null,"liliane.hofer@itkiosk.ch","Nein","","1","links, Reihe 9 ",185,"regulär","CHF",30,"*** e-Tickets gedruckt ***","1"]
["409799-Lät","08.01.2017/22:07h","08.01.2017","Herr","Ernst",{"$f":"\"Namexyz\" & TabelleRes[[#This Row],[Vorname]]","v":"NamexyzErnst"},"","Samstagernstr. 1","CH-9959","ort182",null,"liliane.hofer@itkiosk.ch","Nein","","1","links, Reihe 9 ",186,"regulär","CHF",30,"*** e-Tickets gedruckt ***","1"]
["409799-Lät","08.01.2017/22:07h","08.01.2017","Herr","Ernst",{"$f":"\"Namexyz\" & TabelleRes[[#This Row],[Vorname]]","v":"NamexyzErnst"},"","Samstagernstr. 1","CH-9960","ort183",null,"liliane.hofer@itkiosk.ch","Nein","","1","links, Reihe 9 ",187,"regulär","CHF",30,"*** e-Tickets gedruckt ***","1"]
["409799-Lät","08.01.2017/22:07h","08.01.2017","Herr","Ernst",{"$f":"\"Namexyz\" & TabelleRes[[#This Row],[Vorname]]","v":"NamexyzErnst"},"","Samstagernstr. 1","CH-9961","ort184",null,"liliane.hofer@itkiosk.ch","Nein","","1","links, Reihe 9 ",188,"regulär","CHF",30,"*** e-Tickets gedruckt ***","1"]
["409663-Böh","07.01.2017/20:46h","07.01.2017","Frau","Anja",{"$f":"\"Namexyz\" & TabelleRes[[#This Row],[Vorname]]","v":"NamexyzAnja"},"Freizeit & Reisen (tel. Vereinbarung)","Rüchligstr. 10","CH-9969","ort192",null,"liliane.hofer@itkiosk.ch","Nein","Habe ich tel. vereinbart mit der Organisation 'Freizeit & Reisen'. Ich drucke die Tickets aus und sie werden an Abendkasse abgeholt.","1","rechts, Reihe 9 ",189,"regulär","CHF",30,"*** e-Tickets gedruckt ***","1"]
["409663-Böh","07.01.2017/20:46h","07.01.2017","Frau","Anja",{"$f":"\"Namexyz\" & TabelleRes[[#This Row],[Vorname]]","v":"NamexyzAnja"},"Freizeit & Reisen (tel. Vereinbarung)","Rüchligstr. 10","CH-9970","ort193",null,"liliane.hofer@itkiosk.ch","Nein","Habe ich tel. vereinbart mit der Organisation 'Freizeit & Reisen'. Ich drucke die Tickets aus und sie werden an Abendkasse abgeholt.","1","rechts, Reihe 9 ",190,"regulär","CHF",30,"*** e-Tickets gedruckt ***","1"]
["409663-Böh","07.01.2017/20:46h","07.01.2017","Frau","Anja",{"$f":"\"Namexyz\" & TabelleRes[[#This Row],[Vorname]]","v":"NamexyzAnja"},"Freizeit & Reisen (tel. Vereinbarung)","Rüchligstr. 10","CH-9971","ort194",null,"liliane.hofer@itkiosk.ch","Nein","Habe ich tel. vereinbart mit der Organisation 'Freizeit & Reisen'. Ich drucke die Tickets aus und sie werden an Abendkasse abgeholt.","1","rechts, Reihe 9 ",191,"regulär","CHF",30,"*** e-Tickets gedruckt ***","1"]
["409663-Böh","07.01.2017/20:46h","07.01.2017","Frau","Anja",{"$f":"\"Namexyz\" & TabelleRes[[#This Row],[Vorname]]","v":"NamexyzAnja"},"Freizeit & Reisen (tel. Vereinbarung)","Rüchligstr. 10","CH-9972","ort195",null,"liliane.hofer@itkiosk.ch","Nein","Habe ich tel. vereinbart mit der Organisation 'Freizeit & Reisen'. Ich drucke die Tickets aus und sie werden an Abendkasse abgeholt.","1","rechts, Reihe 9 ",192,"regulär","CHF",30,"*** e-Tickets gedruckt ***","1"]
["409663-Böh","07.01.2017/20:46h","07.01.2017","Frau","Anja",{"$f":"\"Namexyz\" & TabelleRes[[#This Row],[Vorname]]","v":"NamexyzAnja"},"Freizeit & Reisen (tel. Vereinbarung)","Rüchligstr. 10","CH-9973","ort196",null,"liliane.hofer@itkiosk.ch","Nein","Habe ich tel. vereinbart mit der Organisation 'Freizeit & Reisen'. Ich drucke die Tickets aus und sie werden an Abendkasse abgeholt.","1","rechts, Reihe 9 ",193,"regulär","CHF",30,"*** e-Tickets gedruckt ***","1"]
["409663-Böh","07.01.2017/20:46h","07.01.2017","Frau","Anja",{"$f":"\"Namexyz\" & TabelleRes[[#This Row],[Vorname]]","v":"NamexyzAnja"},"Freizeit & Reisen (tel. Vereinbarung)","Rüchligstr. 10","CH-9974","ort197",null,"liliane.hofer@itkiosk.ch","Nein","Habe ich tel. vereinbart mit der Organisation 'Freizeit & Reisen'. Ich drucke die Tickets aus und sie werden an Abendkasse abgeholt.","1","rechts, Reihe 9 ",194,"regulär","CHF",30,"*** e-Tickets gedruckt ***","1"]
["410131-Pfe","11.01.2017/16:33h","11.01.2017","Herr","Ferdinand",{"$f":"\"Namexyz\" & TabelleRes[[#This Row],[Vorname]]","v":"NamexyzFerdinand"},"","Tulpenweg 8","CH-9926","ort149",null,"liliane.hofer@itkiosk.ch","Nein","","1","links, Reihe 10 ",210,"regulär","CHF",30,"*** e-Tickets gedruckt ***","1"]
["409915-Kun","09.01.2017/18:05h","09.01.2017","Allg.","Vorverkaufsstelle für",{"$f":"\"Namexyz\" & TabelleRes[[#This Row],[Vorname]]","v":"NamexyzVorverkaufsstelle für"},"","keine Strasse","CH-9950","ort173",null,"liliane.hofer@itkiosk.ch","Nein","an Abendkasse bereitlegen \r\ndort bezahlen","1","rechts, Reihe 10 ",211,"regulär","CHF",30,"*** e-Tickets gedruckt ***","3"]
["409915-Kun","09.01.2017/18:05h","09.01.2017","Allg.","Vorverkaufsstelle für",{"$f":"\"Namexyz\" & TabelleRes[[#This Row],[Vorname]]","v":"NamexyzVorverkaufsstelle für"},"","keine Strasse","CH-9951","ort174",null,"liliane.hofer@itkiosk.ch","Nein","an Abendkasse bereitlegen \r\ndort bezahlen","1","rechts, Reihe 10 ",212,"regulär","CHF",30,"*** e-Tickets gedruckt ***","3"]
["410138-Reu","11.01.2017/17:36h","11.01.2017","Frau","Hildegard",{"$f":"\"Namexyz\" & TabelleRes[[#This Row],[Vorname]]","v":"NamexyzHildegard"},"","Bodenstrasse 8","CH-9924","ort147",null,"liliane.hofer@itkiosk.ch","Nein","","1","links, Reihe 11 ",224,"regulär","CHF",30,"*** e-Tickets gedruckt ***","1"]
["410138-Reu","11.01.2017/17:36h","11.01.2017","Frau","Hildegard",{"$f":"\"Namexyz\" & TabelleRes[[#This Row],[Vorname]]","v":"NamexyzHildegard"},"","Bodenstrasse 8","CH-9925","ort148",null,"liliane.hofer@itkiosk.ch","Nein","","1","links, Reihe 11 ",225,"regulär","CHF",30,"*** e-Tickets gedruckt ***","1"]
["409571-Bon","06.01.2017/15:29h","06.01.2017","Frau","Domenica",{"$f":"\"Namexyz\" & TabelleRes[[#This Row],[Vorname]]","v":"NamexyzDomenica"},"","Haldenstrasse 69","CH-9975","ort198",null,"liliane.hofer@itkiosk.ch","Nein","","1","links, Reihe 11 ",226,"regulär","CHF",30,"*** e-Tickets gedruckt ***","1"]
["409571-Bon","06.01.2017/15:29h","06.01.2017","Frau","Domenica",{"$f":"\"Namexyz\" & TabelleRes[[#This Row],[Vorname]]","v":"NamexyzDomenica"},"","Haldenstrasse 69","CH-9976","ort199",null,"liliane.hofer@itkiosk.ch","Nein","","1","links, Reihe 11 ",227,"regulär","CHF",30,"*** e-Tickets gedruckt ***","1"]
["409571-Bon","06.01.2017/15:29h","06.01.2017","Frau","Domenica",{"$f":"\"Namexyz\" & TabelleRes[[#This Row],[Vorname]]","v":"NamexyzDomenica"},"","Haldenstrasse 69","CH-9977","ort200",null,"liliane.hofer@itkiosk.ch","Nein","","1","links, Reihe 11 ",228,"regulär","CHF",30,"*** e-Tickets gedruckt ***","1"]
["407928-Kun","11.12.2016/23:53h","11.12.2016","Allg.","Vorverkaufsstelle für",{"$f":"\"Namexyz\" & TabelleRes[[#This Row],[Vorname]]","v":"NamexyzVorverkaufsstelle für"},"","keine Strasse","CH-10043","ort266",null,"liliane.hofer@itkiosk.ch","Nein","für Hofer, prov. reserviert","1","links, Reihe 11 ",229,"regulär","CHF",30,"*** e-Tickets gedruckt ***","1"]
["407928-Kun","11.12.2016/23:53h","11.12.2016","Allg.","Vorverkaufsstelle für",{"$f":"\"Namexyz\" & TabelleRes[[#This Row],[Vorname]]","v":"NamexyzVorverkaufsstelle für"},"","keine Strasse","CH-10044","ort267",null,"liliane.hofer@itkiosk.ch","Nein","für Hofer, prov. reserviert","1","links, Reihe 11 ",230,"regulär","CHF",30,"*** e-Tickets gedruckt ***","1"]
["407928-Kun","11.12.2016/23:53h","11.12.2016","Allg.","Vorverkaufsstelle für",{"$f":"\"Namexyz\" & TabelleRes[[#This Row],[Vorname]]","v":"NamexyzVorverkaufsstelle für"},"","keine Strasse","CH-10045","ort268",null,"liliane.hofer@itkiosk.ch","Nein","für Hofer, prov. reserviert","1","links, Reihe 11 ",231,"regulär","CHF",30,"*** e-Tickets gedruckt ***","1"]
["407928-Kun","11.12.2016/23:53h","11.12.2016","Allg.","Vorverkaufsstelle für",{"$f":"\"Namexyz\" & TabelleRes[[#This Row],[Vorname]]","v":"NamexyzVorverkaufsstelle für"},"","keine Strasse","CH-10046","ort269",null,"liliane.hofer@itkiosk.ch","Nein","für Hofer, prov. reserviert","1","links, Reihe 11 ",232,"regulär","CHF",30,"*** e-Tickets gedruckt ***","1"]
["408866-Spi","23.12.2016/18:48h","23.12.2016","Herr"," Urs",{"$f":"\"Namexyz\" & TabelleRes[[#This Row],[Vorname]]","v":"Namexyz Urs"},"","Müh","CH-10033","ort256",null,"liliane.hofer@itkiosk.ch","Nein","","1","rechts, Reihe 11 ",233,"regulär","CHF",30,"*** e-Tickets gedruckt ***","1"]
["408866-Spi","23.12.2016/18:48h","23.12.2016","Herr"," Urs",{"$f":"\"Namexyz\" & TabelleRes[[#This Row],[Vorname]]","v":"Namexyz Urs"},"","Müh","CH-10034","ort257",null,"liliane.hofer@itkiosk.ch","Nein","","1","rechts, Reihe 11 ",234,"regulär","CHF",30,"*** e-Tickets gedruckt ***","1"]
["409093-Kel","28.12.2016/15:14h","28.12.2016","","Heidi",{"$f":"\"Namexyz\" & TabelleRes[[#This Row],[Vorname]]","v":"NamexyzHeidi"},"","Unterweg 82","CH-10005","ort228",null,"liliane.hofer@itkiosk.ch","Nein","","1","rechts, Reihe 11 ",235,"regulär","CHF",30,"*** e-Tickets gedruckt ***","1"]
["409418-Sch","04.01.2017/13:11h","04.01.2017","","Peter",{"$f":"\"Namexyz\" & TabelleRes[[#This Row],[Vorname]]","v":"NamexyzPeter"},"","Burstwiesenstrasse 61","CH-9984","ort207",null,"liliane.hofer@itkiosk.ch","Nein","","1","rechts, Reihe 11 ",236,"regulär","CHF",30,"*** e-Tickets gedruckt ***","1"]
["409418-Sch","04.01.2017/13:11h","04.01.2017","","Peter",{"$f":"\"Namexyz\" & TabelleRes[[#This Row],[Vorname]]","v":"NamexyzPeter"},"","Burstwiesenstrasse 61","CH-9985","ort208",null,"liliane.hofer@itkiosk.ch","Nein","","1","rechts, Reihe 11 ",237,"regulär","CHF",30,"*** e-Tickets gedruckt ***","1"]
["410301-Kel","14.01.2017/10:58h","14.01.2017","Herr","Fredi",{"$f":"\"Namexyz\" & TabelleRes[[#This Row],[Vorname]]","v":"NamexyzFredi"},"","Buttenaustr. 44","CH-9909","ort132",null,"liliane.hofer@itkiosk.ch","Nein","","1","rechts, Reihe 11 ",238,"regulär","CHF",30,"*** e-Tickets gedruckt ***","1"]
["410301-Kel","14.01.2017/10:58h","14.01.2017","Herr","Fredi",{"$f":"\"Namexyz\" & TabelleRes[[#This Row],[Vorname]]","v":"NamexyzFredi"},"","Buttenaustr. 44","CH-9910","ort133",null,"liliane.hofer@itkiosk.ch","Nein","","1","rechts, Reihe 11 ",239,"regulär","CHF",30,"*** e-Tickets gedruckt ***","1"]

{"sheet":"PivotStatistik1","index":10,"n_rows":30,"n_cols":8,"rows_kept":30,"cut":false,"hidden":false,"merged":[]}
["Statistik mit Pivot-Tabelle ",null,null,null,null,null,"Stand",{"$f":"TODAY()","v":"2017-09-03"}]
["(Auswertung der aktiven Tabelle nach Sektor, Kategorie und Wert/Preis der Plätze)"]
[]
["Einnahmen (Preis)",null,null,null,"in CHF"]
[]
["Wert oder Einnahmen","Kategorie"]
["Sektor","1","Total"]
["links, Reihe 1 ",210,210]
["links, Reihe 2 ",150,150]
["rechts, Reihe 2 ",60,60]
["links, Reihe 3 ",240,240]
["rechts, Reihe 3 ",300,300]
["links, Reihe 4 ",300,300]
["rechts, Reihe 4 ",180,180]
["links, Reihe 5 ",360,360]
["rechts, Reihe 5 ",180,180]
["links, Reihe 6 ",240,240]
["rechts, Reihe 6 ",270,270]
["links, Reihe 7 ",270,270]
["rechts, Reihe 7 ",180,180]
["links, Reihe 8 ",150,150]
["rechts, Reihe 8 ",180,180]
["links, Reihe 9 ",120,120]
["rechts, Reihe 9 ",180,180]
["links, Reihe 11 ",270,270]
["rechts, Reihe 11 ",210,210]
["rechts, Reihe 1 ",30,30]
["links, Reihe 10 ",30,30]
["rechts, Reihe 10 ",60,60]
["Total",4170,4170]

{"sheet":"PivotStatistik2","index":11,"n_rows":30,"n_cols":8,"rows_kept":30,"cut":false,"hidden":false,"merged":[]}
["Statistik mit Pivot-Tabelle ",null,null,null,null,null,"Stand",{"$f":"TODAY()","v":"2017-09-03"}]
["(Auswertung der aktiven Tabelle nach Sektor, Kategorie und Anzahl Plätze)"]
[]
[]
[]
["Anzahl Plätze","Kategorie"]
["Sektor","1","Total"]
["links, Reihe 1 ",8,8]
["links, Reihe 2 ",8,8]
["rechts, Reihe 2 ",4,4]
["links, Reihe 3 ",8,8]
["rechts, Reihe 3 ",10,10]
["links, Reihe 4 ",12,12]
["rechts, Reihe 4 ",6,6]
["links, Reihe 5 ",12,12]
["rechts, Reihe 5 ",6,6]
["links, Reihe 6 ",8,8]
["rechts, Reihe 6 ",9,9]
["links, Reihe 7 ",9,9]
["rechts, Reihe 7 ",6,6]
["links, Reihe 8 ",5,5]
["rechts, Reihe 8 ",6,6]
["links, Reihe 9 ",4,4]
["rechts, Reihe 9 ",6,6]
["links, Reihe 11 ",9,9]
["rechts, Reihe 11 ",7,7]
["rechts, Reihe 1 ",1,1]
["links, Reihe 10 ",1,1]
["rechts, Reihe 10 ",2,2]
["Total",147,147]

{"sheet":"DatenPlan","index":12,"n_rows":731,"n_cols":26,"rows_kept":731,"cut":false,"hidden":false,"merged":[]}
["Seat-Id","(leer)","Datum","Titel","Ort","Spalte1","Spalte2","Spalte3","Spalte4","Spalte5","Spalte6","Spalte7","Spalte8","Spalte9","Kategorie","Sektor","Platz","Preisoption","Währung","Preis","Status","Spalte10","Spalte11","Spalte12","Spalte13","Spalte14"]
["101114",null,"xxxxxxxxxxxxxxxxxx","Musterplan","Ref. Kirche ABC",null,null,null,null,null,null,null,null,null,"2","Empore links, Reihe 1 ","1","Regulär","CHF",40,"Platz frei"]
["101100",null,"xxxxxxxxxxxxxxxxxx","Musterplan","Ref. Kirche ABC",null,null,null,null,null,null,null,null,null,"2","Empore links, Reihe 1 ","3","Regulär","CHF",40,"Platz frei"]
["101086",null,"xxxxxxxxxxxxxxxxxx","Musterplan","Ref. Kirche ABC",null,null,null,null,null,null,null,null,null,"2","Empore links, Reihe 1 ","5","Regulär","CHF",40,"Platz frei"]
["101072",null,"xxxxxxxxxxxxxxxxxx","Musterplan","Ref. Kirche ABC",null,null,null,null,null,null,null,null,null,"2","Empore links, Reihe 1 ","7","Regulär","CHF",40,"Platz frei"]
["101058",null,"xxxxxxxxxxxxxxxxxx","Musterplan","Ref. Kirche ABC",null,null,null,null,null,null,null,null,null,"2","Empore links, Reihe 1 ","9","Regulär","CHF",40,"Platz frei"]
["101044",null,"xxxxxxxxxxxxxxxxxx","Musterplan","Ref. Kirche ABC",null,null,null,null,null,null,null,null,null,"2","Empore links, Reihe 1 ","11","Regulär","CHF",40,"Platz frei"]
["101030",null,"xxxxxxxxxxxxxxxxxx","Musterplan","Ref. Kirche ABC",null,null,null,null,null,null,null,null,null,"2","Empore links, Reihe 1 ","13","Regulär","CHF",40,"Platz frei"]
["101016",null,"xxxxxxxxxxxxxxxxxx","Musterplan","Ref. Kirche ABC",null,null,null,null,null,null,null,null,null,"2","Empore links, Reihe 1 ","15","Regulär","CHF",40,"Platz frei"]
["101002",null,"xxxxxxxxxxxxxxxxxx","Musterplan","Ref. Kirche ABC",null,null,null,null,null,null,null,null,null,"2","Empore links, Reihe 1 ","17","Regulär","CHF",40,"Platz frei"]
["100988",null,"xxxxxxxxxxxxxxxxxx","Musterplan","Ref. Kirche ABC",null,null,null,null,null,null,null,null,null,"2","Empore links, Reihe 1 ","19","Regulär","CHF",40,"Platz frei"]
["100974",null,"xxxxxxxxxxxxxxxxxx","Musterplan","Ref. Kirche ABC",null,null,null,null,null,null,null,null,null,"2","Empore links, Reihe 1 ","21","Regulär","CHF",40,"Platz frei"]
["100960",null,"xxxxxxxxxxxxxxxxxx","Musterplan","Ref. Kirche ABC",null,null,null,null,null,null,null,null,null,"2","Empore links, Reihe 1 ","23","Regulär","CHF",40,"Platz frei"]
["100946",null,"xxxxxxxxxxxxxxxxxx","Musterplan","Ref. Kirche ABC",null,null,null,null,null,null,null,null,null,"2","Empore links, Reihe 1 ","25","Regulär","CHF",40,"Platz frei"]
["100932",null,"xxxxxxxxxxxxxxxxxx","Musterplan","Ref. Kirche ABC",null,null,null,null,null,null,null,null,null,"2","Empore links, Reihe 1 ","27","Regulär","CHF",40,"Platz frei"]
["100918",null,"xxxxxxxxxxxxxxxxxx","Musterplan","Ref. Kirche ABC",null,null,null,null,null,null,null,null,null,"2","Empore links, Reihe 1 ","29","Regulär","CHF",40,"Platz frei"]
["100904",null,"xxxxxxxxxxxxxxxxxx","Musterplan","Ref. Kirche ABC",null,null,null,null,null,null,null,null,null,"2","Empore links, Reihe 1 ","31","Regulär","CHF",40,"Platz frei"]
["100890",null,"xxxxxxxxxxxxxxxxxx","Musterplan","Ref. Kirche ABC",null,null,null,null,null,null,null,null,null,"2","Empore links, Reihe 1 ","33","Regulär","CHF",40,"Platz frei"]
["100876",null,"xxxxxxxxxxxxxxxxxx","Musterplan","Ref. Kirche ABC",null,null,null,null,null,null,null,null,null,"2","Empore links, Reihe 1 ","35","Regulär","CHF",40,"Platz frei"]
["100862",null,"xxxxxxxxxxxxxxxxxx","Musterplan","Ref. Kirche ABC",null,null,null,null,null,null,null,null,null,"2","Empore links, Reihe 1 ","37","Regulär","CHF",40,"Platz frei"]
["100848",null,"xxxxxxxxxxxxxxxxxx","Musterplan","Ref. Kirche ABC",null,null,null,null,null,null,null,null,null,"2","Empore links, Reihe 1 ","39","Regulär","CHF",40,"Platz frei"]
["100834",null,"xxxxxxxxxxxxxxxxxx","Musterplan","Ref. Kirche ABC",null,null,null,null,null,null,null,null,null,"3","Empore links, Reihe 1 ","41","Regulär","CHF",30,"Platz frei"]
["100820",null,"xxxxxxxxxxxxxxxxxx","Musterplan","Ref. Kirche ABC",null,null,null,null,null,null,null,null,null,"3","Empore links, Reihe 1 ","43","Regulär","CHF",30,"Platz frei"]
["100806",null,"xxxxxxxxxxxxxxxxxx","Musterplan","Ref. Kirche ABC",null,null,null,null,null,null,null,null,null,"3","Empore links, Reihe 1 ","45","Regulär","CHF",30,"Platz frei"]
["100792",null,"xxxxxxxxxxxxxxxxxx","Musterplan","Ref. Kirche ABC",null,null,null,null,null,null,null,null,null,"3","Empore links, Reihe 1 ","47","Regulär","CHF",30,"Platz frei"]
["100778",null,"xxxxxxxxxxxxxxxxxx","Musterplan","Ref. Kirche ABC",null,null,null,null,null,null,null,null,null,"3","Empore links, Reihe 1 ","49","Regulär","CHF",30,"Platz frei"]
["100764",null,"xxxxxxxxxxxxxxxxxx","Musterplan","Ref. Kirche ABC",null,null,null,null,null,null,null,null,null,"3","Empore links, Reihe 1 ","51","Regulär","CHF",30,"Platz frei"]
["101113",null,"xxxxxxxxxxxxxxxxxx","Musterplan","Ref. Kirche ABC",null,null,null,null,null,null,null,null,null,"2","Empore links, Reihe 2 ","53","Regulär","CHF",40,"Platz frei"]
["101099",null,"xxxxxxxxxxxxxxxxxx","Musterplan","Ref. Kirche ABC",null,null,null,null,null,null,null,null,null,"2","Empore links, Reihe 2 ","55","Regulär","CHF",40,"Platz frei"]
["101085",null,"xxxxxxxxxxxxxxxxxx","Musterplan","Ref. Kirche ABC",null,null,null,null,null,null,null,null,null,"2","Empore links, Reihe 2 ","57","Regulär","CHF",40,"Platz frei"]
["101071",null,"xxxxxxxxxxxxxxxxxx","Musterplan","Ref. Kirche ABC",null,null,null,null,null,null,null,null,null,"2","Empore links, Reihe 2 ","59","Regulär","CHF",40,"Platz frei"]
["101057",null,"xxxxxxxxxxxxxxxxxx","Musterplan","Ref. Kirche ABC",null,null,null,null,null,null,null,null,null,"2","Empore links, Reihe 2 ","61","Regulär","CHF",40,"Platz frei"]
["101043",null,"xxxxxxxxxxxxxxxxxx","Musterplan","Ref. Kirche ABC",null,null,null,null,null,null,null,null,null,"2","Empore links, Reihe 2 ","63","Regulär","CHF",40,"Platz frei"]
["101029",null,"xxxxxxxxxxxxxxxxxx","Musterplan","Ref. Kirche ABC",null,null,null,null,null,null,null,null,null,"2","Empore links, Reihe 2 ","65","Regulär","CHF",40,"Platz frei"]
["101015",null,"xxxxxxxxxxxxxxxxxx","Musterplan","Ref. Kirche ABC",null,null,null,null,null,null,null,null,null,"2","Empore links, Reihe 2 ","67","Regulär","CHF",40,"Platz frei"]
["101001",null,"xxxxxxxxxxxxxxxxxx","Musterplan","Ref. Kirche ABC",null,null,null,null,null,null,null,null,null,"2","Empore links, Reihe 2 ","69","Regulär","CHF",40,"Platz frei"]
["100987",null,"xxxxxxxxxxxxxxxxxx","Musterplan","Ref. Kirche ABC",null,null,null,null,null,null,null,null,null,"2","Empore links, Reihe 2 ","71","Regulär","CHF",40,"Platz frei"]
["100973",null,"xxxxxxxxxxxxxxxxxx","Musterplan","Ref. Kirche ABC",null,null,null,null,null,null,null,null,null,"2","Empore links, Reihe 2 ","73","Regulär","CHF",40,"Platz frei"]
["100959",null,"xxxxxxxxxxxxxxxxxx","Musterplan","Ref. Kirche ABC",null,null,null,null,null,null,null,null,null,"2","Empore links, Reihe 2 ","75","Regulär","CHF",40,"Platz frei"]
["100945",null,"xxxxxxxxxxxxxxxxxx","Musterplan","Ref. Kirche ABC",null,null,null,null,null,null,null,null,null,"2","Empore links, Reihe 2 ","77","Regulär","CHF",40,"Platz frei"]
["100931",null,"xxxxxxxxxxxxxxxxxx","Musterplan","Ref. Kirche ABC",null,null,null,null,null,null,null,null,null,"2","Empore links, Reihe 2 ","79","Regulär","CHF",40,"Platz frei"]
["100917",null,"xxxxxxxxxxxxxxxxxx","Musterplan","Ref. Kirche ABC",null,null,null,null,null,null,null,null,null,"2","Empore links, Reihe 2 ","81","Regulär","CHF",40,"Platz frei"]
["100903",null,"xxxxxxxxxxxxxxxxxx","Musterplan","Ref. Kirche ABC",null,null,null,null,null,null,null,null,null,"2","Empore links, Reihe 2 ","83","Regulär","CHF",40,"Platz frei"]
["100889",null,"xxxxxxxxxxxxxxxxxx","Musterplan","Ref. Kirche ABC",null,null,null,null,null,null,null,null,null,"2","Empore links, Reihe 2 ","85","Regulär","CHF",40,"Platz frei"]
["100875",null,"xxxxxxxxxxxxxxxxxx","Musterplan","Ref. Kirche ABC",null,null,null,null,null,null,null,null,null,"2","Empore links, Reihe 2 ","87","Regulär","CHF",40,"Platz frei"]
["100861",null,"xxxxxxxxxxxxxxxxxx","Musterplan","Ref. Kirche ABC",null,null,null,null,null,null,null,null,null,"2","Empore links, Reihe 2 ","89","Regulär","CHF",40,"Platz frei"]
["100847",null,"xxxxxxxxxxxxxxxxxx","Musterplan","Ref. Kirche ABC",null,null,null,null,null,null,null,null,null,"2","Empore links, Reihe 2 ","91","Regulär","CHF",40,"Platz frei"]
["100833",null,"xxxxxxxxxxxxxxxxxx","Musterplan","Ref. Kirche ABC",null,null,null,null,null,null,null,null,null,"3","Empore links, Reihe 2 ","93","Regulär","CHF",30,"Platz frei"]
["100819",null,"xxxxxxxxxxxxxxxxxx","Musterplan","Ref. Kirche ABC",null,null,null,null,null,null,null,null,null,"3","Empore links, Reihe 2 ","95","Regulär","CHF",30,"Platz frei"]
["100805",null,"xxxxxxxxxxxxxxxxxx","Musterplan","Ref. Kirche ABC",null,null,null,null,null,null,null,null,null,"3","Empore links, Reihe 2 ","97","Regulär","CHF",30,"Platz frei"]
["100791",null,"xxxxxxxxxxxxxxxxxx","Musterplan","Ref. Kirche ABC",null,null,null,null,null,null,null,null,null,"3","Empore links, Reihe 2 ","99","Regulär","CHF",30,"Platz frei"]
["100777",null,"xxxxxxxxxxxxxxxxxx","Musterplan","Ref. Kirche ABC",null,null,null,null,null,null,null,null,null,"3","Empore links, Reihe 2 ","101","Regulär","CHF",30,"Platz frei"]
["100763",null,"xxxxxxxxxxxxxxxxxx","Musterplan","Ref. Kirche ABC",null,null,null,null,null,null,null,null,null,"3","Empore links, Reihe 2 ","103","Regulär","CHF",30,"Platz frei"]
["101112",null,"xxxxxxxxxxxxxxxxxx","Musterplan","Ref. Kirche ABC",null,null,null,null,null,null,null,null,null,"2","Empore links, Reihe 3 ","105","Regulär","CHF",40,"Platz frei"]
["101098",null,"xxxxxxxxxxxxxxxxxx","Musterplan","Ref. Kirche ABC",null,null,null,null,null,null,null,null,null,"2","Empore links, Reihe 3 ","107","Regulär","CHF",40,"Platz frei"]
["101084",null,"xxxxxxxxxxxxxxxxxx","Musterplan","Ref. Kirche ABC",null,null,null,null,null,null,null,null,null,"2","Empore links, Reihe 3 ","109","Regulär","CHF",40,"Platz frei"]
["101070",null,"xxxxxxxxxxxxxxxxxx","Musterplan","Ref. Kirche ABC",null,null,null,null,null,null,null,null,null,"2","Empore links, Reihe 3 ","111","Regulär","CHF",40,"Platz frei"]
["101056",null,"xxxxxxxxxxxxxxxxxx","Musterplan","Ref. Kirche ABC",null,null,null,null,null,null,null,null,null,"2","Empore links, Reihe 3 ","113","Regulär","CHF",40,"Platz frei"]
["101042",null,"xxxxxxxxxxxxxxxxxx","Musterplan","Ref. Kirche ABC",null,null,null,null,null,null,null,null,null,"2","Empore links, Reihe 3 ","115","Regulär","CHF",40,"Platz frei"]
["101028",null,"xxxxxxxxxxxxxxxxxx","Musterplan","Ref. Kirche ABC",null,null,null,null,null,null,null,null,null,"2","Empore links, Reihe 3 ","117","Regulär","CHF",40,"Platz frei"]
["101014",null,"xxxxxxxxxxxxxxxxxx","Musterplan","Ref. Kirche ABC",null,null,null,null,null,null,null,null,null,"2","Empore links, Reihe 3 ","119","Regulär","CHF",40,"Platz frei"]
["101000",null,"xxxxxxxxxxxxxxxxxx","Musterplan","Ref. Kirche ABC",null,null,null,null,null,null,null,null,null,"2","Empore links, Reihe 3 ","121","Regulär","CHF",40,"Platz frei"]
["100986",null,"xxxxxxxxxxxxxxxxxx","Musterplan","Ref. Kirche ABC",null,null,null,null,null,null,null,null,null,"2","Empore links, Reihe 3 ","123","Regulär","CHF",40,"Platz frei"]
["100972",null,"xxxxxxxxxxxxxxxxxx","Musterplan","Ref. Kirche ABC",null,null,null,null,null,null,null,null,null,"2","Empore links, Reihe 3 ","125","Regulär","CHF",40,"Platz frei"]
["100958",null,"xxxxxxxxxxxxxxxxxx","Musterplan","Ref. Kirche ABC",null,null,null,null,null,null,null,null,null,"2","Empore links, Reihe 3 ","127","Regulär","CHF",40,"Platz frei"]
["100944",null,"xxxxxxxxxxxxxxxxxx","Musterplan","Ref. Kirche ABC",null,null,null,null,null,null,null,null,null,"2","Empore links, Reihe 3 ","129","Regulär","CHF",40,"Platz frei"]
["100930",null,"xxxxxxxxxxxxxxxxxx","Musterplan","Ref. Kirche ABC",null,null,null,null,null,null,null,null,null,"2","Empore links, Reihe 3 ","131","Regulär","CHF",40,"Platz frei"]
["100916",null,"xxxxxxxxxxxxxxxxxx","Musterplan","Ref. Kirche ABC",null,null,null,null,null,null,null,null,null,"2","Empore links, Reihe 3 ","133","Regulär","CHF",40,"Platz frei"]
["100902",null,"xxxxxxxxxxxxxxxxxx","Musterplan","Ref. Kirche ABC",null,null,null,null,null,null,null,null,null,"2","Empore links, Reihe 3 ","135","Regulär","CHF",40,"Platz frei"]
["100888",null,"xxxxxxxxxxxxxxxxxx","Musterplan","Ref. Kirche ABC",null,null,null,null,null,null,null,null,null,"2","Empore links, Reihe 3 ","137","Regulär","CHF",40,"Platz frei"]
["100874",null,"xxxxxxxxxxxxxxxxxx","Musterplan","Ref. Kirche ABC",null,null,null,null,null,null,null,null,null,"2","Empore links, Reihe 3 ","139","Regulär","CHF",40,"Platz frei"]
["100860",null,"xxxxxxxxxxxxxxxxxx","Musterplan","Ref. Kirche ABC",null,null,null,null,null,null,null,null,null,"2","Empore links, Reihe 3 ","141","Regulär","CHF",40,"Platz frei"]
["100846",null,"xxxxxxxxxxxxxxxxxx","Musterplan","Ref. Kirche ABC",null,null,null,null,null,null,null,null,null,"2","Empore links, Reihe 3 ","143","Regulär","CHF",40,"Platz frei"]
["100832",null,"xxxxxxxxxxxxxxxxxx","Musterplan","Ref. Kirche ABC",null,null,null,null,null,null,null,null,null,"3","Empore links, Reihe 3 ","145","Regulär","CHF",30,"Platz frei"]
["100818",null,"xxxxxxxxxxxxxxxxxx","Musterplan","Ref. Kirche ABC",null,null,null,null,null,null,null,null,null,"3","Empore links, Reihe 3 ","147","Regulär","CHF",30,"Platz frei"]
["100804",null,"xxxxxxxxxxxxxxxxxx","Musterplan","Ref. Kirche ABC",null,null,null,null,null,null,null,null,null,"3","Empore links, Reihe 3 ","149","Regulär","CHF",30,"Platz frei"]
["100790",null,"xxxxxxxxxxxxxxxxxx","Musterplan","Ref. Kirche ABC",null,null,null,null,null,null,null,null,null,"3","Empore links, Reihe 3 ","151","Regulär","CHF",30,"Platz frei"]
["100776",null,"xxxxxxxxxxxxxxxxxx","Musterplan","Ref. Kirche ABC",null,null,null,null,null,null,null,null,null,"3","Empore links, Reihe 3 ","153","Regulär","CHF",30,"Platz frei"]
["100762",null,"xxxxxxxxxxxxxxxxxx","Musterplan","Ref. Kirche ABC",null,null,null,null,null,null,null,null,null,"3","Empore links, Reihe 3 ","155","Regulär","CHF",30,"Platz frei"]
["101111",null,"xxxxxxxxxxxxxxxxxx","Musterplan","Ref. Kirche ABC",null,null,null,null,null,null,null,null,null,"2","Empore links, Reihe 4 ","157","Regulär","CHF",40,"Platz frei"]
["101097",null,"xxxxxxxxxxxxxxxxxx","Musterplan","Ref. Kirche ABC",null,null,null,null,null,null,null,null,null,"2","Empore links, Reihe 4 ","159","Regulär","CHF",40,"Platz frei"]
["101083",null,"xxxxxxxxxxxxxxxxxx","Musterplan","Ref. Kirche ABC",null,null,null,null,null,null,null,null,null,"2","Empore links, Reihe 4 ","161","Regulär","CHF",40,"Platz frei"]
["101069",null,"xxxxxxxxxxxxxxxxxx","Musterplan","Ref. Kirche ABC",null,null,null,null,null,null,null,null,null,"2","Empore links, Reihe 4 ","163","Regulär","CHF",40,"Platz frei"]
["101055",null,"xxxxxxxxxxxxxxxxxx","Musterplan","Ref. Kirche ABC",null,null,null,null,null,null,null,null,null,"2","Empore links, Reihe 4 ","165","Regulär","CHF",40,"Platz frei"]
["101041",null,"xxxxxxxxxxxxxxxxxx","Musterplan","Ref. Kirche ABC",null,null,null,null,null,null,null,null,null,"2","Empore links, Reihe 4 ","167","Regulär","CHF",40,"Platz frei"]
["101027",null,"xxxxxxxxxxxxxxxxxx","Musterplan","Ref. Kirche ABC",null,null,null,null,null,null,null,null,null,"2","Empore links, Reihe 4 ","169","Regulär","CHF",40,"Platz frei"]
["101013",null,"xxxxxxxxxxxxxxxxxx","Musterplan","Ref. Kirche ABC",null,null,null,null,null,null,null,null,null,"2","Empore links, Reihe 4 ","171","Regulär","CHF",40,"Platz frei"]
["100999",null,"xxxxxxxxxxxxxxxxxx","Musterplan","Ref. Kirche ABC",null,null,null,null,null,null,null,null,null,"2","Empore links, Reihe 4 ","173","Regulär","CHF",40,"Platz frei"]
["100985",null,"xxxxxxxxxxxxxxxxxx","Musterplan","Ref. Kirche ABC",null,null,null,null,null,null,null,null,null,"2","Empore links, Reihe 4 ","175","Regulär","CHF",40,"Platz frei"]
["100971",null,"xxxxxxxxxxxxxxxxxx","Musterplan","Ref. Kirche ABC",null,null,null,null,null,null,null,null,null,"2","Empore links, Reihe 4 ","177","Regulär","CHF",40,"Platz frei"]
["100957",null,"xxxxxxxxxxxxxxxxxx","Musterplan","Ref. Kirche ABC",null,null,null,null,null,null,null,null,null,"2","Empore links, Reihe 4 ","179","Regulär","CHF",40,"Platz frei"]
["100943",null,"xxxxxxxxxxxxxxxxxx","Musterplan","Ref. Kirche ABC",null,null,null,null,null,null,null,null,null,"2","Empore links, Reihe 4 ","181","Regulär","CHF",40,"Platz frei"]
["100929",null,"xxxxxxxxxxxxxxxxxx","Musterplan","Ref. Kirche ABC",null,null,null,null,null,null,null,null,null,"2","Empore links, Reihe 4 ","183","Regulär","CHF",40,"Platz frei"]
["100915",null,"xxxxxxxxxxxxxxxxxx","Musterplan","Ref. Kirche ABC",null,null,null,null,null,null,null,null,null,"2","Empore links, Reihe 4 ","185","Regulär","CHF",40,"Platz frei"]
["100901",null,"xxxxxxxxxxxxxxxxxx","Musterplan","Ref. Kirche ABC",null,null,null,null,null,null,null,null,null,"2","Empore links, Reihe 4 ","187","Regulär","CHF",40,"Platz frei"]
["100887",null,"xxxxxxxxxxxxxxxxxx","Musterplan","Ref. Kirche ABC",null,null,null,null,null,null,null,null,null,"2","Empore links, Reihe 4 ","189","Regulär","CHF",40,"Platz frei"]
["100873",null,"xxxxxxxxxxxxxxxxxx","Musterplan","Ref. Kirche ABC",null,null,null,null,null,null,null,null,null,"2","Empore links, Reihe 4 ","191","Regulär","CHF",40,"Platz frei"]
["100859",null,"xxxxxxxxxxxxxxxxxx","Musterplan","Ref. Kirche ABC",null,null,null,null,null,null,null,null,null,"2","Empore links, Reihe 4 ","193","Regulär","CHF",40,"Platz frei"]
["100845",null,"xxxxxxxxxxxxxxxxxx","Musterplan","Ref. Kirche ABC",null,null,null,null,null,null,null,null,null,"2","Empore links, Reihe 4 ","195","Regulär","CHF",40,"Platz frei"]
["100831",null,"xxxxxxxxxxxxxxxxxx","Musterplan","Ref. Kirche ABC",null,null,null,null,null,null,null,null,null,"3","Empore links, Reihe 4 ","197","Regulär","CHF",30,"Platz frei"]
["100817",null,"xxxxxxxxxxxxxxxxxx","Musterplan","Ref. Kirche ABC",null,null,null,null,null,null,null,null,null,"3","Empore links, Reihe 4 ","199","Regulär","CHF",30,"Platz frei"]
["100803",null,"xxxxxxxxxxxxxxxxxx","Musterplan","Ref. Kirche ABC",null,null,null,null,null,null,null,null,null,"3","Empore links, Reihe 4 ","201","Regulär","CHF",30,"Platz frei"]
["100789",null,"xxxxxxxxxxxxxxxxxx","Musterplan","Ref. Kirche ABC",null,null,null,null,null,null,null,null,null,"3","Empore links, Reihe 4 ","203","Regulär","CHF",30,"Platz frei"]
["100775",null,"xxxxxxxxxxxxxxxxxx","Musterplan","Ref. Kirche ABC",null,null,null,null,null,null,null,null,null,"3","Empore links, Reihe 4 ","205","Regulär","CHF",30,"Platz frei"]
["100761",null,"xxxxxxxxxxxxxxxxxx","Musterplan","Ref. Kirche ABC",null,null,null,null,null,null,null,null,null,"3","Empore links, Reihe 4 ","207","Regulär","CHF",30,"Platz frei"]
["101110",null,"xxxxxxxxxxxxxxxxxx","Musterplan","Ref. Kirche ABC",null,null,null,null,null,null,null,null,null,"2","Empore links, Reihe 5 ","209","Regulär","CHF",40,"Platz frei"]
["101096",null,"xxxxxxxxxxxxxxxxxx","Musterplan","Ref. Kirche ABC",null,null,null,null,null,null,null,null,null,"2","Empore links, Reihe 5 ","211","Regulär","CHF",40,"Platz frei"]
["101082",null,"xxxxxxxxxxxxxxxxxx","Musterplan","Ref. Kirche ABC",null,null,null,null,null,null,null,null,null,"2","Empore links, Reihe 5 ","213","Regulär","CHF",40,"Platz frei"]
["101068",null,"xxxxxxxxxxxxxxxxxx","Musterplan","Ref. Kirche ABC",null,null,null,null,null,null,null,null,null,"2","Empore links, Reihe 5 ","215","Regulär","CHF",40,"Platz frei"]
["101054",null,"xxxxxxxxxxxxxxxxxx","Musterplan","Ref. Kirche ABC",null,null,null,null,null,null,null,null,null,"2","Empore links, Reihe 5 ","217","Regulär","CHF",40,"Platz frei"]
["101040",null,"xxxxxxxxxxxxxxxxxx","Musterplan","Ref. Kirche ABC",null,null,null,null,null,null,null,null,null,"2","Empore links, Reihe 5 ","219","Regulär","CHF",40,"Platz frei"]
["101026",null,"xxxxxxxxxxxxxxxxxx","Musterplan","Ref. Kirche ABC",null,null,null,null,null,null,null,null,null,"2","Empore links, Reihe 5 ","221","Regulär","CHF",40,"Platz frei"]
["101012",null,"xxxxxxxxxxxxxxxxxx","Musterplan","Ref. Kirche ABC",null,null,null,null,null,null,null,null,null,"2","Empore links, Reihe 5 ","223","Regulär","CHF",40,"Platz frei"]
["100998",null,"xxxxxxxxxxxxxxxxxx","Musterplan","Ref. Kirche ABC",null,null,null,null,null,null,null,null,null,"2","Empore links, Reihe 5 ","225","Regulär","CHF",40,"Platz frei"]
["100984",null,"xxxxxxxxxxxxxxxxxx","Musterplan","Ref. Kirche ABC",null,null,null,null,null,null,null,null,null,"2","Empore links, Reihe 5 ","227","Regulär","CHF",40,"Platz frei"]
["100970",null,"xxxxxxxxxxxxxxxxxx","Musterplan","Ref. Kirche ABC",null,null,null,null,null,null,null,null,null,"2","Empore links, Reihe 5 ","229","Regulär","CHF",40,"Platz frei"]
["100956",null,"xxxxxxxxxxxxxxxxxx","Musterplan","Ref. Kirche ABC",null,null,null,null,null,null,null,null,null,"2","Empore links, Reihe 5 ","231","Regulär","CHF",40,"Platz frei"]
["100942",null,"xxxxxxxxxxxxxxxxxx","Musterplan","Ref. Kirche ABC",null,null,null,null,null,null,null,null,null,"2","Empore links, Reihe 5 ","233","Regulär","CHF",40,"Platz frei"]
["100928",null,"xxxxxxxxxxxxxxxxxx","Musterplan","Ref. Kirche ABC",null,null,null,null,null,null,null,null,null,"2","Empore links, Reihe 5 ","235","Regulär","CHF",40,"Platz frei"]
["100914",null,"xxxxxxxxxxxxxxxxxx","Musterplan","Ref. Kirche ABC",null,null,null,null,null,null,null,null,null,"2","Empore links, Reihe 5 ","237","Regulär","CHF",40,"Platz frei"]
["100900",null,"xxxxxxxxxxxxxxxxxx","Musterplan","Ref. Kirche ABC",null,null,null,null,null,null,null,null,null,"2","Empore links, Reihe 5 ","239","Regulär","CHF",40,"Platz frei"]
["100886",null,"xxxxxxxxxxxxxxxxxx","Musterplan","Ref. Kirche ABC",null,null,null,null,null,null,null,null,null,"2","Empore links, Reihe 5 ","241","Regulär","CHF",40,"Platz frei"]
["100872",null,"xxxxxxxxxxxxxxxxxx","Musterplan","Ref. Kirche ABC",null,null,null,null,null,null,null,null,null,"2","Empore links, Reihe 5 ","243","Regulär","CHF",40,"Platz frei"]
["100858",null,"xxxxxxxxxxxxxxxxxx","Musterplan","Ref. Kirche ABC",null,null,null,null,null,null,null,null,null,"2","Empore links, Reihe 5 ","245","Regulär","CHF",40,"Platz frei"]
["100844",null,"xxxxxxxxxxxxxxxxxx","Musterplan","Ref. Kirche ABC",null,null,null,null,null,null,null,null,null,"2","Empore links, Reihe 5 ","247","Regulär","CHF",40,"Platz frei"]
["100830",null,"xxxxxxxxxxxxxxxxxx","Musterplan","Ref. Kirche ABC",null,null,null,null,null,null,null,null,null,"3","Empore links, Reihe 5 ","249","Regulär","CHF",30,"Platz frei"]
["100816",null,"xxxxxxxxxxxxxxxxxx","Musterplan","Ref. Kirche ABC",null,null,null,null,null,null,null,null,null,"3","Empore links, Reihe 5 ","251","Regulär","CHF",30,"Platz frei"]
["100802",null,"xxxxxxxxxxxxxxxxxx","Musterplan","Ref. Kirche ABC",null,null,null,null,null,null,null,null,null,"3","Empore links, Reihe 5 ","253","Regulär","CHF",30,"Platz frei"]
["100788",null,"xxxxxxxxxxxxxxxxxx","Musterplan","Ref. Kirche ABC",null,null,null,null,null,null,null,null,null,"3","Empore links, Reihe 5 ","255","Regulär","CHF",30,"Platz frei"]
["100774",null,"xxxxxxxxxxxxxxxxxx","Musterplan","Ref. Kirche ABC",null,null,null,null,null,null,null,null,null,"3","Empore links, Reihe 5 ","257","Regulär","CHF",30,"Platz frei"]
["100760",null,"xxxxxxxxxxxxxxxxxx","Musterplan","Ref. Kirche ABC",null,null,null,null,null,null,null,null,null,"3","Empore links, Reihe 5 ","259","Regulär","CHF",30,"Platz frei"]
["101109",null,"xxxxxxxxxxxxxxxxxx","Musterplan","Ref. Kirche ABC",null,null,null,null,null,null,null,null,null,"2","Empore links, Reihe 6 ","261","Regulär","CHF",40,"Platz frei"]
["101095",null,"xxxxxxxxxxxxxxxxxx","Musterplan","Ref. Kirche ABC",null,null,null,null,null,null,null,null,null,"2","Empore links, Reihe 6 ","263","Regulär","CHF",40,"Platz frei"]
["101081",null,"xxxxxxxxxxxxxxxxxx","Musterplan","Ref. Kirche ABC",null,null,null,null,null,null,null,null,null,"2","Empore links, Reihe 6 ","265","Regulär","CHF",40,"Platz frei"]
["101067",null,"xxxxxxxxxxxxxxxxxx","Musterplan","Ref. Kirche ABC",null,null,null,null,null,null,null,null,null,"2","Empore links, Reihe 6 ","267","Regulär","CHF",40,"Platz frei"]
["101053",null,"xxxxxxxxxxxxxxxxxx","Musterplan","Ref. Kirche ABC",null,null,null,null,null,null,null,null,null,"2","Empore links, Reihe 6 ","269","Regulär","CHF",40,"Platz frei"]
["101039",null,"xxxxxxxxxxxxxxxxxx","Musterplan","Ref. Kirche ABC",null,null,null,null,null,null,null,null,null,"2","Empore links, Reihe 6 ","271","Regulär","CHF",40,"Platz frei"]
["101025",null,"xxxxxxxxxxxxxxxxxx","Musterplan","Ref. Kirche ABC",null,null,null,null,null,null,null,null,null,"2","Empore links, Reihe 6 ","273","Regulär","CHF",40,"Platz frei"]
["101011",null,"xxxxxxxxxxxxxxxxxx","Musterplan","Ref. Kirche ABC",null,null,null,null,null,null,null,null,null,"2","Empore links, Reihe 6 ","275","Regulär","CHF",40,"Platz frei"]
["100997",null,"xxxxxxxxxxxxxxxxxx","Musterplan","Ref. Kirche ABC",null,null,null,null,null,null,null,null,null,"2","Empore links, Reihe 6 ","277","Regulär","CHF",40,"Platz frei"]
["100983",null,"xxxxxxxxxxxxxxxxxx","Musterplan","Ref. Kirche ABC",null,null,null,null,null,null,null,null,null,"2","Empore links, Reihe 6 ","279","Regulär","CHF",40,"Platz frei"]
["100969",null,"xxxxxxxxxxxxxxxxxx","Musterplan","Ref. Kirche ABC",null,null,null,null,null,null,null,null,null,"2","Empore links, Reihe 6 ","281","Regulär","CHF",40,"Platz frei"]
["100955",null,"xxxxxxxxxxxxxxxxxx","Musterplan","Ref. Kirche ABC",null,null,null,null,null,null,null,null,null,"2","Empore links, Reihe 6 ","283","Regulär","CHF",40,"Platz frei"]
["100941",null,"xxxxxxxxxxxxxxxxxx","Musterplan","Ref. Kirche ABC",null,null,null,null,null,null,null,null,null,"2","Empore links, Reihe 6 ","285","Regulär","CHF",40,"Platz frei"]
["100927",null,"xxxxxxxxxxxxxxxxxx","Musterplan","Ref. Kirche ABC",null,null,null,null,null,null,null,null,null,"2","Empore links, Reihe 6 ","287","Regulär","CHF",40,"Platz frei"]
["100913",null,"xxxxxxxxxxxxxxxxxx","Musterplan","Ref. Kirche ABC",null,null,null,null,null,null,null,null,null,"2","Empore links, Reihe 6 ","289","Regulär","CHF",40,"Platz frei"]
["100899",null,"xxxxxxxxxxxxxxxxxx","Musterplan","Ref. Kirche ABC",null,null,null,null,null,null,null,null,null,"2","Empore links, Reihe 6 ","291","Regulär","CHF",40,"Platz frei"]
["100885",null,"xxxxxxxxxxxxxxxxxx","Musterplan","Ref. Kirche ABC",null,null,null,null,null,null,null,null,null,"2","Empore links, Reihe 6 ","293","Regulär","CHF",40,"Platz frei"]
["100871",null,"xxxxxxxxxxxxxxxxxx","Musterplan","Ref. Kirche ABC",null,null,null,null,null,null,null,null,null,"2","Empore links, Reihe 6 ","295","Regulär","CHF",40,"Platz frei"]
["100857",null,"xxxxxxxxxxxxxxxxxx","Musterplan","Ref. Kirche ABC",null,null,null,null,null,null,null,null,null,"2","Empore links, Reihe 6 ","297","Regulär","CHF",40,"Platz frei"]
["100843",null,"xxxxxxxxxxxxxxxxxx","Musterplan","Ref. Kirche ABC",null,null,null,null,null,null,null,null,null,"2","Empore links, Reihe 6 ","299","Regulär","CHF",40,"Platz frei"]
["100829",null,"xxxxxxxxxxxxxxxxxx","Musterplan","Ref. Kirche ABC",null,null,null,null,null,null,null,null,null,"3","Empore links, Reihe 6 ","301","Regulär","CHF",30,"Platz frei"]
["100815",null,"xxxxxxxxxxxxxxxxxx","Musterplan","Ref. Kirche ABC",null,null,null,null,null,null,null,null,null,"3","Empore links, Reihe 6 ","303","Regulär","CHF",30,"Platz frei"]
["100801",null,"xxxxxxxxxxxxxxxxxx","Musterplan","Ref. Kirche ABC",null,null,null,null,null,null,null,null,null,"3","Empore links, Reihe 6 ","305","Regulär","CHF",30,"Platz frei"]
["100787",null,"xxxxxxxxxxxxxxxxxx","Musterplan","Ref. Kirche ABC",null,null,null,null,null,null,null,null,null,"3","Empore links, Reihe 6 ","307","Regulär","CHF",30,"Platz frei"]
["100773",null,"xxxxxxxxxxxxxxxxxx","Musterplan","Ref. Kirche ABC",null,null,null,null,null,null,null,null,null,"3","Empore links, Reihe 6 ","309","Regulär","CHF",30,"Platz frei"]
["100759",null,"xxxxxxxxxxxxxxxxxx","Musterplan","Ref. Kirche ABC",null,null,null,null,null,null,null,null,null,"3","Empore links, Reihe 6 ","311","Regulär","CHF",30,"Platz frei"]
["101108",null,"xxxxxxxxxxxxxxxxxx","Musterplan","Ref. Kirche ABC",null,null,null,null,null,null,null,null,null,"2","Empore links, Reihe 7 ","313","Regulär","CHF",40,"Platz frei"]
["101094",null,"xxxxxxxxxxxxxxxxxx","Musterplan","Ref. Kirche ABC",null,null,null,null,null,null,null,null,null,"2","Empore links, Reihe 7 ","315","Regulär","CHF",40,"Platz frei"]
["101080",null,"xxxxxxxxxxxxxxxxxx","Musterplan","Ref. Kirche ABC",null,null,null,null,null,null,null,null,null,"2","Empore links, Reihe 7 ","317","Regulär","CHF",40,"Platz frei"]
["101066",null,"xxxxxxxxxxxxxxxxxx","Musterplan","Ref. Kirche ABC",null,null,null,null,null,null,null,null,null,"2","Empore links, Reihe 7 ","319","Regulär","CHF",40,"Platz frei"]
["101052",null,"xxxxxxxxxxxxxxxxxx","Musterplan","Ref. Kirche ABC",null,null,null,null,null,null,null,null,null,"2","Empore links, Reihe 7 ","321","Regulär","CHF",40,"Platz frei"]
["101038",null,"xxxxxxxxxxxxxxxxxx","Musterplan","Ref. Kirche ABC",null,null,null,null,null,null,null,null,null,"2","Empore links, Reihe 7 ","323","Regulär","CHF",40,"Platz frei"]
["101024",null,"xxxxxxxxxxxxxxxxxx","Musterplan","Ref. Kirche ABC",null,null,null,null,null,null,null,null,null,"2","Empore links, Reihe 7 ","325","Regulär","CHF",40,"Platz frei"]
["101010",null,"xxxxxxxxxxxxxxxxxx","Musterplan","Ref. Kirche ABC",null,null,null,null,null,null,null,null,null,"2","Empore links, Reihe 7 ","327","Regulär","CHF",40,"Platz frei"]
["100996",null,"xxxxxxxxxxxxxxxxxx","Musterplan","Ref. Kirche ABC",null,null,null,null,null,null,null,null,null,"2","Empore links, Reihe 7 ","329","Regulär","CHF",40,"Platz frei"]
["100982",null,"xxxxxxxxxxxxxxxxxx","Musterplan","Ref. Kirche ABC",null,null,null,null,null,null,null,null,null,"2","Empore links, Reihe 7 ","331","Regulär","CHF",40,"Platz frei"]
["100968",null,"xxxxxxxxxxxxxxxxxx","Musterplan","Ref. Kirche ABC",null,null,null,null,null,null,null,null,null,"2","Empore links, Reihe 7 ","333","Regulär","CHF",40,"Platz frei"]
["100954",null,"xxxxxxxxxxxxxxxxxx","Musterplan","Ref. Kirche ABC",null,null,null,null,null,null,null,null,null,"2","Empore links, Reihe 7 ","335","Regulär","CHF",40,"Platz frei"]
["100940",null,"xxxxxxxxxxxxxxxxxx","Musterplan","Ref. Kirche ABC",null,null,null,null,null,null,null,null,null,"2","Empore links, Reihe 7 ","337","Regulär","CHF",40,"Platz frei"]
["100926",null,"xxxxxxxxxxxxxxxxxx","Musterplan","Ref. Kirche ABC",null,null,null,null,null,null,null,null,null,"2","Empore links, Reihe 7 ","339","Regulär","CHF",40,"Platz frei"]
["100912",null,"xxxxxxxxxxxxxxxxxx","Musterplan","Ref. Kirche ABC",null,null,null,null,null,null,null,null,null,"2","Empore links, Reihe 7 ","341","Regulär","CHF",40,"Platz frei"]
["100898",null,"xxxxxxxxxxxxxxxxxx","Musterplan","Ref. Kirche ABC",null,null,null,null,null,null,null,null,null,"2","Empore links, Reihe 7 ","343","Regulär","CHF",40,"Platz frei"]
["100884",null,"xxxxxxxxxxxxxxxxxx","Musterplan","Ref. Kirche ABC",null,null,null,null,null,null,null,null,null,"2","Empore links, Reihe 7 ","345","Regulär","CHF",40,"Platz frei"]
["100870",null,"xxxxxxxxxxxxxxxxxx","Musterplan","Ref. Kirche ABC",null,null,null,null,null,null,null,null,null,"2","Empore links, Reihe 7 ","347","Regulär","CHF",40,"Platz frei"]
["100856",null,"xxxxxxxxxxxxxxxxxx","Musterplan","Ref. Kirche ABC",null,null,null,null,null,null,null,null,null,"2","Empore links, Reihe 7 ","349","Regulär","CHF",40,"Platz frei"]
["100842",null,"xxxxxxxxxxxxxxxxxx","Musterplan","Ref. Kirche ABC",null,null,null,null,null,null,null,null,null,"2","Empore links, Reihe 7 ","351","Regulär","CHF",40,"Platz frei"]
["100828",null,"xxxxxxxxxxxxxxxxxx","Musterplan","Ref. Kirche ABC",null,null,null,null,null,null,null,null,null,"3","Empore links, Reihe 7 ","353","Regulär","CHF",30,"Platz frei"]
["100814",null,"xxxxxxxxxxxxxxxxxx","Musterplan","Ref. Kirche ABC",null,null,null,null,null,null,null,null,null,"3","Empore links, Reihe 7 ","355","Regulär","CHF",30,"Platz frei"]
["100800",null,"xxxxxxxxxxxxxxxxxx","Musterplan","Ref. Kirche ABC",null,null,null,null,null,null,null,null,null,"3","Empore links, Reihe 7 ","357","Regulär","CHF",30,"Platz frei"]
["100786",null,"xxxxxxxxxxxxxxxxxx","Musterplan","Ref. Kirche ABC",null,null,null,null,null,null,null,null,null,"3","Empore links, Reihe 7 ","359","Regulär","CHF",30,"Platz frei"]
["100772",null,"xxxxxxxxxxxxxxxxxx","Musterplan","Ref. Kirche ABC",null,null,null,null,null,null,null,null,null,"3","Empore links, Reihe 7 ","361","Regulär","CHF",30,"Platz frei"]
["100758",null,"xxxxxxxxxxxxxxxxxx","Musterplan","Ref. Kirche ABC",null,null,null,null,null,null,null,null,null,"3","Empore links, Reihe 7 ","363","Regulär","CHF",30,"Platz frei"]
["101120",null,"xxxxxxxxxxxxxxxxxx","Musterplan","Ref. Kirche ABC",null,null,null,null,null,null,null,null,null,"1","Empore Mitte li, Reihe  8 ","501","Regulär","CHF",50,"Platz frei"]
["101119",null,"xxxxxxxxxxxxxxxxxx","Musterplan","Ref. Kirche ABC",null,null,null,null,null,null,null,null,null,"1","Empore Mitte li, Reihe  8 ","503","Regulär","CHF",50,"Platz frei"]
["101118",null,"xxxxxxxxxxxxxxxxxx","Musterplan","Ref. Kirche ABC",null,null,null,null,null,null,null,null,null,"1","Empore Mitte li, Reihe  8 ","505","Regulär","CHF",50,"Platz frei"]
["101117",null,"xxxxxxxxxxxxxxxxxx","Musterplan","Ref. Kirche ABC",null,null,null,null,null,null,null,null,null,"1","Empore Mitte li, Reihe  8 ","507","Regulär","CHF",50,"Platz frei"]
["101116",null,"xxxxxxxxxxxxxxxxxx","Musterplan","Ref. Kirche ABC",null,null,null,null,null,null,null,null,null,"1","Empore Mitte li, Reihe  8 ","509","Regulär","CHF",50,"Platz frei"]
["101115",null,"xxxxxxxxxxxxxxxxxx","Musterplan","Ref. Kirche ABC",null,null,null,null,null,null,null,null,null,"1","Empore Mitte li, Reihe  8 ","511","Regulär","CHF",50,"Platz frei"]
["101121",null,"xxxxxxxxxxxxxxxxxx","Musterplan","Ref. Kirche ABC",null,null,null,null,null,null,null,null,null,"1","Empore Mitte re, Reihe 8 ","502","Regulär","CHF",50,"Platz frei"]
["101122",null,"xxxxxxxxxxxxxxxxxx","Musterplan","Ref. Kirche ABC",null,null,null,null,null,null,null,null,null,"1","Empore Mitte re, Reihe 8 ","504","Regulär","CHF",50,"Platz frei"]
["101123",null,"xxxxxxxxxxxxxxxxxx","Musterplan","Ref. Kirche ABC",null,null,null,null,null,null,null,null,null,"1","Empore Mitte re, Reihe 8 ","506","Regulär","CHF",50,"Platz frei"]
["101124",null,"xxxxxxxxxxxxxxxxxx","Musterplan","Ref. Kirche ABC",null,null,null,null,null,null,null,null,null,"1","Empore Mitte re, Reihe 8 ","508","Regulär","CHF",50,"Platz frei"]
["101125",null,"xxxxxxxxxxxxxxxxxx","Musterplan","Ref. Kirche ABC",null,null,null,null,null,null,null,null,null,"1","Empore Mitte re, Reihe 8 ","510","Regulär","CHF",50,"Platz frei"]
["101126",null,"xxxxxxxxxxxxxxxxxx","Musterplan","Ref. Kirche ABC",null,null,null,null,null,null,null,null,null,"1","Empore Mitte re, Reihe 8 ","512","Regulär","CHF",50,"Platz frei"]
["101127",null,"xxxxxxxxxxxxxxxxxx","Musterplan","Ref. Kirche ABC",null,null,null,null,null,null,null,null,null,"2","Empore rechts, Reihe 1 ","2","Regulär","CHF",40,"Platz frei"]
["101101",null,"xxxxxxxxxxxxxxxxxx","Musterplan","Ref. Kirche ABC",null,null,null,null,null,null,null,null,null,"2","Empore rechts, Reihe 1 ","4","Regulär","CHF",40,"Platz frei"]
["101087",null,"xxxxxxxxxxxxxxxxxx","Musterplan","Ref. Kirche ABC",null,null,null,null,null,null,null,null,null,"2","Empore rechts, Reihe 1 ","6","Regulär","CHF",40,"Platz frei"]
["101073",null,"xxxxxxxxxxxxxxxxxx","Musterplan","Ref. Kirche ABC",null,null,null,null,null,null,null,null,null,"2","Empore rechts, Reihe 1 ","8","Regulär","CHF",40,"Platz frei"]
["101059",null,"xxxxxxxxxxxxxxxxxx","Musterplan","Ref. Kirche ABC",null,null,null,null,null,null,null,null,null,"2","Empore rechts, Reihe 1 ","10","Regulär","CHF",40,"Platz frei"]
["101045",null,"xxxxxxxxxxxxxxxxxx","Musterplan","Ref. Kirche ABC",null,null,null,null,null,null,null,null,null,"2","Empore rechts, Reihe 1 ","12","Regulär","CHF",40,"Platz frei"]
["101031",null,"xxxxxxxxxxxxxxxxxx","Musterplan","Ref. Kirche ABC",null,null,null,null,null,null,null,null,null,"2","Empore rechts, Reihe 1 ","14","Regulär","CHF",40,"Platz frei"]
["101017",null,"xxxxxxxxxxxxxxxxxx","Musterplan","Ref. Kirche ABC",null,null,null,null,null,null,null,null,null,"2","Empore rechts, Reihe 1 ","16","Regulär","CHF",40,"Platz frei"]
["101003",null,"xxxxxxxxxxxxxxxxxx","Musterplan","Ref. Kirche ABC",null,null,null,null,null,null,null,null,null,"2","Empore rechts, Reihe 1 ","18","Regulär","CHF",40,"Platz frei"]
["100989",null,"xxxxxxxxxxxxxxxxxx","Musterplan","Ref. Kirche ABC",null,null,null,null,null,null,null,null,null,"2","Empore rechts, Reihe 1 ","20","Regulär","CHF",40,"Platz frei"]
["100975",null,"xxxxxxxxxxxxxxxxxx","Musterplan","Ref. Kirche ABC",null,null,null,null,null,null,null,null,null,"2","Empore rechts, Reihe 1 ","22","Regulär","CHF",40,"Platz frei"]
["100961",null,"xxxxxxxxxxxxxxxxxx","Musterplan","Ref. Kirche ABC",null,null,null,null,null,null,null,null,null,"2","Empore rechts, Reihe 1 ","24","Regulär","CHF",40,"Platz frei"]
["100947",null,"xxxxxxxxxxxxxxxxxx","Musterplan","Ref. Kirche ABC",null,null,null,null,null,null,null,null,null,"2","Empore rechts, Reihe 1 ","26","Regulär","CHF",40,"Platz frei"]
["100933",null,"xxxxxxxxxxxxxxxxxx","Musterplan","Ref. Kirche ABC",null,null,null,null,null,null,null,null,null,"2","Empore rechts, Reihe 1 ","28","Regulär","CHF",40,"Platz frei"]
["100919",null,"xxxxxxxxxxxxxxxxxx","Musterplan","Ref. Kirche ABC",null,null,null,null,null,null,null,null,null,"2","Empore rechts, Reihe 1 ","30","Regulär","CHF",40,"Platz frei"]
["100905",null,"xxxxxxxxxxxxxxxxxx","Musterplan","Ref. Kirche ABC",null,null,null,null,null,null,null,null,null,"2","Empore rechts, Reihe 1 ","32","Regulär","CHF",40,"Platz frei"]
["100891",null,"xxxxxxxxxxxxxxxxxx","Musterplan","Ref. Kirche ABC",null,null,null,null,null,null,null,null,null,"2","Empore rechts, Reihe 1 ","34","Regulär","CHF",40,"Platz frei"]
["100877",null,"xxxxxxxxxxxxxxxxxx","Musterplan","Ref. Kirche ABC",null,null,null,null,null,null,null,null,null,"2","Empore rechts, Reihe 1 ","36","Regulär","CHF",40,"Platz frei"]
["100863",null,"xxxxxxxxxxxxxxxxxx","Musterplan","Ref. Kirche ABC",null,null,null,null,null,null,null,null,null,"2","Empore rechts, Reihe 1 ","38","Regulär","CHF",40,"Platz frei"]
["100849",null,"xxxxxxxxxxxxxxxxxx","Musterplan","Ref. Kirche ABC",null,null,null,null,null,null,null,null,null,"2","Empore rechts, Reihe 1 ","40","Regulär","CHF",40,"Platz frei"]
["100835",null,"xxxxxxxxxxxxxxxxxx","Musterplan","Ref. Kirche ABC",null,null,null,null,null,null,null,null,null,"3","Empore rechts, Reihe 1 ","42","Regulär","CHF",30,"Platz frei"]
["100821",null,"xxxxxxxxxxxxxxxxxx","Musterplan","Ref. Kirche ABC",null,null,null,null,null,null,null,null,null,"3","Empore rechts, Reihe 1 ","44","Regulär","CHF",30,"Platz frei"]
["100807",null,"xxxxxxxxxxxxxxxxxx","Musterplan","Ref. Kirche ABC",null,null,null,null,null,null,null,null,null,"3","Empore rechts, Reihe 1 ","46","Regulär","CHF",30,"Platz frei"]
["100793",null,"xxxxxxxxxxxxxxxxxx","Musterplan","Ref. Kirche ABC",null,null,null,null,null,null,null,null,null,"3","Empore rechts, Reihe 1 ","48","Regulär","CHF",30,"Platz frei"]
["100779",null,"xxxxxxxxxxxxxxxxxx","Musterplan","Ref. Kirche ABC",null,null,null,null,null,null,null,null,null,"3","Empore rechts, Reihe 1 ","50","Regulär","CHF",30,"Platz frei"]
["100765",null,"xxxxxxxxxxxxxxxxxx","Musterplan","Ref. Kirche ABC",null,null,null,null,null,null,null,null,null,"3","Empore rechts, Reihe 1 ","52","Regulär","CHF",30,"Platz frei"]
["101128",null,"xxxxxxxxxxxxxxxxxx","Musterplan","Ref. Kirche ABC",null,null,null,null,null,null,null,null,null,"2","Empore rechts, Reihe 2 ","54","Regulär","CHF",40,"Platz frei"]
["101102",null,"xxxxxxxxxxxxxxxxxx","Musterplan","Ref. Kirche ABC",null,null,null,null,null,null,null,null,null,"2","Empore rechts, Reihe 2 ","56","Regulär","CHF",40,"Platz frei"]
["101088",null,"xxxxxxxxxxxxxxxxxx","Musterplan","Ref. Kirche ABC",null,null,null,null,null,null,null,null,null,"2","Empore rechts, Reihe 2 ","58","Regulär","CHF",40,"Platz frei"]
["101074",null,"xxxxxxxxxxxxxxxxxx","Musterplan","Ref. Kirche ABC",null,null,null,null,null,null,null,null,null,"2","Empore rechts, Reihe 2 ","60","Regulär","CHF",40,"Platz frei"]
["101060",null,"xxxxxxxxxxxxxxxxxx","Musterplan","Ref. Kirche ABC",null,null,null,null,null,null,null,null,null,"2","Empore rechts, Reihe 2 ","62","Regulär","CHF",40,"Platz frei"]
["101046",null,"xxxxxxxxxxxxxxxxxx","Musterplan","Ref. Kirche ABC",null,null,null,null,null,null,null,null,null,"2","Empore rechts, Reihe 2 ","64","Regulär","CHF",40,"Platz frei"]
["101032",null,"xxxxxxxxxxxxxxxxxx","Musterplan","Ref. Kirche ABC",null,null,null,null,null,null,null,null,null,"2","Empore rechts, Reihe 2 ","66","Regulär","CHF",40,"Platz frei"]
["101018",null,"xxxxxxxxxxxxxxxxxx","Musterplan","Ref. Kirche ABC",null,null,null,null,null,null,null,null,null,"2","Empore rechts, Reihe 2 ","68","Regulär","CHF",40,"Platz frei"]
["101004",null,"xxxxxxxxxxxxxxxxxx","Musterplan","Ref. Kirche ABC",null,null,null,null,null,null,null,null,null,"2","Empore rechts, Reihe 2 ","70","Regulär","CHF",40,"Platz frei"]
["100990",null,"xxxxxxxxxxxxxxxxxx","Musterplan","Ref. Kirche ABC",null,null,null,null,null,null,null,null,null,"2","Empore rechts, Reihe 2 ","72","Regulär","CHF",40,"Platz frei"]
["100976",null,"xxxxxxxxxxxxxxxxxx","Musterplan","Ref. Kirche ABC",null,null,null,null,null,null,null,null,null,"2","Empore rechts, Reihe 2 ","74","Regulär","CHF",40,"Platz frei"]
["100962",null,"xxxxxxxxxxxxxxxxxx","Musterplan","Ref. Kirche ABC",null,null,null,null,null,null,null,null,null,"2","Empore rechts, Reihe 2 ","76","Regulär","CHF",40,"Platz frei"]
["100948",null,"xxxxxxxxxxxxxxxxxx","Musterplan","Ref. Kirche ABC",null,null,null,null,null,null,null,null,null,"2","Empore rechts, Reihe 2 ","78","Regulär","CHF",40,"Platz frei"]
["100934",null,"xxxxxxxxxxxxxxxxxx","Musterplan","Ref. Kirche ABC",null,null,null,null,null,null,null,null,null,"2","Empore rechts, Reihe 2 ","80","Regulär","CHF",40,"Platz frei"]
["100920",null,"xxxxxxxxxxxxxxxxxx","Musterplan","Ref. Kirche ABC",null,null,null,null,null,null,null,null,null,"2","Empore rechts, Reihe 2 ","82","Regulär","CHF",40,"Platz frei"]
["100906",null,"xxxxxxxxxxxxxxxxxx","Musterplan","Ref. Kirche ABC",null,null,null,null,null,null,null,null,null,"2","Empore rechts, Reihe 2 ","84","Regulär","CHF",40,"Platz frei"]
["100892",null,"xxxxxxxxxxxxxxxxxx","Musterplan","Ref. Kirche ABC",null,null,null,null,null,null,null,null,null,"2","Empore rechts, Reihe 2 ","86","Regulär","CHF",40,"Platz frei"]
["100878",null,"xxxxxxxxxxxxxxxxxx","Musterplan","Ref. Kirche ABC",null,null,null,null,null,null,null,null,null,"2","Empore rechts, Reihe 2 ","88","Regulär","CHF",40,"Platz frei"]
["100864",null,"xxxxxxxxxxxxxxxxxx","Musterplan","Ref. Kirche ABC",null,null,null,null,null,null,null,null,null,"2","Empore rechts, Reihe 2 ","90","Regulär","CHF",40,"Platz frei"]
["100850",null,"xxxxxxxxxxxxxxxxxx","Musterplan","Ref. Kirche ABC",null,null,null,null,null,null,null,null,null,"2","Empore rechts, Reihe 2 ","92","Regulär","CHF",40,"Platz frei"]
["100836",null,"xxxxxxxxxxxxxxxxxx","Musterplan","Ref. Kirche ABC",null,null,null,null,null,null,null,null,null,"3","Empore rechts, Reihe 2 ","94","Regulär","CHF",30,"Platz frei"]
["100822",null,"xxxxxxxxxxxxxxxxxx","Musterplan","Ref. Kirche ABC",null,null,null,null,null,null,null,null,null,"3","Empore rechts, Reihe 2 ","96","Regulär","CHF",30,"Platz frei"]
["100808",null,"xxxxxxxxxxxxxxxxxx","Musterplan","Ref. Kirche ABC",null,null,null,null,null,null,null,null,null,"3","Empore rechts, Reihe 2 ","98","Regulär","CHF",30,"Platz frei"]
["100794",null,"xxxxxxxxxxxxxxxxxx","Musterplan","Ref. Kirche ABC",null,null,null,null,null,null,null,null,null,"3","Empore rechts, Reihe 2 ","100","Regulär","CHF",30,"Platz frei"]
["100780",null,"xxxxxxxxxxxxxxxxxx","Musterplan","Ref. Kirche ABC",null,null,null,null,null,null,null,null,null,"3","Empore rechts, Reihe 2 ","102","Regulär","CHF",30,"Platz frei"]
["100766",null,"xxxxxxxxxxxxxxxxxx","Musterplan","Ref. Kirche ABC",null,null,null,null,null,null,null,null,null,"3","Empore rechts, Reihe 2 ","104","Regulär","CHF",30,"Platz frei"]
["101129",null,"xxxxxxxxxxxxxxxxxx","Musterplan","Ref. Kirche ABC",null,null,null,null,null,null,null,null,null,"2","Empore rechts, Reihe 3 ","106","Regulär","CHF",40,"Platz frei"]
["101103",null,"xxxxxxxxxxxxxxxxxx","Musterplan","Ref. Kirche ABC",null,null,null,null,null,null,null,null,null,"2","Empore rechts, Reihe 3 ","108","Regulär","CHF",40,"Platz frei"]
["101089",null,"xxxxxxxxxxxxxxxxxx","Musterplan","Ref. Kirche ABC",null,null,null,null,null,null,null,null,null,"2","Empore rechts, Reihe 3 ","110","Regulär","CHF",40,"Platz frei"]
["101075",null,"xxxxxxxxxxxxxxxxxx","Musterplan","Ref. Kirche ABC",null,null,null,null,null,null,null,null,null,"2","Empore rechts, Reihe 3 ","112","Regulär","CHF",40,"Platz frei"]
["101061",null,"xxxxxxxxxxxxxxxxxx","Musterplan","Ref. Kirche ABC",null,null,null,null,null,null,null,null,null,"2","Empore rechts, Reihe 3 ","114","Regulär","CHF",40,"Platz frei"]
["101047",null,"xxxxxxxxxxxxxxxxxx","Musterplan","Ref. Kirche ABC",null,null,null,null,null,null,null,null,null,"2","Empore rechts, Reihe 3 ","116","Regulär","CHF",40,"Platz frei"]
["101033",null,"xxxxxxxxxxxxxxxxxx","Musterplan","Ref. Kirche ABC",null,null,null,null,null,null,null,null,null,"2","Empore rechts, Reihe 3 ","118","Regulär","CHF",40,"Platz frei"]
["101019",null,"xxxxxxxxxxxxxxxxxx","Musterplan","Ref. Kirche ABC",null,null,null,null,null,null,null,null,null,"2","Empore rechts, Reihe 3 ","120","Regulär","CHF",40,"Platz frei"]
["101005",null,"xxxxxxxxxxxxxxxxxx","Musterplan","Ref. Kirche ABC",null,null,null,null,null,null,null,null,null,"2","Empore rechts, Reihe 3 ","122","Regulär","CHF",40,"Platz frei"]
["100991",null,"xxxxxxxxxxxxxxxxxx","Musterplan","Ref. Kirche ABC",null,null,null,null,null,null,null,null,null,"2","Empore rechts, Reihe 3 ","124","Regulär","CHF",40,"Platz frei"]
["100977",null,"xxxxxxxxxxxxxxxxxx","Musterplan","Ref. Kirche ABC",null,null,null,null,null,null,null,null,null,"2","Empore rechts, Reihe 3 ","126","Regulär","CHF",40,"Platz frei"]
["100963",null,"xxxxxxxxxxxxxxxxxx","Musterplan","Ref. Kirche ABC",null,null,null,null,null,null,null,null,null,"2","Empore rechts, Reihe 3 ","128","Regulär","CHF",40,"Platz frei"]
["100949",null,"xxxxxxxxxxxxxxxxxx","Musterplan","Ref. Kirche ABC",null,null,null,null,null,null,null,null,null,"2","Empore rechts, Reihe 3 ","130","Regulär","CHF",40,"Platz frei"]
["100935",null,"xxxxxxxxxxxxxxxxxx","Musterplan","Ref. Kirche ABC",null,null,null,null,null,null,null,null,null,"2","Empore rechts, Reihe 3 ","132","Regulär","CHF",40,"Platz frei"]
["100921",null,"xxxxxxxxxxxxxxxxxx","Musterplan","Ref. Kirche ABC",null,null,null,null,null,null,null,null,null,"2","Empore rechts, Reihe 3 ","134","Regulär","CHF",40,"Platz frei"]
["100907",null,"xxxxxxxxxxxxxxxxxx","Musterplan","Ref. Kirche ABC",null,null,null,null,null,null,null,null,null,"2","Empore rechts, Reihe 3 ","136","Regulär","CHF",40,"Platz frei"]
["100893",null,"xxxxxxxxxxxxxxxxxx","Musterplan","Ref. Kirche ABC",null,null,null,null,null,null,null,null,null,"2","Empore rechts, Reihe 3 ","138","Regulär","CHF",40,"Platz frei"]
["100879",null,"xxxxxxxxxxxxxxxxxx","Musterplan","Ref. Kirche ABC",null,null,null,null,null,null,null,null,null,"2","Empore rechts, Reihe 3 ","140","Regulär","CHF",40,"Platz frei"]
["100865",null,"xxxxxxxxxxxxxxxxxx","Musterplan","Ref. Kirche ABC",null,null,null,null,null,null,null,null,null,"2","Empore rechts, Reihe 3 ","142","Regulär","CHF",40,"Platz frei"]
["100851",null,"xxxxxxxxxxxxxxxxxx","Musterplan","Ref. Kirche ABC",null,null,null,null,null,null,null,null,null,"2","Empore rechts, Reihe 3 ","144","Regulär","CHF",40,"Platz frei"]
["100837",null,"xxxxxxxxxxxxxxxxxx","Musterplan","Ref. Kirche ABC",null,null,null,null,null,null,null,null,null,"3","Empore rechts, Reihe 3 ","146","Regulär","CHF",30,"Platz frei"]
["100823",null,"xxxxxxxxxxxxxxxxxx","Musterplan","Ref. Kirche ABC",null,null,null,null,null,null,null,null,null,"3","Empore rechts, Reihe 3 ","148","Regulär","CHF",30,"Platz frei"]
["100809",null,"xxxxxxxxxxxxxxxxxx","Musterplan","Ref. Kirche ABC",null,null,null,null,null,null,null,null,null,"3","Empore rechts, Reihe 3 ","150","Regulär","CHF",30,"Platz frei"]
["100795",null,"xxxxxxxxxxxxxxxxxx","Musterplan","Ref. Kirche ABC",null,null,null,null,null,null,null,null,null,"3","Empore rechts, Reihe 3 ","152","Regulär","CHF",30,"Platz frei"]
["100781",null,"xxxxxxxxxxxxxxxxxx","Musterplan","Ref. Kirche ABC",null,null,null,null,null,null,null,null,null,"3","Empore rechts, Reihe 3 ","154","Regulär","CHF",30,"Platz frei"]
["100767",null,"xxxxxxxxxxxxxxxxxx","Musterplan","Ref. Kirche ABC",null,null,null,null,null,null,null,null,null,"3","Empore rechts, Reihe 3 ","156","Regulär","CHF",30,"Platz frei"]
["101130",null,"xxxxxxxxxxxxxxxxxx","Musterplan","Ref. Kirche ABC",null,null,null,null,null,null,null,null,null,"2","Empore rechts, Reihe 4 ","158","Regulär","CHF",40,"Platz frei"]
["101104",null,"xxxxxxxxxxxxxxxxxx","Musterplan","Ref. Kirche ABC",null,null,null,null,null,null,null,null,null,"2","Empore rechts, Reihe 4 ","160","Regulär","CHF",40,"Platz frei"]
["101090",null,"xxxxxxxxxxxxxxxxxx","Musterplan","Ref. Kirche ABC",null,null,null,null,null,null,null,null,null,"2","Empore rechts, Reihe 4 ","162","Regulär","CHF",40,"Platz frei"]
["101076",null,"xxxxxxxxxxxxxxxxxx","Musterplan","Ref. Kirche ABC",null,null,null,null,null,null,null,null,null,"2","Empore rechts, Reihe 4 ","164","Regulär","CHF",40,"Platz frei"]
["101062",null,"xxxxxxxxxxxxxxxxxx","Musterplan","Ref. Kirche ABC",null,null,null,null,null,null,null,null,null,"2","Empore rechts, Reihe 4 ","166","Regulär","CHF",40,"Platz frei"]
["101048",null,"xxxxxxxxxxxxxxxxxx","Musterplan","Ref. Kirche ABC",null,null,null,null,null,null,null,null,null,"2","Empore rechts, Reihe 4 ","168","Regulär","CHF",40,"Platz frei"]
["101034",null,"xxxxxxxxxxxxxxxxxx","Musterplan","Ref. Kirche ABC",null,null,null,null,null,null,null,null,null,"2","Empore rechts, Reihe 4 ","170","Regulär","CHF",40,"Platz frei"]
["101020",null,"xxxxxxxxxxxxxxxxxx","Musterplan","Ref. Kirche ABC",null,null,null,null,null,null,null,null,null,"2","Empore rechts, Reihe 4 ","172","Regulär","CHF",40,"Platz frei"]
["101006",null,"xxxxxxxxxxxxxxxxxx","Musterplan","Ref. Kirche ABC",null,null,null,null,null,null,null,null,null,"2","Empore rechts, Reihe 4 ","174","Regulär","CHF",40,"Platz frei"]
["100992",null,"xxxxxxxxxxxxxxxxxx","Musterplan","Ref. Kirche ABC",null,null,null,null,null,null,null,null,null,"2","Empore rechts, Reihe 4 ","176","Regulär","CHF",40,"Platz frei"]
["100978",null,"xxxxxxxxxxxxxxxxxx","Musterplan","Ref. Kirche ABC",null,null,null,null,null,null,null,null,null,"2","Empore rechts, Reihe 4 ","178","Regulär","CHF",40,"Platz frei"]
["100964",null,"xxxxxxxxxxxxxxxxxx","Musterplan","Ref. Kirche ABC",null,null,null,null,null,null,null,null,null,"2","Empore rechts, Reihe 4 ","180","Regulär","CHF",40,"Platz frei"]
["100950",null,"xxxxxxxxxxxxxxxxxx","Musterplan","Ref. Kirche ABC",null,null,null,null,null,null,null,null,null,"2","Empore rechts, Reihe 4 ","182","Regulär","CHF",40,"Platz frei"]
["100936",null,"xxxxxxxxxxxxxxxxxx","Musterplan","Ref. Kirche ABC",null,null,null,null,null,null,null,null,null,"2","Empore rechts, Reihe 4 ","184","Regulär","CHF",40,"Platz frei"]
["100922",null,"xxxxxxxxxxxxxxxxxx","Musterplan","Ref. Kirche ABC",null,null,null,null,null,null,null,null,null,"2","Empore rechts, Reihe 4 ","186","Regulär","CHF",40,"Platz frei"]
["100908",null,"xxxxxxxxxxxxxxxxxx","Musterplan","Ref. Kirche ABC",null,null,null,null,null,null,null,null,null,"2","Empore rechts, Reihe 4 ","188","Regulär","CHF",40,"Platz frei"]
["100894",null,"xxxxxxxxxxxxxxxxxx","Musterplan","Ref. Kirche ABC",null,null,null,null,null,null,null,null,null,"2","Empore rechts, Reihe 4 ","190","Regulär","CHF",40,"Platz frei"]
["100880",null,"xxxxxxxxxxxxxxxxxx","Musterplan","Ref. Kirche ABC",null,null,null,null,null,null,null,null,null,"2","Empore rechts, Reihe 4 ","192","Regulär","CHF",40,"Platz frei"]
["100866",null,"xxxxxxxxxxxxxxxxxx","Musterplan","Ref. Kirche ABC",null,null,null,null,null,null,null,null,null,"2","Empore rechts, Reihe 4 ","194","Regulär","CHF",40,"Platz frei"]
["100852",null,"xxxxxxxxxxxxxxxxxx","Musterplan","Ref. Kirche ABC",null,null,null,null,null,null,null,null,null,"2","Empore rechts, Reihe 4 ","196","Regulär","CHF",40,"Platz frei"]
["100838",null,"xxxxxxxxxxxxxxxxxx","Musterplan","Ref. Kirche ABC",null,null,null,null,null,null,null,null,null,"3","Empore rechts, Reihe 4 ","198","Regulär","CHF",30,"Platz frei"]
["100824",null,"xxxxxxxxxxxxxxxxxx","Musterplan","Ref. Kirche ABC",null,null,null,null,null,null,null,null,null,"3","Empore rechts, Reihe 4 ","200","Regulär","CHF",30,"Platz frei"]
["100810",null,"xxxxxxxxxxxxxxxxxx","Musterplan","Ref. Kirche ABC",null,null,null,null,null,null,null,null,null,"3","Empore rechts, Reihe 4 ","202","Regulär","CHF",30,"Platz frei"]
["100796",null,"xxxxxxxxxxxxxxxxxx","Musterplan","Ref. Kirche ABC",null,null,null,null,null,null,null,null,null,"3","Empore rechts, Reihe 4 ","204","Regulär","CHF",30,"Platz frei"]
["100782",null,"xxxxxxxxxxxxxxxxxx","Musterplan","Ref. Kirche ABC",null,null,null,null,null,null,null,null,null,"3","Empore rechts, Reihe 4 ","206","Regulär","CHF",30,"Platz frei"]
["100768",null,"xxxxxxxxxxxxxxxxxx","Musterplan","Ref. Kirche ABC",null,null,null,null,null,null,null,null,null,"3","Empore rechts, Reihe 4 ","208","Regulär","CHF",30,"Platz frei"]
["101131",null,"xxxxxxxxxxxxxxxxxx","Musterplan","Ref. Kirche ABC",null,null,null,null,null,null,null,null,null,"2","Empore rechts, Reihe 5 ","210","Regulär","CHF",40,"Platz frei"]
["101105",null,"xxxxxxxxxxxxxxxxxx","Musterplan","Ref. Kirche ABC",null,null,null,null,null,null,null,null,null,"2","Empore rechts, Reihe 5 ","212","Regulär","CHF",40,"Platz frei"]
["101091",null,"xxxxxxxxxxxxxxxxxx","Musterplan","Ref. Kirche ABC",null,null,null,null,null,null,null,null,null,"2","Empore rechts, Reihe 5 ","214","Regulär","CHF",40,"Platz frei"]
["101077",null,"xxxxxxxxxxxxxxxxxx","Musterplan","Ref. Kirche ABC",null,null,null,null,null,null,null,null,null,"2","Empore rechts, Reihe 5 ","216","Regulär","CHF",40,"Platz frei"]
["101063",null,"xxxxxxxxxxxxxxxxxx","Musterplan","Ref. Kirche ABC",null,null,null,null,null,null,null,null,null,"2","Empore rechts, Reihe 5 ","218","Regulär","CHF",40,"Platz frei"]
["101049",null,"xxxxxxxxxxxxxxxxxx","Musterplan","Ref. Kirche ABC",null,null,null,null,null,null,null,null,null,"2","Empore rechts, Reihe 5 ","220","Regulär","CHF",40,"Platz frei"]
["101035",null,"xxxxxxxxxxxxxxxxxx","Musterplan","Ref. Kirche ABC",null,null,null,null,null,null,null,null,null,"2","Empore rechts, Reihe 5 ","222","Regulär","CHF",40,"Platz frei"]
["101021",null,"xxxxxxxxxxxxxxxxxx","Musterplan","Ref. Kirche ABC",null,null,null,null,null,null,null,null,null,"2","Empore rechts, Reihe 5 ","224","Regulär","CHF",40,"Platz frei"]
["101007",null,"xxxxxxxxxxxxxxxxxx","Musterplan","Ref. Kirche ABC",null,null,null,null,null,null,null,null,null,"2","Empore rechts, Reihe 5 ","226","Regulär","CHF",40,"Platz frei"]
["100993",null,"xxxxxxxxxxxxxxxxxx","Musterplan","Ref. Kirche ABC",null,null,null,null,null,null,null,null,null,"2","Empore rechts, Reihe 5 ","228","Regulär","CHF",40,"Platz frei"]
["100979",null,"xxxxxxxxxxxxxxxxxx","Musterplan","Ref. Kirche ABC",null,null,null,null,null,null,null,null,null,"2","Empore rechts, Reihe 5 ","230","Regulär","CHF",40,"Platz frei"]
["100965",null,"xxxxxxxxxxxxxxxxxx","Musterplan","Ref. Kirche ABC",null,null,null,null,null,null,null,null,null,"2","Empore rechts, Reihe 5 ","232","Regulär","CHF",40,"Platz frei"]
["100951",null,"xxxxxxxxxxxxxxxxxx","Musterplan","Ref. Kirche ABC",null,null,null,null,null,null,null,null,null,"2","Empore rechts, Reihe 5 ","234","Regulär","CHF",40,"Platz frei"]
["100937",null,"xxxxxxxxxxxxxxxxxx","Musterplan","Ref. Kirche ABC",null,null,null,null,null,null,null,null,null,"2","Empore rechts, Reihe 5 ","236","Regulär","CHF",40,"Platz frei"]
["100923",null,"xxxxxxxxxxxxxxxxxx","Musterplan","Ref. Kirche ABC",null,null,null,null,null,null,null,null,null,"2","Empore rechts, Reihe 5 ","238","Regulär","CHF",40,"Platz frei"]
["100909",null,"xxxxxxxxxxxxxxxxxx","Musterplan","Ref. Kirche ABC",null,null,null,null,null,null,null,null,null,"2","Empore rechts, Reihe 5 ","240","Regulär","CHF",40,"Platz frei"]
["100895",null,"xxxxxxxxxxxxxxxxxx","Musterplan","Ref. Kirche ABC",null,null,null,null,null,null,null,null,null,"2","Empore rechts, Reihe 5 ","242","Regulär","CHF",40,"Platz frei"]
["100881",null,"xxxxxxxxxxxxxxxxxx","Musterplan","Ref. Kirche ABC",null,null,null,null,null,null,null,null,null,"2","Empore rechts, Reihe 5 ","244","Regulär","CHF",40,"Platz frei"]
["100867",null,"xxxxxxxxxxxxxxxxxx","Musterplan","Ref. Kirche ABC",null,null,null,null,null,null,null,null,null,"2","Empore rechts, Reihe 5 ","246","Regulär","CHF",40,"Platz frei"]
["100853",null,"xxxxxxxxxxxxxxxxxx","Musterplan","Ref. Kirche ABC",null,null,null,null,null,null,null,null,null,"2","Empore rechts, Reihe 5 ","248","Regulär","CHF",40,"Platz frei"]
["100839",null,"xxxxxxxxxxxxxxxxxx","Musterplan","Ref. Kirche ABC",null,null,null,null,null,null,null,null,null,"3","Empore rechts, Reihe 5 ","250","Regulär","CHF",30,"Platz frei"]
["100825",null,"xxxxxxxxxxxxxxxxxx","Musterplan","Ref. Kirche ABC",null,null,null,null,null,null,null,null,null,"3","Empore rechts, Reihe 5 ","252","Regulär","CHF",30,"Platz frei"]
["100811",null,"xxxxxxxxxxxxxxxxxx","Musterplan","Ref. Kirche ABC",null,null,null,null,null,null,null,null,null,"3","Empore rechts, Reihe 5 ","254","Regulär","CHF",30,"Platz frei"]
["100797",null,"xxxxxxxxxxxxxxxxxx","Musterplan","Ref. Kirche ABC",null,null,null,null,null,null,null,null,null,"3","Empore rechts, Reihe 5 ","256","Regulär","CHF",30,"Platz frei"]
["100783",null,"xxxxxxxxxxxxxxxxxx","Musterplan","Ref. Kirche ABC",null,null,null,null,null,null,null,null,null,"3","Empore rechts, Reihe 5 ","258","Regulär","CHF",30,"Platz frei"]
["100769",null,"xxxxxxxxxxxxxxxxxx","Musterplan","Ref. Kirche ABC",null,null,null,null,null,null,null,null,null,"3","Empore rechts, Reihe 5 ","260","Regulär","CHF",30,"Platz frei"]
["101132",null,"xxxxxxxxxxxxxxxxxx","Musterplan","Ref. Kirche ABC",null,null,null,null,null,null,null,null,null,"2","Empore rechts, Reihe 6 ","262","Regulär","CHF",40,"Platz frei"]
["101106",null,"xxxxxxxxxxxxxxxxxx","Musterplan","Ref. Kirche ABC",null,null,null,null,null,null,null,null,null,"2","Empore rechts, Reihe 6 ","264","Regulär","CHF",40,"Platz frei"]
["101092",null,"xxxxxxxxxxxxxxxxxx","Musterplan","Ref. Kirche ABC",null,null,null,null,null,null,null,null,null,"2","Empore rechts, Reihe 6 ","266","Regulär","CHF",40,"Platz frei"]
["101078",null,"xxxxxxxxxxxxxxxxxx","Musterplan","Ref. Kirche ABC",null,null,null,null,null,null,null,null,null,"2","Empore rechts, Reihe 6 ","268","Regulär","CHF",40,"Platz frei"]
["101064",null,"xxxxxxxxxxxxxxxxxx","Musterplan","Ref. Kirche ABC",null,null,null,null,null,null,null,null,null,"2","Empore rechts, Reihe 6 ","270","Regulär","CHF",40,"Platz frei"]
["101050",null,"xxxxxxxxxxxxxxxxxx","Musterplan","Ref. Kirche ABC",null,null,null,null,null,null,null,null,null,"2","Empore rechts, Reihe 6 ","272","Regulär","CHF",40,"Platz frei"]
["101036",null,"xxxxxxxxxxxxxxxxxx","Musterplan","Ref. Kirche ABC",null,null,null,null,null,null,null,null,null,"2","Empore rechts, Reihe 6 ","274","Regulär","CHF",40,"Platz frei"]
["101022",null,"xxxxxxxxxxxxxxxxxx","Musterplan","Ref. Kirche ABC",null,null,null,null,null,null,null,null,null,"2","Empore rechts, Reihe 6 ","276","Regulär","CHF",40,"Platz frei"]
["101008",null,"xxxxxxxxxxxxxxxxxx","Musterplan","Ref. Kirche ABC",null,null,null,null,null,null,null,null,null,"2","Empore rechts, Reihe 6 ","278","Regulär","CHF",40,"Platz frei"]
["100994",null,"xxxxxxxxxxxxxxxxxx","Musterplan","Ref. Kirche ABC",null,null,null,null,null,null,null,null,null,"2","Empore rechts, Reihe 6 ","280","Regulär","CHF",40,"Platz frei"]
["100980",null,"xxxxxxxxxxxxxxxxxx","Musterplan","Ref. Kirche ABC",null,null,null,null,null,null,null,null,null,"2","Empore rechts, Reihe 6 ","282","Regulär","CHF",40,"Platz frei"]
["100966",null,"xxxxxxxxxxxxxxxxxx","Musterplan","Ref. Kirche ABC",null,null,null,null,null,null,null,null,null,"2","Empore rechts, Reihe 6 ","284","Regulär","CHF",40,"Platz frei"]
["100952",null,"xxxxxxxxxxxxxxxxxx","Musterplan","Ref. Kirche ABC",null,null,null,null,null,null,null,null,null,"2","Empore rechts, Reihe 6 ","286","Regulär","CHF",40,"Platz frei"]
["100938",null,"xxxxxxxxxxxxxxxxxx","Musterplan","Ref. Kirche ABC",null,null,null,null,null,null,null,null,null,"2","Empore rechts, Reihe 6 ","288","Regulär","CHF",40,"Platz frei"]
["100924",null,"xxxxxxxxxxxxxxxxxx","Musterplan","Ref. Kirche ABC",null,null,null,null,null,null,null,null,null,"2","Empore rechts, Reihe 6 ","290","Regulär","CHF",40,"Platz frei"]
["100910",null,"xxxxxxxxxxxxxxxxxx","Musterplan","Ref. Kirche ABC",null,null,null,null,null,null,null,null,null,"2","Empore rechts, Reihe 6 ","292","Regulär","CHF",40,"Platz frei"]
["100896",null,"xxxxxxxxxxxxxxxxxx","Musterplan","Ref. Kirche ABC",null,null,null,null,null,null,null,null,null,"2","Empore rechts, Reihe 6 ","294","Regulär","CHF",40,"Platz frei"]
["100882",null,"xxxxxxxxxxxxxxxxxx","Musterplan","Ref. Kirche ABC",null,null,null,null,null,null,null,null,null,"2","Empore rechts, Reihe 6 ","296","Regulär","CHF",40,"Platz frei"]
["100868",null,"xxxxxxxxxxxxxxxxxx","Musterplan","Ref. Kirche ABC",null,null,null,null,null,null,null,null,null,"2","Empore rechts, Reihe 6 ","298","Regulär","CHF",40,"Platz frei"]
["100854",null,"xxxxxxxxxxxxxxxxxx","Musterplan","Ref. Kirche ABC",null,null,null,null,null,null,null,null,null,"2","Empore rechts, Reihe 6 ","300","Regulär","CHF",40,"Platz frei"]
["100840",null,"xxxxxxxxxxxxxxxxxx","Musterplan","Ref. Kirche ABC",null,null,null,null,null,null,null,null,null,"3","Empore rechts, Reihe 6 ","302","Regulär","CHF",30,"Platz frei"]
["100826",null,"xxxxxxxxxxxxxxxxxx","Musterplan","Ref. Kirche ABC",null,null,null,null,null,null,null,null,null,"3","Empore rechts, Reihe 6 ","304","Regulär","CHF",30,"Platz frei"]
["100812",null,"xxxxxxxxxxxxxxxxxx","Musterplan","Ref. Kirche ABC",null,null,null,null,null,null,null,null,null,"3","Empore rechts, Reihe 6 ","306","Regulär","CHF",30,"Platz frei"]
["100798",null,"xxxxxxxxxxxxxxxxxx","Musterplan","Ref. Kirche ABC",null,null,null,null,null,null,null,null,null,"3","Empore rechts, Reihe 6 ","308","Regulär","CHF",30,"Platz frei"]
["100784",null,"xxxxxxxxxxxxxxxxxx","Musterplan","Ref. Kirche ABC",null,null,null,null,null,null,null,null,null,"3","Empore rechts, Reihe 6 ","310","Regulär","CHF",30,"Platz frei"]
["100770",null,"xxxxxxxxxxxxxxxxxx","Musterplan","Ref. Kirche ABC",null,null,null,null,null,null,null,null,null,"3","Empore rechts, Reihe 6 ","312","Regulär","CHF",30,"Platz frei"]
["101133",null,"xxxxxxxxxxxxxxxxxx","Musterplan","Ref. Kirche ABC",null,null,null,null,null,null,null,null,null,"2","Empore rechts, Reihe 7 ","314","Regulär","CHF",40,"Platz frei"]
["101107",null,"xxxxxxxxxxxxxxxxxx","Musterplan","Ref. Kirche ABC",null,null,null,null,null,null,null,null,null,"2","Empore rechts, Reihe 7 ","316","Regulär","CHF",40,"Platz frei"]
["101093",null,"xxxxxxxxxxxxxxxxxx","Musterplan","Ref. Kirche ABC",null,null,null,null,null,null,null,null,null,"2","Empore rechts, Reihe 7 ","318","Regulär","CHF",40,"Platz frei"]
["101079",null,"xxxxxxxxxxxxxxxxxx","Musterplan","Ref. Kirche ABC",null,null,null,null,null,null,null,null,null,"2","Empore rechts, Reihe 7 ","320","Regulär","CHF",40,"Platz frei"]
["101065",null,"xxxxxxxxxxxxxxxxxx","Musterplan","Ref. Kirche ABC",null,null,null,null,null,null,null,null,null,"2","Empore rechts, Reihe 7 ","322","Regulär","CHF",40,"Platz frei"]
["101051",null,"xxxxxxxxxxxxxxxxxx","Musterplan","Ref. Kirche ABC",null,null,null,null,null,null,null,null,null,"2","Empore rechts, Reihe 7 ","324","Regulär","CHF",40,"Platz frei"]
["101037",null,"xxxxxxxxxxxxxxxxxx","Musterplan","Ref. Kirche ABC",null,null,null,null,null,null,null,null,null,"2","Empore rechts, Reihe 7 ","326","Regulär","CHF",40,"Platz frei"]
["101023",null,"xxxxxxxxxxxxxxxxxx","Musterplan","Ref. Kirche ABC",null,null,null,null,null,null,null,null,null,"2","Empore rechts, Reihe 7 ","328","Regulär","CHF",40,"Platz frei"]
["101009",null,"xxxxxxxxxxxxxxxxxx","Musterplan","Ref. Kirche ABC",null,null,null,null,null,null,null,null,null,"2","Empore rechts, Reihe 7 ","330","Regulär","CHF",40,"Platz frei"]
["100995",null,"xxxxxxxxxxxxxxxxxx","Musterplan","Ref. Kirche ABC",null,null,null,null,null,null,null,null,null,"2","Empore rechts, Reihe 7 ","332","Regulär","CHF",40,"Platz frei"]
["100981",null,"xxxxxxxxxxxxxxxxxx","Musterplan","Ref. Kirche ABC",null,null,null,null,null,null,null,null,null,"2","Empore rechts, Reihe 7 ","334","Regulär","CHF",40,"Platz frei"]
["100967",null,"xxxxxxxxxxxxxxxxxx","Musterplan","Ref. Kirche ABC",null,null,null,null,null,null,null,null,null,"2","Empore rechts, Reihe 7 ","336","Regulär","CHF",40,"Platz frei"]
["100953",null,"xxxxxxxxxxxxxxxxxx","Musterplan","Ref. Kirche ABC",null,null,null,null,null,null,null,null,null,"2","Empore rechts, Reihe 7 ","338","Regulär","CHF",40,"Platz frei"]
["100939",null,"xxxxxxxxxxxxxxxxxx","Musterplan","Ref. Kirche ABC",null,null,null,null,null,null,null,null,null,"2","Empore rechts, Reihe 7 ","340","Regulär","CHF",40,"Platz frei"]
["100925",null,"xxxxxxxxxxxxxxxxxx","Musterplan","Ref. Kirche ABC",null,null,null,null,null,null,null,null,null,"2","Empore rechts, Reihe 7 ","342","Regulär","CHF",40,"Platz frei"]
["100911",null,"xxxxxxxxxxxxxxxxxx","Musterplan","Ref. Kirche ABC",null,null,null,null,null,null,null,null,null,"2","Empore rechts, Reihe 7 ","344","Regulär","CHF",40,"Platz frei"]
["100897",null,"xxxxxxxxxxxxxxxxxx","Musterplan","Ref. Kirche ABC",null,null,null,null,null,null,null,null,null,"2","Empore rechts, Reihe 7 ","346","Regulär","CHF",40,"Platz frei"]
["100883",null,"xxxxxxxxxxxxxxxxxx","Musterplan","Ref. Kirche ABC",null,null,null,null,null,null,null,null,null,"2","Empore rechts, Reihe 7 ","348","Regulär","CHF",40,"Platz frei"]
["100869",null,"xxxxxxxxxxxxxxxxxx","Musterplan","Ref. Kirche ABC",null,null,null,null,null,null,null,null,null,"2","Empore rechts, Reihe 7 ","350","Regulär","CHF",40,"Platz frei"]
["100855",null,"xxxxxxxxxxxxxxxxxx","Musterplan","Ref. Kirche ABC",null,null,null,null,null,null,null,null,null,"2","Empore rechts, Reihe 7 ","352","Regulär","CHF",40,"Platz frei"]
["100841",null,"xxxxxxxxxxxxxxxxxx","Musterplan","Ref. Kirche ABC",null,null,null,null,null,null,null,null,null,"3","Empore rechts, Reihe 7 ","354","Regulär","CHF",30,"Platz frei"]
["100827",null,"xxxxxxxxxxxxxxxxxx","Musterplan","Ref. Kirche ABC",null,null,null,null,null,null,null,null,null,"3","Empore rechts, Reihe 7 ","356","Regulär","CHF",30,"Platz frei"]
["100813",null,"xxxxxxxxxxxxxxxxxx","Musterplan","Ref. Kirche ABC",null,null,null,null,null,null,null,null,null,"3","Empore rechts, Reihe 7 ","358","Regulär","CHF",30,"Platz frei"]
["100799",null,"xxxxxxxxxxxxxxxxxx","Musterplan","Ref. Kirche ABC",null,null,null,null,null,null,null,null,null,"3","Empore rechts, Reihe 7 ","360","Regulär","CHF",30,"Platz frei"]
["100785",null,"xxxxxxxxxxxxxxxxxx","Musterplan","Ref. Kirche ABC",null,null,null,null,null,null,null,null,null,"3","Empore rechts, Reihe 7 ","362","Regulär","CHF",30,"Platz frei"]
["100771",null,"xxxxxxxxxxxxxxxxxx","Musterplan","Ref. Kirche ABC",null,null,null,null,null,null,null,null,null,"3","Empore rechts, Reihe 7 ","364","Regulär","CHF",30,"Platz frei"]
["100410",null,"xxxxxxxxxxxxxxxxxx","Musterplan","Ref. Kirche ABC",null,null,null,null,null,null,null,null,null,"2","Kirchenschiff links, Reihe 10 ","259","Regulär","CHF",40,"Platz frei"]
["100442",null,"xxxxxxxxxxxxxxxxxx","Musterplan","Ref. Kirche ABC",null,null,null,null,null,null,null,null,null,"2","Kirchenschiff links, Reihe 10 ","261","Regulär","CHF",40,"Platz frei"]
["100456",null,"xxxxxxxxxxxxxxxxxx","Musterplan","Ref. Kirche ABC",null,null,null,null,null,null,null,null,null,"2","Kirchenschiff links, Reihe 10 ","263","Regulär","CHF",40,"Platz frei"]
["100492",null,"xxxxxxxxxxxxxxxxxx","Musterplan","Ref. Kirche ABC",null,null,null,null,null,null,null,null,null,"2","Kirchenschiff links, Reihe 10 ","265","Regulär","CHF",40,"Platz frei"]
["100506",null,"xxxxxxxxxxxxxxxxxx","Musterplan","Ref. Kirche ABC",null,null,null,null,null,null,null,null,null,"2","Kirchenschiff links, Reihe 10 ","267","Regulär","CHF",40,"Platz frei"]
["100544",null,"xxxxxxxxxxxxxxxxxx","Musterplan","Ref. Kirche ABC",null,null,null,null,null,null,null,null,null,"2","Kirchenschiff links, Reihe 10 ","269","Regulär","CHF",40,"Platz frei"]
["100558",null,"xxxxxxxxxxxxxxxxxx","Musterplan","Ref. Kirche ABC",null,null,null,null,null,null,null,null,null,"2","Kirchenschiff links, Reihe 10 ","271","Regulär","CHF",40,"Platz frei"]
["100596",null,"xxxxxxxxxxxxxxxxxx","Musterplan","Ref. Kirche ABC",null,null,null,null,null,null,null,null,null,"2","Kirchenschiff links, Reihe 10 ","273","Regulär","CHF",40,"Platz frei"]
["100610",null,"xxxxxxxxxxxxxxxxxx","Musterplan","Ref. Kirche ABC",null,null,null,null,null,null,null,null,null,"2","Kirchenschiff links, Reihe 10 ","275","Regulär","CHF",40,"Platz frei"]
["100648",null,"xxxxxxxxxxxxxxxxxx","Musterplan","Ref. Kirche ABC",null,null,null,null,null,null,null,null,null,"2","Kirchenschiff links, Reihe 10 ","277","Regulär","CHF",40,"Platz frei"]
["100662",null,"xxxxxxxxxxxxxxxxxx","Musterplan","Ref. Kirche ABC",null,null,null,null,null,null,null,null,null,"2","Kirchenschiff links, Reihe 10 ","279","Regulär","CHF",40,"Platz frei"]
["100699",null,"xxxxxxxxxxxxxxxxxx","Musterplan","Ref. Kirche ABC",null,null,null,null,null,null,null,null,null,"2","Kirchenschiff links, Reihe 10 ","281","Regulär","CHF",40,"Platz frei"]
["100409",null,"xxxxxxxxxxxxxxxxxx","Musterplan","Ref. Kirche ABC",null,null,null,null,null,null,null,null,null,"2","Kirchenschiff links, Reihe 11 ","235","Regulär","CHF",40,"Platz frei"]
["100441",null,"xxxxxxxxxxxxxxxxxx","Musterplan","Ref. Kirche ABC",null,null,null,null,null,null,null,null,null,"2","Kirchenschiff links, Reihe 11 ","237","Regulär","CHF",40,"Platz frei"]
["100455",null,"xxxxxxxxxxxxxxxxxx","Musterplan","Ref. Kirche ABC",null,null,null,null,null,null,null,null,null,"2","Kirchenschiff links, Reihe 11 ","239","Regulär","CHF",40,"Platz frei"]
["100491",null,"xxxxxxxxxxxxxxxxxx","Musterplan","Ref. Kirche ABC",null,null,null,null,null,null,null,null,null,"2","Kirchenschiff links, Reihe 11 ","241","Regulär","CHF",40,"Platz frei"]
["100505",null,"xxxxxxxxxxxxxxxxxx","Musterplan","Ref. Kirche ABC",null,null,null,null,null,null,null,null,null,"2","Kirchenschiff links, Reihe 11 ","243","Regulär","CHF",40,"Platz frei"]
["100543",null,"xxxxxxxxxxxxxxxxxx","Musterplan","Ref. Kirche ABC",null,null,null,null,null,null,null,null,null,"2","Kirchenschiff links, Reihe 11 ","245","Regulär","CHF",40,"Platz frei"]
["100557",null,"xxxxxxxxxxxxxxxxxx","Musterplan","Ref. Kirche ABC",null,null,null,null,null,null,null,null,null,"2","Kirchenschiff links, Reihe 11 ","247","Regulär","CHF",40,"Platz frei"]
["100595",null,"xxxxxxxxxxxxxxxxxx","Musterplan","Ref. Kirche ABC",null,null,null,null,null,null,null,null,null,"2","Kirchenschiff links, Reihe 11 ","249","Regulär","CHF",40,"Platz frei"]
["100609",null,"xxxxxxxxxxxxxxxxxx","Musterplan","Ref. Kirche ABC",null,null,null,null,null,null,null,null,null,"2","Kirchenschiff links, Reihe 11 ","251","Regulär","CHF",40,"Platz frei"]
["100647",null,"xxxxxxxxxxxxxxxxxx","Musterplan","Ref. Kirche ABC",null,null,null,null,null,null,null,null,null,"2","Kirchenschiff links, Reihe 11 ","253","Regulär","CHF",40,"Platz frei"]
["100661",null,"xxxxxxxxxxxxxxxxxx","Musterplan","Ref. Kirche ABC",null,null,null,null,null,null,null,null,null,"2","Kirchenschiff links, Reihe 11 ","255","Regulär","CHF",40,"Platz frei"]
["100698",null,"xxxxxxxxxxxxxxxxxx","Musterplan","Ref. Kirche ABC",null,null,null,null,null,null,null,null,null,"2","Kirchenschiff links, Reihe 11 ","257","Regulär","CHF",40,"Platz frei"]
["100408",null,"xxxxxxxxxxxxxxxxxx","Musterplan","Ref. Kirche ABC",null,null,null,null,null,null,null,null,null,"2","Kirchenschiff links, Reihe 12 ","211","Regulär","CHF",40,"Platz frei"]
["100440",null,"xxxxxxxxxxxxxxxxxx","Musterplan","Ref. Kirche ABC",null,null,null,null,null,null,null,null,null,"2","Kirchenschiff links, Reihe 12 ","213","Regulär","CHF",40,"Platz frei"]
["100454",null,"xxxxxxxxxxxxxxxxxx","Musterplan","Ref. Kirche ABC",null,null,null,null,null,null,null,null,null,"2","Kirchenschiff links, Reihe 12 ","215","Regulär","CHF",40,"Platz frei"]
["100490",null,"xxxxxxxxxxxxxxxxxx","Musterplan","Ref. Kirche ABC",null,null,null,null,null,null,null,null,null,"2","Kirchenschiff links, Reihe 12 ","217","Regulär","CHF",40,"Platz frei"]
["100504",null,"xxxxxxxxxxxxxxxxxx","Musterplan","Ref. Kirche ABC",null,null,null,null,null,null,null,null,null,"2","Kirchenschiff links, Reihe 12 ","219","Regulär","CHF",40,"Platz frei"]
["100542",null,"xxxxxxxxxxxxxxxxxx","Musterplan","Ref. Kirche ABC",null,null,null,null,null,null,null,null,null,"2","Kirchenschiff links, Reihe 12 ","221","Regulär","CHF",40,"Platz frei"]
["100556",null,"xxxxxxxxxxxxxxxxxx","Musterplan","Ref. Kirche ABC",null,null,null,null,null,null,null,null,null,"2","Kirchenschiff links, Reihe 12 ","223","Regulär","CHF",40,"Platz frei"]
["100594",null,"xxxxxxxxxxxxxxxxxx","Musterplan","Ref. Kirche ABC",null,null,null,null,null,null,null,null,null,"2","Kirchenschiff links, Reihe 12 ","225","Regulär","CHF",40,"Platz frei"]
["100608",null,"xxxxxxxxxxxxxxxxxx","Musterplan","Ref. Kirche ABC",null,null,null,null,null,null,null,null,null,"2","Kirchenschiff links, Reihe 12 ","227","Regulär","CHF",40,"Platz frei"]
["100646",null,"xxxxxxxxxxxxxxxxxx","Musterplan","Ref. Kirche ABC",null,null,null,null,null,null,null,null,null,"2","Kirchenschiff links, Reihe 12 ","229","Regulär","CHF",40,"Platz frei"]
["100660",null,"xxxxxxxxxxxxxxxxxx","Musterplan","Ref. Kirche ABC",null,null,null,null,null,null,null,null,null,"2","Kirchenschiff links, Reihe 12 ","231","Regulär","CHF",40,"Platz frei"]
["100697",null,"xxxxxxxxxxxxxxxxxx","Musterplan","Ref. Kirche ABC",null,null,null,null,null,null,null,null,null,"2","Kirchenschiff links, Reihe 12 ","233","Regulär","CHF",40,"Platz frei"]
["100407",null,"xxxxxxxxxxxxxxxxxx","Musterplan","Ref. Kirche ABC",null,null,null,null,null,null,null,null,null,"2","Kirchenschiff links, Reihe 13 ","187","Regulär","CHF",40,"Platz frei"]
["100439",null,"xxxxxxxxxxxxxxxxxx","Musterplan","Ref. Kirche ABC",null,null,null,null,null,null,null,null,null,"2","Kirchenschiff links, Reihe 13 ","189","Regulär","CHF",40,"Platz frei"]
["100453",null,"xxxxxxxxxxxxxxxxxx","Musterplan","Ref. Kirche ABC",null,null,null,null,null,null,null,null,null,"2","Kirchenschiff links, Reihe 13 ","191","Regulär","CHF",40,"Platz frei"]
["100489",null,"xxxxxxxxxxxxxxxxxx","Musterplan","Ref. Kirche ABC",null,null,null,null,null,null,null,null,null,"2","Kirchenschiff links, Reihe 13 ","193","Regulär","CHF",40,"Platz frei"]
["100503",null,"xxxxxxxxxxxxxxxxxx","Musterplan","Ref. Kirche ABC",null,null,null,null,null,null,null,null,null,"2","Kirchenschiff links, Reihe 13 ","195","Regulär","CHF",40,"Platz frei"]
["100541",null,"xxxxxxxxxxxxxxxxxx","Musterplan","Ref. Kirche ABC",null,null,null,null,null,null,null,null,null,"2","Kirchenschiff links, Reihe 13 ","197","Regulär","CHF",40,"Platz frei"]
["100555",null,"xxxxxxxxxxxxxxxxxx","Musterplan","Ref. Kirche ABC",null,null,null,null,null,null,null,null,null,"2","Kirchenschiff links, Reihe 13 ","199","Regulär","CHF",40,"Platz frei"]
["100593",null,"xxxxxxxxxxxxxxxxxx","Musterplan","Ref. Kirche ABC",null,null,null,null,null,null,null,null,null,"2","Kirchenschiff links, Reihe 13 ","201","Regulär","CHF",40,"Platz frei"]
["100607",null,"xxxxxxxxxxxxxxxxxx","Musterplan","Ref. Kirche ABC",null,null,null,null,null,null,null,null,null,"2","Kirchenschiff links, Reihe 13 ","203","Regulär","CHF",40,"Platz frei"]
["100645",null,"xxxxxxxxxxxxxxxxxx","Musterplan","Ref. Kirche ABC",null,null,null,null,null,null,null,null,null,"2","Kirchenschiff links, Reihe 13 ","205","Regulär","CHF",40,"Platz frei"]
["100659",null,"xxxxxxxxxxxxxxxxxx","Musterplan","Ref. Kirche ABC",null,null,null,null,null,null,null,null,null,"2","Kirchenschiff links, Reihe 13 ","207","Regulär","CHF",40,"Platz frei"]
["100696",null,"xxxxxxxxxxxxxxxxxx","Musterplan","Ref. Kirche ABC",null,null,null,null,null,null,null,null,null,"2","Kirchenschiff links, Reihe 13 ","209","Regulär","CHF",40,"Platz frei"]
["100406",null,"xxxxxxxxxxxxxxxxxx","Musterplan","Ref. Kirche ABC",null,null,null,null,null,null,null,null,null,"3","Kirchenschiff links, Reihe 14 ","163","Regulär","CHF",30,"Platz frei"]
["100438",null,"xxxxxxxxxxxxxxxxxx","Musterplan","Ref. Kirche ABC",null,null,null,null,null,null,null,null,null,"3","Kirchenschiff links, Reihe 14 ","165","Regulär","CHF",30,"Platz frei"]
["100452",null,"xxxxxxxxxxxxxxxxxx","Musterplan","Ref. Kirche ABC",null,null,null,null,null,null,null,null,null,"3","Kirchenschiff links, Reihe 14 ","167","Regulär","CHF",30,"Platz frei"]
["100488",null,"xxxxxxxxxxxxxxxxxx","Musterplan","Ref. Kirche ABC",null,null,null,null,null,null,null,null,null,"3","Kirchenschiff links, Reihe 14 ","169","Regulär","CHF",30,"Platz frei"]
["100502",null,"xxxxxxxxxxxxxxxxxx","Musterplan","Ref. Kirche ABC",null,null,null,null,null,null,null,null,null,"3","Kirchenschiff links, Reihe 14 ","171","Regulär","CHF",30,"Platz frei"]
["100540",null,"xxxxxxxxxxxxxxxxxx","Musterplan","Ref. Kirche ABC",null,null,null,null,null,null,null,null,null,"3","Kirchenschiff links, Reihe 14 ","173","Regulär","CHF",30,"Platz frei"]
["100554",null,"xxxxxxxxxxxxxxxxxx","Musterplan","Ref. Kirche ABC",null,null,null,null,null,null,null,null,null,"3","Kirchenschiff links, Reihe 14 ","175","Regulär","CHF",30,"Platz frei"]
["100592",null,"xxxxxxxxxxxxxxxxxx","Musterplan","Ref. Kirche ABC",null,null,null,null,null,null,null,null,null,"3","Kirchenschiff links, Reihe 14 ","177","Regulär","CHF",30,"Platz frei"]
["100606",null,"xxxxxxxxxxxxxxxxxx","Musterplan","Ref. Kirche ABC",null,null,null,null,null,null,null,null,null,"3","Kirchenschiff links, Reihe 14 ","179","Regulär","CHF",30,"Platz frei"]
["100644",null,"xxxxxxxxxxxxxxxxxx","Musterplan","Ref. Kirche ABC",null,null,null,null,null,null,null,null,null,"3","Kirchenschiff links, Reihe 14 ","181","Regulär","CHF",30,"Platz frei"]
["100658",null,"xxxxxxxxxxxxxxxxxx","Musterplan","Ref. Kirche ABC",null,null,null,null,null,null,null,null,null,"3","Kirchenschiff links, Reihe 14 ","183","Regulär","CHF",30,"Platz frei"]
["100695",null,"xxxxxxxxxxxxxxxxxx","Musterplan","Ref. Kirche ABC",null,null,null,null,null,null,null,null,null,"3","Kirchenschiff links, Reihe 14 ","185","Regulär","CHF",30,"Platz frei"]
["100405",null,"xxxxxxxxxxxxxxxxxx","Musterplan","Ref. Kirche ABC",null,null,null,null,null,null,null,null,null,"3","Kirchenschiff links, Reihe 15 ","139","Regulär","CHF",30,"Platz frei"]
["100437",null,"xxxxxxxxxxxxxxxxxx","Musterplan","Ref. Kirche ABC",null,null,null,null,null,null,null,null,null,"3","Kirchenschiff links, Reihe 15 ","141","Regulär","CHF",30,"Platz frei"]
["100451",null,"xxxxxxxxxxxxxxxxxx","Musterplan","Ref. Kirche ABC",null,null,null,null,null,null,null,null,null,"3","Kirchenschiff links, Reihe 15 ","143","Regulär","CHF",30,"Platz frei"]
["100487",null,"xxxxxxxxxxxxxxxxxx","Musterplan","Ref. Kirche ABC",null,null,null,null,null,null,null,null,null,"3","Kirchenschiff links, Reihe 15 ","145","Regulär","CHF",30,"Platz frei"]
["100501",null,"xxxxxxxxxxxxxxxxxx","Musterplan","Ref. Kirche ABC",null,null,null,null,null,null,null,null,null,"3","Kirchenschiff links, Reihe 15 ","147","Regulär","CHF",30,"Platz frei"]
["100539",null,"xxxxxxxxxxxxxxxxxx","Musterplan","Ref. Kirche ABC",null,null,null,null,null,null,null,null,null,"3","Kirchenschiff links, Reihe 15 ","149","Regulär","CHF",30,"Platz frei"]
["100553",null,"xxxxxxxxxxxxxxxxxx","Musterplan","Ref. Kirche ABC",null,null,null,null,null,null,null,null,null,"3","Kirchenschiff links, Reihe 15 ","151","Regulär","CHF",30,"Platz frei"]
["100591",null,"xxxxxxxxxxxxxxxxxx","Musterplan","Ref. Kirche ABC",null,null,null,null,null,null,null,null,null,"3","Kirchenschiff links, Reihe 15 ","153","Regulär","CHF",30,"Platz frei"]
["100605",null,"xxxxxxxxxxxxxxxxxx","Musterplan","Ref. Kirche ABC",null,null,null,null,null,null,null,null,null,"3","Kirchenschiff links, Reihe 15 ","155","Regulär","CHF",30,"Platz frei"]
["100643",null,"xxxxxxxxxxxxxxxxxx","Musterplan","Ref. Kirche ABC",null,null,null,null,null,null,null,null,null,"3","Kirchenschiff links, Reihe 15 ","157","Regulär","CHF",30,"Platz frei"]
["100657",null,"xxxxxxxxxxxxxxxxxx","Musterplan","Ref. Kirche ABC",null,null,null,null,null,null,null,null,null,"3","Kirchenschiff links, Reihe 15 ","159","Regulär","CHF",30,"Platz frei"]
["100694",null,"xxxxxxxxxxxxxxxxxx","Musterplan","Ref. Kirche ABC",null,null,null,null,null,null,null,null,null,"3","Kirchenschiff links, Reihe 15 ","161","Regulär","CHF",30,"Platz frei"]
["100656",null,"xxxxxxxxxxxxxxxxxx","Musterplan","Ref. Kirche ABC",null,null,null,null,null,null,null,null,null,"3","Kirchenschiff links, Reihe 16 ","471","Regulär","CHF",30,"Platz frei"]
["100642",null,"xxxxxxxxxxxxxxxxxx","Musterplan","Ref. Kirche ABC",null,null,null,null,null,null,null,null,null,"3","Kirchenschiff links, Reihe 16 ","473","Regulär","CHF",30,"Platz frei"]
["100604",null,"xxxxxxxxxxxxxxxxxx","Musterplan","Ref. Kirche ABC",null,null,null,null,null,null,null,null,null,"3","Kirchenschiff links, Reihe 16 ","475","Regulär","CHF",30,"Platz frei"]
["100590",null,"xxxxxxxxxxxxxxxxxx","Musterplan","Ref. Kirche ABC",null,null,null,null,null,null,null,null,null,"3","Kirchenschiff links, Reihe 16 ","477","Regulär","CHF",30,"Platz frei"]
["100552",null,"xxxxxxxxxxxxxxxxxx","Musterplan","Ref. Kirche ABC",null,null,null,null,null,null,null,null,null,"3","Kirchenschiff links, Reihe 16 ","479","Regulär","CHF",30,"Platz frei"]
["100538",null,"xxxxxxxxxxxxxxxxxx","Musterplan","Ref. Kirche ABC",null,null,null,null,null,null,null,null,null,"3","Kirchenschiff links, Reihe 16 ","481","Regulär","CHF",30,"Platz frei"]
["100500",null,"xxxxxxxxxxxxxxxxxx","Musterplan","Ref. Kirche ABC",null,null,null,null,null,null,null,null,null,"3","Kirchenschiff links, Reihe 16 ","483","Regulär","CHF",30,"Platz frei"]
["100486",null,"xxxxxxxxxxxxxxxxxx","Musterplan","Ref. Kirche ABC",null,null,null,null,null,null,null,null,null,"3","Kirchenschiff links, Reihe 16 ","485","Regulär","CHF",30,"Platz frei"]
["100450",null,"xxxxxxxxxxxxxxxxxx","Musterplan","Ref. Kirche ABC",null,null,null,null,null,null,null,null,null,"3","Kirchenschiff links, Reihe 16 ","487","Regulär","CHF",30,"Platz frei"]
["100436",null,"xxxxxxxxxxxxxxxxxx","Musterplan","Ref. Kirche ABC",null,null,null,null,null,null,null,null,null,"3","Kirchenschiff links, Reihe 16 ","489","Regulär","CHF",30,"Platz frei"]
["100404",null,"xxxxxxxxxxxxxxxxxx","Musterplan","Ref. Kirche ABC",null,null,null,null,null,null,null,null,null,"3","Kirchenschiff links, Reihe 16 ","491","Regulär","CHF",30,"Platz frei"]
["100735",null,"xxxxxxxxxxxxxxxxxx","Musterplan","Ref. Kirche ABC",null,null,null,null,null,null,null,null,null,"2","Kirchenschiff links, Reihe 9 ","451","Regulär","CHF",40,"Platz frei"]
["100734",null,"xxxxxxxxxxxxxxxxxx","Musterplan","Ref. Kirche ABC",null,null,null,null,null,null,null,null,null,"2","Kirchenschiff links, Reihe 9 ","453","Regulär","CHF",40,"Platz frei"]
["100733",null,"xxxxxxxxxxxxxxxxxx","Musterplan","Ref. Kirche ABC",null,null,null,null,null,null,null,null,null,"2","Kirchenschiff links, Reihe 9 ","455","Regulär","CHF",40,"Platz frei"]
["100732",null,"xxxxxxxxxxxxxxxxxx","Musterplan","Ref. Kirche ABC",null,null,null,null,null,null,null,null,null,"2","Kirchenschiff links, Reihe 9 ","457","Regulär","CHF",40,"Platz frei"]
["100731",null,"xxxxxxxxxxxxxxxxxx","Musterplan","Ref. Kirche ABC",null,null,null,null,null,null,null,null,null,"2","Kirchenschiff links, Reihe 9 ","459","Regulär","CHF",40,"Platz frei"]
["100730",null,"xxxxxxxxxxxxxxxxxx","Musterplan","Ref. Kirche ABC",null,null,null,null,null,null,null,null,null,"2","Kirchenschiff links, Reihe 9 ","461","Regulär","CHF",40,"Platz frei"]
["100729",null,"xxxxxxxxxxxxxxxxxx","Musterplan","Ref. Kirche ABC",null,null,null,null,null,null,null,null,null,"2","Kirchenschiff links, Reihe 9 ","463","Regulär","CHF",40,"Platz frei"]
["100728",null,"xxxxxxxxxxxxxxxxxx","Musterplan","Ref. Kirche ABC",null,null,null,null,null,null,null,null,null,"3","Kirchenschiff links, Reihe 9 ","465","Regulär","CHF",30,"Platz frei"]
["100727",null,"xxxxxxxxxxxxxxxxxx","Musterplan","Ref. Kirche ABC",null,null,null,null,null,null,null,null,null,"3","Kirchenschiff links, Reihe 9 ","467","Regulär","CHF",30,"Platz frei"]
["100726",null,"xxxxxxxxxxxxxxxxxx","Musterplan","Ref. Kirche ABC",null,null,null,null,null,null,null,null,null,"3","Kirchenschiff links, Reihe 9 ","469","Regulär","CHF",30,"Platz frei"]
["100419",null,"xxxxxxxxxxxxxxxxxx","Musterplan","Ref. Kirche ABC",null,null,null,null,null,null,null,null,null,"1","Kirchenschiff Mitte li, Reihe  1 ","421","Regulär","CHF",50,"Platz frei"]
["100418",null,"xxxxxxxxxxxxxxxxxx","Musterplan","Ref. Kirche ABC",null,null,null,null,null,null,null,null,null,"1","Kirchenschiff Mitte li, Reihe  1 ","423","Regulär","CHF",50,"Platz frei"]
["100417",null,"xxxxxxxxxxxxxxxxxx","Musterplan","Ref. Kirche ABC",null,null,null,null,null,null,null,null,null,"1","Kirchenschiff Mitte li, Reihe  1 ","425","Regulär","CHF",50,"Platz frei"]
["100416",null,"xxxxxxxxxxxxxxxxxx","Musterplan","Ref. Kirche ABC",null,null,null,null,null,null,null,null,null,"1","Kirchenschiff Mitte li, Reihe  1 ","427","Regulär","CHF",50,"Platz frei"]
["100415",null,"xxxxxxxxxxxxxxxxxx","Musterplan","Ref. Kirche ABC",null,null,null,null,null,null,null,null,null,"1","Kirchenschiff Mitte li, Reihe  1 ","429","Regulär","CHF",50,"Platz frei"]
["100414",null,"xxxxxxxxxxxxxxxxxx","Musterplan","Ref. Kirche ABC",null,null,null,null,null,null,null,null,null,"1","Kirchenschiff Mitte li, Reihe  1 ","431","Regulär","CHF",50,"Platz frei"]
["100413",null,"xxxxxxxxxxxxxxxxxx","Musterplan","Ref. Kirche ABC",null,null,null,null,null,null,null,null,null,"1","Kirchenschiff Mitte li, Reihe  1 ","433","Regulär","CHF",50,"Platz frei"]
["100412",null,"xxxxxxxxxxxxxxxxxx","Musterplan","Ref. Kirche ABC",null,null,null,null,null,null,null,null,null,"1","Kirchenschiff Mitte li, Reihe  1 ","435","Regulär","CHF",50,"Platz frei"]
["100411",null,"xxxxxxxxxxxxxxxxxx","Musterplan","Ref. Kirche ABC",null,null,null,null,null,null,null,null,null,"1","Kirchenschiff Mitte li, Reihe  1 ","437","Regulär","CHF",50,"Platz frei"]
["100467",null,"xxxxxxxxxxxxxxxxxx","Musterplan","Ref. Kirche ABC",null,null,null,null,null,null,null,null,null,"1","Kirchenschiff Mitte li, Reihe  2 ","399","Regulär","CHF",50,"Platz frei"]
["100466",null,"xxxxxxxxxxxxxxxxxx","Musterplan","Ref. Kirche ABC",null,null,null,null,null,null,null,null,null,"1","Kirchenschiff Mitte li, Reihe  2 ","401","Regulär","CHF",50,"Platz frei"]
["100465",null,"xxxxxxxxxxxxxxxxxx","Musterplan","Ref. Kirche ABC",null,null,null,null,null,null,null,null,null,"1","Kirchenschiff Mitte li, Reihe  2 ","403","Regulär","CHF",50,"Platz frei"]
["100464",null,"xxxxxxxxxxxxxxxxxx","Musterplan","Ref. Kirche ABC",null,null,null,null,null,null,null,null,null,"1","Kirchenschiff Mitte li, Reihe  2 ","405","Regulär","CHF",50,"Platz frei"]
["100463",null,"xxxxxxxxxxxxxxxxxx","Musterplan","Ref. Kirche ABC",null,null,null,null,null,null,null,null,null,"1","Kirchenschiff Mitte li, Reihe  2 ","407","Regulär","CHF",50,"Platz frei"]
["100462",null,"xxxxxxxxxxxxxxxxxx","Musterplan","Ref. Kirche ABC",null,null,null,null,null,null,null,null,null,"1","Kirchenschiff Mitte li, Reihe  2 ","409","Regulär","CHF",50,"Platz frei"]
["100461",null,"xxxxxxxxxxxxxxxxxx","Musterplan","Ref. Kirche ABC",null,null,null,null,null,null,null,null,null,"1","Kirchenschiff Mitte li, Reihe  2 ","411","Regulär","CHF",50,"Platz frei"]
["100460",null,"xxxxxxxxxxxxxxxxxx","Musterplan","Ref. Kirche ABC",null,null,null,null,null,null,null,null,null,"1","Kirchenschiff Mitte li, Reihe  2 ","413","Regulär","CHF",50,"Platz frei"]
["100459",null,"xxxxxxxxxxxxxxxxxx","Musterplan","Ref. Kirche ABC",null,null,null,null,null,null,null,null,null,"1","Kirchenschiff Mitte li, Reihe  2 ","415","Regulär","CHF",50,"Platz frei"]
["100458",null,"xxxxxxxxxxxxxxxxxx","Musterplan","Ref. Kirche ABC",null,null,null,null,null,null,null,null,null,"1","Kirchenschiff Mitte li, Reihe  2 ","417","Regulär","CHF",50,"Platz frei"]
["100457",null,"xxxxxxxxxxxxxxxxxx","Musterplan","Ref. Kirche ABC",null,null,null,null,null,null,null,null,null,"1","Kirchenschiff Mitte li, Reihe  2 ","419","Regulär","CHF",50,"Platz frei"]
["100518",null,"xxxxxxxxxxxxxxxxxx","Musterplan","Ref. Kirche ABC",null,null,null,null,null,null,null,null,null,"1","Kirchenschiff Mitte li, Reihe  3 ","375","Regulär","CHF",50,"Platz frei"]
["100517",null,"xxxxxxxxxxxxxxxxxx","Musterplan","Ref. Kirche ABC",null,null,null,null,null,null,null,null,null,"1","Kirchenschiff Mitte li, Reihe  3 ","377","Regulär","CHF",50,"Platz frei"]
["100516",null,"xxxxxxxxxxxxxxxxxx","Musterplan","Ref. Kirche ABC",null,null,null,null,null,null,null,null,null,"1","Kirchenschiff Mitte li, Reihe  3 ","379","Regulär","CHF",50,"Platz frei"]
["100515",null,"xxxxxxxxxxxxxxxxxx","Musterplan","Ref. Kirche ABC",null,null,null,null,null,null,null,null,null,"1","Kirchenschiff Mitte li, Reihe  3 ","381","Regulär","CHF",50,"Platz frei"]
["100514",null,"xxxxxxxxxxxxxxxxxx","Musterplan","Ref. Kirche ABC",null,null,null,null,null,null,null,null,null,"1","Kirchenschiff Mitte li, Reihe  3 ","383","Regulär","CHF",50,"Platz frei"]
["100513",null,"xxxxxxxxxxxxxxxxxx","Musterplan","Ref. Kirche ABC",null,null,null,null,null,null,null,null,null,"1","Kirchenschiff Mitte li, Reihe  3 ","385","Regulär","CHF",50,"Platz frei"]
["100512",null,"xxxxxxxxxxxxxxxxxx","Musterplan","Ref. Kirche ABC",null,null,null,null,null,null,null,null,null,"1","Kirchenschiff Mitte li, Reihe  3 ","387","Regulär","CHF",50,"Platz frei"]
["100511",null,"xxxxxxxxxxxxxxxxxx","Musterplan","Ref. Kirche ABC",null,null,null,null,null,null,null,null,null,"1","Kirchenschiff Mitte li, Reihe  3 ","389","Regulär","CHF",50,"Platz frei"]
["100510",null,"xxxxxxxxxxxxxxxxxx","Musterplan","Ref. Kirche ABC",null,null,null,null,null,null,null,null,null,"1","Kirchenschiff Mitte li, Reihe  3 ","391","Regulär","CHF",50,"Platz frei"]
["100509",null,"xxxxxxxxxxxxxxxxxx","Musterplan","Ref. Kirche ABC",null,null,null,null,null,null,null,null,null,"1","Kirchenschiff Mitte li, Reihe  3 ","393","Regulär","CHF",50,"Platz frei"]
["100508",null,"xxxxxxxxxxxxxxxxxx","Musterplan","Ref. Kirche ABC",null,null,null,null,null,null,null,null,null,"1","Kirchenschiff Mitte li, Reihe  3 ","395","Regulär","CHF",50,"Platz frei"]
["100507",null,"xxxxxxxxxxxxxxxxxx","Musterplan","Ref. Kirche ABC",null,null,null,null,null,null,null,null,null,"1","Kirchenschiff Mitte li, Reihe  3 ","397","Regulär","CHF",50,"Platz frei"]
["100570",null,"xxxxxxxxxxxxxxxxxx","Musterplan","Ref. Kirche ABC",null,null,null,null,null,null,null,null,null,"1","Kirchenschiff Mitte li, Reihe  4 ","351","Regulär","CHF",50,"Platz frei"]
["100569",null,"xxxxxxxxxxxxxxxxxx","Musterplan","Ref. Kirche ABC",null,null,null,null,null,null,null,null,null,"1","Kirchenschiff Mitte li, Reihe  4 ","353","Regulär","CHF",50,"Platz frei"]
["100568",null,"xxxxxxxxxxxxxxxxxx","Musterplan","Ref. Kirche ABC",null,null,null,null,null,null,null,null,null,"1","Kirchenschiff Mitte li, Reihe  4 ","355","Regulär","CHF",50,"Platz frei"]
["100567",null,"xxxxxxxxxxxxxxxxxx","Musterplan","Ref. Kirche ABC",null,null,null,null,null,null,null,null,null,"1","Kirchenschiff Mitte li, Reihe  4 ","357","Regulär","CHF",50,"Platz frei"]
["100566",null,"xxxxxxxxxxxxxxxxxx","Musterplan","Ref. Kirche ABC",null,null,null,null,null,null,null,null,null,"1","Kirchenschiff Mitte li, Reihe  4 ","359","Regulär","CHF",50,"Platz frei"]
["100565",null,"xxxxxxxxxxxxxxxxxx","Musterplan","Ref. Kirche ABC",null,null,null,null,null,null,null,null,null,"1","Kirchenschiff Mitte li, Reihe  4 ","361","Regulär","CHF",50,"Platz frei"]
["100564",null,"xxxxxxxxxxxxxxxxxx","Musterplan","Ref. Kirche ABC",null,null,null,null,null,null,null,null,null,"1","Kirchenschiff Mitte li, Reihe  4 ","363","Regulär","CHF",50,"Platz frei"]
["100563",null,"xxxxxxxxxxxxxxxxxx","Musterplan","Ref. Kirche ABC",null,null,null,null,null,null,null,null,null,"1","Kirchenschiff Mitte li, Reihe  4 ","365","Regulär","CHF",50,"Platz frei"]
["100562",null,"xxxxxxxxxxxxxxxxxx","Musterplan","Ref. Kirche ABC",null,null,null,null,null,null,null,null,null,"1","Kirchenschiff Mitte li, Reihe  4 ","367","Regulär","CHF",50,"Platz frei"]
["100561",null,"xxxxxxxxxxxxxxxxxx","Musterplan","Ref. Kirche ABC",null,null,null,null,null,null,null,null,null,"1","Kirchenschiff Mitte li, Reihe  4 ","369","Regulär","CHF",50,"Platz frei"]
["100560",null,"xxxxxxxxxxxxxxxxxx","Musterplan","Ref. Kirche ABC",null,null,null,null,null,null,null,null,null,"1","Kirchenschiff Mitte li, Reihe  4 ","371","Regulär","CHF",50,"Platz frei"]
["100559",null,"xxxxxxxxxxxxxxxxxx","Musterplan","Ref. Kirche ABC",null,null,null,null,null,null,null,null,null,"1","Kirchenschiff Mitte li, Reihe  4 ","373","Regulär","CHF",50,"Platz frei"]
["100622",null,"xxxxxxxxxxxxxxxxxx","Musterplan","Ref. Kirche ABC",null,null,null,null,null,null,null,null,null,"1","Kirchenschiff Mitte li, Reihe  5 ","327","Regulär","CHF",50,"Platz frei"]
["100621",null,"xxxxxxxxxxxxxxxxxx","Musterplan","Ref. Kirche ABC",null,null,null,null,null,null,null,null,null,"1","Kirchenschiff Mitte li, Reihe  5 ","329","Regulär","CHF",50,"Platz frei"]
["100620",null,"xxxxxxxxxxxxxxxxxx","Musterplan","Ref. Kirche ABC",null,null,null,null,null,null,null,null,null,"1","Kirchenschiff Mitte li, Reihe  5 ","331","Regulär","CHF",50,"Platz frei"]
["100619",null,"xxxxxxxxxxxxxxxxxx","Musterplan","Ref. Kirche ABC",null,null,null,null,null,null,null,null,null,"1","Kirchenschiff Mitte li, Reihe  5 ","333","Regulär","CHF",50,"Platz frei"]
["100618",null,"xxxxxxxxxxxxxxxxxx","Musterplan","Ref. Kirche ABC",null,null,null,null,null,null,null,null,null,"1","Kirchenschiff Mitte li, Reihe  5 ","335","Regulär","CHF",50,"Platz frei"]
["100617",null,"xxxxxxxxxxxxxxxxxx","Musterplan","Ref. Kirche ABC",null,null,null,null,null,null,null,null,null,"1","Kirchenschiff Mitte li, Reihe  5 ","337","Regulär","CHF",50,"Platz frei"]
["100616",null,"xxxxxxxxxxxxxxxxxx","Musterplan","Ref. Kirche ABC",null,null,null,null,null,null,null,null,null,"1","Kirchenschiff Mitte li, Reihe  5 ","339","Regulär","CHF",50,"Platz frei"]
["100615",null,"xxxxxxxxxxxxxxxxxx","Musterplan","Ref. Kirche ABC",null,null,null,null,null,null,null,null,null,"1","Kirchenschiff Mitte li, Reihe  5 ","341","Regulär","CHF",50,"Platz frei"]
["100614",null,"xxxxxxxxxxxxxxxxxx","Musterplan","Ref. Kirche ABC",null,null,null,null,null,null,null,null,null,"1","Kirchenschiff Mitte li, Reihe  5 ","343","Regulär","CHF",50,"Platz frei"]
["100613",null,"xxxxxxxxxxxxxxxxxx","Musterplan","Ref. Kirche ABC",null,null,null,null,null,null,null,null,null,"1","Kirchenschiff Mitte li, Reihe  5 ","345","Regulär","CHF",50,"Platz frei"]
["100612",null,"xxxxxxxxxxxxxxxxxx","Musterplan","Ref. Kirche ABC",null,null,null,null,null,null,null,null,null,"1","Kirchenschiff Mitte li, Reihe  5 ","347","Regulär","CHF",50,"Platz frei"]
["100611",null,"xxxxxxxxxxxxxxxxxx","Musterplan","Ref. Kirche ABC",null,null,null,null,null,null,null,null,null,"1","Kirchenschiff Mitte li, Reihe  5 ","349","Regulär","CHF",50,"Platz frei"]
["100674",null,"xxxxxxxxxxxxxxxxxx","Musterplan","Ref. Kirche ABC",null,null,null,null,null,null,null,null,null,"1","Kirchenschiff Mitte li, Reihe  6 ","303","Regulär","CHF",50,"Platz frei"]
["100673",null,"xxxxxxxxxxxxxxxxxx","Musterplan","Ref. Kirche ABC",null,null,null,null,null,null,null,null,null,"1","Kirchenschiff Mitte li, Reihe  6 ","305","Regulär","CHF",50,"Platz frei"]
["100672",null,"xxxxxxxxxxxxxxxxxx","Musterplan","Ref. Kirche ABC",null,null,null,null,null,null,null,null,null,"1","Kirchenschiff Mitte li, Reihe  6 ","307","Regulär","CHF",50,"Platz frei"]
["100671",null,"xxxxxxxxxxxxxxxxxx","Musterplan","Ref. Kirche ABC",null,null,null,null,null,null,null,null,null,"1","Kirchenschiff Mitte li, Reihe  6 ","309","Regulär","CHF",50,"Platz frei"]
["100670",null,"xxxxxxxxxxxxxxxxxx","Musterplan","Ref. Kirche ABC",null,null,null,null,null,null,null,null,null,"1","Kirchenschiff Mitte li, Reihe  6 ","311","Regulär","CHF",50,"Platz frei"]
["100669",null,"xxxxxxxxxxxxxxxxxx","Musterplan","Ref. Kirche ABC",null,null,null,null,null,null,null,null,null,"1","Kirchenschiff Mitte li, Reihe  6 ","313","Regulär","CHF",50,"Platz frei"]
["100668",null,"xxxxxxxxxxxxxxxxxx","Musterplan","Ref. Kirche ABC",null,null,null,null,null,null,null,null,null,"1","Kirchenschiff Mitte li, Reihe  6 ","315","Regulär","CHF",50,"Platz frei"]
["100667",null,"xxxxxxxxxxxxxxxxxx","Musterplan","Ref. Kirche ABC",null,null,null,null,null,null,null,null,null,"1","Kirchenschiff Mitte li, Reihe  6 ","317","Regulär","CHF",50,"Platz frei"]
["100666",null,"xxxxxxxxxxxxxxxxxx","Musterplan","Ref. Kirche ABC",null,null,null,null,null,null,null,null,null,"1","Kirchenschiff Mitte li, Reihe  6 ","319","Regulär","CHF",50,"Platz frei"]
["100665",null,"xxxxxxxxxxxxxxxxxx","Musterplan","Ref. Kirche ABC",null,null,null,null,null,null,null,null,null,"1","Kirchenschiff Mitte li, Reihe  6 ","321","Regulär","CHF",50,"Platz frei"]
["100664",null,"xxxxxxxxxxxxxxxxxx","Musterplan","Ref. Kirche ABC",null,null,null,null,null,null,null,null,null,"1","Kirchenschiff Mitte li, Reihe  6 ","323","Regulär","CHF",50,"Platz frei"]
["100663",null,"xxxxxxxxxxxxxxxxxx","Musterplan","Ref. Kirche ABC",null,null,null,null,null,null,null,null,null,"1","Kirchenschiff Mitte li, Reihe  6 ","325","Regulär","CHF",50,"Platz frei"]
["100715",null,"xxxxxxxxxxxxxxxxxx","Musterplan","Ref. Kirche ABC",null,null,null,null,null,null,null,null,null,"1","Kirchenschiff Mitte li, Reihe  7 ","283","Regulär","CHF",50,"Platz frei"]
["100714",null,"xxxxxxxxxxxxxxxxxx","Musterplan","Ref. Kirche ABC",null,null,null,null,null,null,null,null,null,"1","Kirchenschiff Mitte li, Reihe  7 ","285","Regulär","CHF",50,"Platz frei"]
["100713",null,"xxxxxxxxxxxxxxxxxx","Musterplan","Ref. Kirche ABC",null,null,null,null,null,null,null,null,null,"1","Kirchenschiff Mitte li, Reihe  7 ","287","Regulär","CHF",50,"Platz frei"]
["100712",null,"xxxxxxxxxxxxxxxxxx","Musterplan","Ref. Kirche ABC",null,null,null,null,null,null,null,null,null,"1","Kirchenschiff Mitte li, Reihe  7 ","289","Regulär","CHF",50,"Platz frei"]
["100711",null,"xxxxxxxxxxxxxxxxxx","Musterplan","Ref. Kirche ABC",null,null,null,null,null,null,null,null,null,"1","Kirchenschiff Mitte li, Reihe  7 ","291","Regulär","CHF",50,"Platz frei"]
["100710",null,"xxxxxxxxxxxxxxxxxx","Musterplan","Ref. Kirche ABC",null,null,null,null,null,null,null,null,null,"1","Kirchenschiff Mitte li, Reihe  7 ","293","Regulär","CHF",50,"Platz frei"]
["100709",null,"xxxxxxxxxxxxxxxxxx","Musterplan","Ref. Kirche ABC",null,null,null,null,null,null,null,null,null,"1","Kirchenschiff Mitte li, Reihe  7 ","295","Regulär","CHF",50,"Platz frei"]
["100708",null,"xxxxxxxxxxxxxxxxxx","Musterplan","Ref. Kirche ABC",null,null,null,null,null,null,null,null,null,"1","Kirchenschiff Mitte li, Reihe  7 ","297","Regulär","CHF",50,"Platz frei"]
["100707",null,"xxxxxxxxxxxxxxxxxx","Musterplan","Ref. Kirche ABC",null,null,null,null,null,null,null,null,null,"1","Kirchenschiff Mitte li, Reihe  7 ","299","Regulär","CHF",50,"Platz frei"]
["100706",null,"xxxxxxxxxxxxxxxxxx","Musterplan","Ref. Kirche ABC",null,null,null,null,null,null,null,null,null,"1","Kirchenschiff Mitte li, Reihe  7 ","301","Regulär","CHF",50,"Platz frei"]
["100751",null,"xxxxxxxxxxxxxxxxxx","Musterplan","Ref. Kirche ABC",null,null,null,null,null,null,null,null,null,"2","Kirchenschiff Mitte li, Reihe  8 ","439","Regulär","CHF",40,"Platz frei"]
["100750",null,"xxxxxxxxxxxxxxxxxx","Musterplan","Ref. Kirche ABC",null,null,null,null,null,null,null,null,null,"2","Kirchenschiff Mitte li, Reihe  8 ","441","Regulär","CHF",40,"Platz frei"]
["100749",null,"xxxxxxxxxxxxxxxxxx","Musterplan","Ref. Kirche ABC",null,null,null,null,null,null,null,null,null,"2","Kirchenschiff Mitte li, Reihe  8 ","443","Regulär","CHF",40,"Platz frei"]
["100748",null,"xxxxxxxxxxxxxxxxxx","Musterplan","Ref. Kirche ABC",null,null,null,null,null,null,null,null,null,"2","Kirchenschiff Mitte li, Reihe  8 ","445","Regulär","CHF",40,"Platz frei"]
["100747",null,"xxxxxxxxxxxxxxxxxx","Musterplan","Ref. Kirche ABC",null,null,null,null,null,null,null,null,null,"2","Kirchenschiff Mitte li, Reihe  8 ","447","Regulär","CHF",40,"Platz frei"]
["100746",null,"xxxxxxxxxxxxxxxxxx","Musterplan","Ref. Kirche ABC",null,null,null,null,null,null,null,null,null,"2","Kirchenschiff Mitte li, Reihe  8 ","449","Regulär","CHF",40,"Platz frei"]
["100420",null,"xxxxxxxxxxxxxxxxxx","Musterplan","Ref. Kirche ABC",null,null,null,null,null,null,null,null,null,"1","Kirchenschiff Mitte re, Reihe 1 ","422","Regulär","CHF",50,"Platz frei"]
["100421",null,"xxxxxxxxxxxxxxxxxx","Musterplan","Ref. Kirche ABC",null,null,null,null,null,null,null,null,null,"1","Kirchenschiff Mitte re, Reihe 1 ","424","Regulär","CHF",50,"Platz frei"]
["100422",null,"xxxxxxxxxxxxxxxxxx","Musterplan","Ref. Kirche ABC",null,null,null,null,null,null,null,null,null,"1","Kirchenschiff Mitte re, Reihe 1 ","426","Regulär","CHF",50,"Platz frei"]
["100423",null,"xxxxxxxxxxxxxxxxxx","Musterplan","Ref. Kirche ABC",null,null,null,null,null,null,null,null,null,"1","Kirchenschiff Mitte re, Reihe 1 ","428","Regulär","CHF",50,"Platz frei"]
["100424",null,"xxxxxxxxxxxxxxxxxx","Musterplan","Ref. Kirche ABC",null,null,null,null,null,null,null,null,null,"1","Kirchenschiff Mitte re, Reihe 1 ","430","Regulär","CHF",50,"Platz frei"]
["100425",null,"xxxxxxxxxxxxxxxxxx","Musterplan","Ref. Kirche ABC",null,null,null,null,null,null,null,null,null,"1","Kirchenschiff Mitte re, Reihe 1 ","432","Regulär","CHF",50,"Platz frei"]
["100426",null,"xxxxxxxxxxxxxxxxxx","Musterplan","Ref. Kirche ABC",null,null,null,null,null,null,null,null,null,"1","Kirchenschiff Mitte re, Reihe 1 ","434","Regulär","CHF",50,"Platz frei"]
["100427",null,"xxxxxxxxxxxxxxxxxx","Musterplan","Ref. Kirche ABC",null,null,null,null,null,null,null,null,null,"1","Kirchenschiff Mitte re, Reihe 1 ","436","Regulär","CHF",50,"Platz frei"]
["100428",null,"xxxxxxxxxxxxxxxxxx","Musterplan","Ref. Kirche ABC",null,null,null,null,null,null,null,null,null,"1","Kirchenschiff Mitte re, Reihe 1 ","438","Regulär","CHF",50,"Platz frei"]
["100468",null,"xxxxxxxxxxxxxxxxxx","Musterplan","Ref. Kirche ABC",null,null,null,null,null,null,null,null,null,"1","Kirchenschiff Mitte re, Reihe 2 ","400","Regulär","CHF",50,"Platz frei"]
["100469",null,"xxxxxxxxxxxxxxxxxx","Musterplan","Ref. Kirche ABC",null,null,null,null,null,null,null,null,null,"1","Kirchenschiff Mitte re, Reihe 2 ","402","Regulär","CHF",50,"Platz frei"]
["100470",null,"xxxxxxxxxxxxxxxxxx","Musterplan","Ref. Kirche ABC",null,null,null,null,null,null,null,null,null,"1","Kirchenschiff Mitte re, Reihe 2 ","404","Regulär","CHF",50,"Platz frei"]
["100471",null,"xxxxxxxxxxxxxxxxxx","Musterplan","Ref. Kirche ABC",null,null,null,null,null,null,null,null,null,"1","Kirchenschiff Mitte re, Reihe 2 ","406","Regulär","CHF",50,"Platz frei"]
["100472",null,"xxxxxxxxxxxxxxxxxx","Musterplan","Ref. Kirche ABC",null,null,null,null,null,null,null,null,null,"1","Kirchenschiff Mitte re, Reihe 2 ","408","Regulär","CHF",50,"Platz frei"]
["100473",null,"xxxxxxxxxxxxxxxxxx","Musterplan","Ref. Kirche ABC",null,null,null,null,null,null,null,null,null,"1","Kirchenschiff Mitte re, Reihe 2 ","410","Regulär","CHF",50,"Platz frei"]
["100474",null,"xxxxxxxxxxxxxxxxxx","Musterplan","Ref. Kirche ABC",null,null,null,null,null,null,null,null,null,"1","Kirchenschiff Mitte re, Reihe 2 ","412","Regulär","CHF",50,"Platz frei"]
["100475",null,"xxxxxxxxxxxxxxxxxx","Musterplan","Ref. Kirche ABC",null,null,null,null,null,null,null,null,null,"1","Kirchenschiff Mitte re, Reihe 2 ","414","Regulär","CHF",50,"Platz frei"]
["100476",null,"xxxxxxxxxxxxxxxxxx","Musterplan","Ref. Kirche ABC",null,null,null,null,null,null,null,null,null,"1","Kirchenschiff Mitte re, Reihe 2 ","416","Regulär","CHF",50,"Platz frei"]
["100477",null,"xxxxxxxxxxxxxxxxxx","Musterplan","Ref. Kirche ABC",null,null,null,null,null,null,null,null,null,"1","Kirchenschiff Mitte re, Reihe 2 ","418","Regulär","CHF",50,"Platz frei"]
["100478",null,"xxxxxxxxxxxxxxxxxx","Musterplan","Ref. Kirche ABC",null,null,null,null,null,null,null,null,null,"1","Kirchenschiff Mitte re, Reihe 2 ","420","Regulär","CHF",50,"Platz frei"]
["100519",null,"xxxxxxxxxxxxxxxxxx","Musterplan","Ref. Kirche ABC",null,null,null,null,null,null,null,null,null,"1","Kirchenschiff Mitte re, Reihe 3 ","376","Regulär","CHF",50,"Platz frei"]
["100520",null,"xxxxxxxxxxxxxxxxxx","Musterplan","Ref. Kirche ABC",null,null,null,null,null,null,null,null,null,"1","Kirchenschiff Mitte re, Reihe 3 ","378","Regulär","CHF",50,"Platz frei"]
["100521",null,"xxxxxxxxxxxxxxxxxx","Musterplan","Ref. Kirche ABC",null,null,null,null,null,null,null,null,null,"1","Kirchenschiff Mitte re, Reihe 3 ","380","Regulär","CHF",50,"Platz frei"]
["100522",null,"xxxxxxxxxxxxxxxxxx","Musterplan","Ref. Kirche ABC",null,null,null,null,null,null,null,null,null,"1","Kirchenschiff Mitte re, Reihe 3 ","382","Regulär","CHF",50,"Platz frei"]
["100523",null,"xxxxxxxxxxxxxxxxxx","Musterplan","Ref. Kirche ABC",null,null,null,null,null,null,null,null,null,"1","Kirchenschiff Mitte re, Reihe 3 ","384","Regulär","CHF",50,"Platz frei"]
["100524",null,"xxxxxxxxxxxxxxxxxx","Musterplan","Ref. Kirche ABC",null,null,null,null,null,null,null,null,null,"1","Kirchenschiff Mitte re, Reihe 3 ","386","Regulär","CHF",50,"Platz frei"]
["100525",null,"xxxxxxxxxxxxxxxxxx","Musterplan","Ref. Kirche ABC",null,null,null,null,null,null,null,null,null,"1","Kirchenschiff Mitte re, Reihe 3 ","388","Regulär","CHF",50,"Platz frei"]
["100526",null,"xxxxxxxxxxxxxxxxxx","Musterplan","Ref. Kirche ABC",null,null,null,null,null,null,null,null,null,"1","Kirchenschiff Mitte re, Reihe 3 ","390","Regulär","CHF",50,"Platz frei"]
["100527",null,"xxxxxxxxxxxxxxxxxx","Musterplan","Ref. Kirche ABC",null,null,null,null,null,null,null,null,null,"1","Kirchenschiff Mitte re, Reihe 3 ","392","Regulär","CHF",50,"Platz frei"]
["100528",null,"xxxxxxxxxxxxxxxxxx","Musterplan","Ref. Kirche ABC",null,null,null,null,null,null,null,null,null,"1","Kirchenschiff Mitte re, Reihe 3 ","394","Regulär","CHF",50,"Platz frei"]
["100529",null,"xxxxxxxxxxxxxxxxxx","Musterplan","Ref. Kirche ABC",null,null,null,null,null,null,null,null,null,"1","Kirchenschiff Mitte re, Reihe 3 ","396","Regulär","CHF",50,"Platz frei"]
["100530",null,"xxxxxxxxxxxxxxxxxx","Musterplan","Ref. Kirche ABC",null,null,null,null,null,null,null,null,null,"1","Kirchenschiff Mitte re, Reihe 3 ","398","Regulär","CHF",50,"Platz frei"]
["100571",null,"xxxxxxxxxxxxxxxxxx","Musterplan","Ref. Kirche ABC",null,null,null,null,null,null,null,null,null,"1","Kirchenschiff Mitte re, Reihe 4 ","352","Regulär","CHF",50,"Platz frei"]
["100572",null,"xxxxxxxxxxxxxxxxxx","Musterplan","Ref. Kirche ABC",null,null,null,null,null,null,null,null,null,"1","Kirchenschiff Mitte re, Reihe 4 ","354","Regulär","CHF",50,"Platz frei"]
["100573",null,"xxxxxxxxxxxxxxxxxx","Musterplan","Ref. Kirche ABC",null,null,null,null,null,null,null,null,null,"1","Kirchenschiff Mitte re, Reihe 4 ","356","Regulär","CHF",50,"Platz frei"]
["100574",null,"xxxxxxxxxxxxxxxxxx","Musterplan","Ref. Kirche ABC",null,null,null,null,null,null,null,null,null,"1","Kirchenschiff Mitte re, Reihe 4 ","358","Regulär","CHF",50,"Platz frei"]
["100575",null,"xxxxxxxxxxxxxxxxxx","Musterplan","Ref. Kirche ABC",null,null,null,null,null,null,null,null,null,"1","Kirchenschiff Mitte re, Reihe 4 ","360","Regulär","CHF",50,"Platz frei"]
["100576",null,"xxxxxxxxxxxxxxxxxx","Musterplan","Ref. Kirche ABC",null,null,null,null,null,null,null,null,null,"1","Kirchenschiff Mitte re, Reihe 4 ","362","Regulär","CHF",50,"Platz frei"]
["100577",null,"xxxxxxxxxxxxxxxxxx","Musterplan","Ref. Kirche ABC",null,null,null,null,null,null,null,null,null,"1","Kirchenschiff Mitte re, Reihe 4 ","364","Regulär","CHF",50,"Platz frei"]
["100578",null,"xxxxxxxxxxxxxxxxxx","Musterplan","Ref. Kirche ABC",null,null,null,null,null,null,null,null,null,"1","Kirchenschiff Mitte re, Reihe 4 ","366","Regulär","CHF",50,"Platz frei"]
["100579",null,"xxxxxxxxxxxxxxxxxx","Musterplan","Ref. Kirche ABC",null,null,null,null,null,null,null,null,null,"1","Kirchenschiff Mitte re, Reihe 4 ","368","Regulär","CHF",50,"Platz frei"]
["100580",null,"xxxxxxxxxxxxxxxxxx","Musterplan","Ref. Kirche ABC",null,null,null,null,null,null,null,null,null,"1","Kirchenschiff Mitte re, Reihe 4 ","370","Regulär","CHF",50,"Platz frei"]
["100581",null,"xxxxxxxxxxxxxxxxxx","Musterplan","Ref. Kirche ABC",null,null,null,null,null,null,null,null,null,"1","Kirchenschiff Mitte re, Reihe 4 ","372","Regulär","CHF",50,"Platz frei"]
["100582",null,"xxxxxxxxxxxxxxxxxx","Musterplan","Ref. Kirche ABC",null,null,null,null,null,null,null,null,null,"1","Kirchenschiff Mitte re, Reihe 4 ","374","Regulär","CHF",50,"Platz frei"]
["100623",null,"xxxxxxxxxxxxxxxxxx","Musterplan","Ref. Kirche ABC",null,null,null,null,null,null,null,null,null,"1","Kirchenschiff Mitte re, Reihe 5 ","328","Regulär","CHF",50,"Platz frei"]
["100624",null,"xxxxxxxxxxxxxxxxxx","Musterplan","Ref. Kirche ABC",null,null,null,null,null,null,null,null,null,"1","Kirchenschiff Mitte re, Reihe 5 ","330","Regulär","CHF",50,"Platz frei"]
["100625",null,"xxxxxxxxxxxxxxxxxx","Musterplan","Ref. Kirche ABC",null,null,null,null,null,null,null,null,null,"1","Kirchenschiff Mitte re, Reihe 5 ","332","Regulär","CHF",50,"Platz frei"]
["100626",null,"xxxxxxxxxxxxxxxxxx","Musterplan","Ref. Kirche ABC",null,null,null,null,null,null,null,null,null,"1","Kirchenschiff Mitte re, Reihe 5 ","334","Regulär","CHF",50,"Platz frei"]
["100627",null,"xxxxxxxxxxxxxxxxxx","Musterplan","Ref. Kirche ABC",null,null,null,null,null,null,null,null,null,"1","Kirchenschiff Mitte re, Reihe 5 ","336","Regulär","CHF",50,"Platz frei"]
["100628",null,"xxxxxxxxxxxxxxxxxx","Musterplan","Ref. Kirche ABC",null,null,null,null,null,null,null,null,null,"1","Kirchenschiff Mitte re, Reihe 5 ","338","Regulär","CHF",50,"Platz frei"]
["100629",null,"xxxxxxxxxxxxxxxxxx","Musterplan","Ref. Kirche ABC",null,null,null,null,null,null,null,null,null,"1","Kirchenschiff Mitte re, Reihe 5 ","340","Regulär","CHF",50,"Platz frei"]
["100630",null,"xxxxxxxxxxxxxxxxxx","Musterplan","Ref. Kirche ABC",null,null,null,null,null,null,null,null,null,"1","Kirchenschiff Mitte re, Reihe 5 ","342","Regulär","CHF",50,"Platz frei"]
["100631",null,"xxxxxxxxxxxxxxxxxx","Musterplan","Ref. Kirche ABC",null,null,null,null,null,null,null,null,null,"1","Kirchenschiff Mitte re, Reihe 5 ","344","Regulär","CHF",50,"Platz frei"]
["100632",null,"xxxxxxxxxxxxxxxxxx","Musterplan","Ref. Kirche ABC",null,null,null,null,null,null,null,null,null,"1","Kirchenschiff Mitte re, Reihe 5 ","346","Regulär","CHF",50,"Platz frei"]
["100633",null,"xxxxxxxxxxxxxxxxxx","Musterplan","Ref. Kirche ABC",null,null,null,null,null,null,null,null,null,"1","Kirchenschiff Mitte re, Reihe 5 ","348","Regulär","CHF",50,"Platz frei"]
["100634",null,"xxxxxxxxxxxxxxxxxx","Musterplan","Ref. Kirche ABC",null,null,null,null,null,null,null,null,null,"1","Kirchenschiff Mitte re, Reihe 5 ","350","Regulär","CHF",50,"Platz frei"]
["100675",null,"xxxxxxxxxxxxxxxxxx","Musterplan","Ref. Kirche ABC",null,null,null,null,null,null,null,null,null,"1","Kirchenschiff Mitte re, Reihe 6 ","304","Regulär","CHF",50,"Platz frei"]
["100676",null,"xxxxxxxxxxxxxxxxxx","Musterplan","Ref. Kirche ABC",null,null,null,null,null,null,null,null,null,"1","Kirchenschiff Mitte re, Reihe 6 ","306","Regulär","CHF",50,"Platz frei"]
["100677",null,"xxxxxxxxxxxxxxxxxx","Musterplan","Ref. Kirche ABC",null,null,null,null,null,null,null,null,null,"1","Kirchenschiff Mitte re, Reihe 6 ","308","Regulär","CHF",50,"Platz frei"]
["100678",null,"xxxxxxxxxxxxxxxxxx","Musterplan","Ref. Kirche ABC",null,null,null,null,null,null,null,null,null,"1","Kirchenschiff Mitte re, Reihe 6 ","310","Regulär","CHF",50,"Platz frei"]
["100679",null,"xxxxxxxxxxxxxxxxxx","Musterplan","Ref. Kirche ABC",null,null,null,null,null,null,null,null,null,"1","Kirchenschiff Mitte re, Reihe 6 ","312","Regulär","CHF",50,"Platz frei"]
["100680",null,"xxxxxxxxxxxxxxxxxx","Musterplan","Ref. Kirche ABC",null,null,null,null,null,null,null,null,null,"1","Kirchenschiff Mitte re, Reihe 6 ","314","Regulär","CHF",50,"Platz frei"]
["100681",null,"xxxxxxxxxxxxxxxxxx","Musterplan","Ref. Kirche ABC",null,null,null,null,null,null,null,null,null,"1","Kirchenschiff Mitte re, Reihe 6 ","316","Regulär","CHF",50,"Platz frei"]
["100682",null,"xxxxxxxxxxxxxxxxxx","Musterplan","Ref. Kirche ABC",null,null,null,null,null,null,null,null,null,"1","Kirchenschiff Mitte re, Reihe 6 ","318","Regulär","CHF",50,"Platz frei"]
["100683",null,"xxxxxxxxxxxxxxxxxx","Musterplan","Ref. Kirche ABC",null,null,null,null,null,null,null,null,null,"1","Kirchenschiff Mitte re, Reihe 6 ","320","Regulär","CHF",50,"Platz frei"]
["100684",null,"xxxxxxxxxxxxxxxxxx","Musterplan","Ref. Kirche ABC",null,null,null,null,null,null,null,null,null,"1","Kirchenschiff Mitte re, Reihe 6 ","322","Regulär","CHF",50,"Platz frei"]
["100685",null,"xxxxxxxxxxxxxxxxxx","Musterplan","Ref. Kirche ABC",null,null,null,null,null,null,null,null,null,"1","Kirchenschiff Mitte re, Reihe 6 ","324","Regulär","CHF",50,"Platz frei"]
["100686",null,"xxxxxxxxxxxxxxxxxx","Musterplan","Ref. Kirche ABC",null,null,null,null,null,null,null,null,null,"1","Kirchenschiff Mitte re, Reihe 6 ","326","Regulär","CHF",50,"Platz frei"]
["100716",null,"xxxxxxxxxxxxxxxxxx","Musterplan","Ref. Kirche ABC",null,null,null,null,null,null,null,null,null,"1","Kirchenschiff Mitte re, Reihe 7 ","284","Regulär","CHF",50,"Platz frei"]
["100717",null,"xxxxxxxxxxxxxxxxxx","Musterplan","Ref. Kirche ABC",null,null,null,null,null,null,null,null,null,"1","Kirchenschiff Mitte re, Reihe 7 ","286","Regulär","CHF",50,"Platz frei"]
["100718",null,"xxxxxxxxxxxxxxxxxx","Musterplan","Ref. Kirche ABC",null,null,null,null,null,null,null,null,null,"1","Kirchenschiff Mitte re, Reihe 7 ","288","Regulär","CHF",50,"Platz frei"]
["100719",null,"xxxxxxxxxxxxxxxxxx","Musterplan","Ref. Kirche ABC",null,null,null,null,null,null,null,null,null,"1","Kirchenschiff Mitte re, Reihe 7 ","290","Regulär","CHF",50,"Platz frei"]
["100720",null,"xxxxxxxxxxxxxxxxxx","Musterplan","Ref. Kirche ABC",null,null,null,null,null,null,null,null,null,"1","Kirchenschiff Mitte re, Reihe 7 ","292","Regulär","CHF",50,"Platz frei"]
["100721",null,"xxxxxxxxxxxxxxxxxx","Musterplan","Ref. Kirche ABC",null,null,null,null,null,null,null,null,null,"1","Kirchenschiff Mitte re, Reihe 7 ","294","Regulär","CHF",50,"Platz frei"]
["100722",null,"xxxxxxxxxxxxxxxxxx","Musterplan","Ref. Kirche ABC",null,null,null,null,null,null,null,null,null,"1","Kirchenschiff Mitte re, Reihe 7 ","296","Regulär","CHF",50,"Platz frei"]
["100723",null,"xxxxxxxxxxxxxxxxxx","Musterplan","Ref. Kirche ABC",null,null,null,null,null,null,null,null,null,"1","Kirchenschiff Mitte re, Reihe 7 ","298","Regulär","CHF",50,"Platz frei"]
["100724",null,"xxxxxxxxxxxxxxxxxx","Musterplan","Ref. Kirche ABC",null,null,null,null,null,null,null,null,null,"1","Kirchenschiff Mitte re, Reihe 7 ","300","Regulär","CHF",50,"Platz frei"]
["100725",null,"xxxxxxxxxxxxxxxxxx","Musterplan","Ref. Kirche ABC",null,null,null,null,null,null,null,null,null,"1","Kirchenschiff Mitte re, Reihe 7 ","302","Regulär","CHF",50,"Platz frei"]
["100752",null,"xxxxxxxxxxxxxxxxxx","Musterplan","Ref. Kirche ABC",null,null,null,null,null,null,null,null,null,"2","Kirchenschiff Mitte re, Reihe 8 ","440","Regulär","CHF",40,"Platz frei"]
["100753",null,"xxxxxxxxxxxxxxxxxx","Musterplan","Ref. Kirche ABC",null,null,null,null,null,null,null,null,null,"2","Kirchenschiff Mitte re, Reihe 8 ","442","Regulär","CHF",40,"Platz frei"]
["100754",null,"xxxxxxxxxxxxxxxxxx","Musterplan","Ref. Kirche ABC",null,null,null,null,null,null,null,null,null,"2","Kirchenschiff Mitte re, Reihe 8 ","444","Regulär","CHF",40,"Platz frei"]
["100755",null,"xxxxxxxxxxxxxxxxxx","Musterplan","Ref. Kirche ABC",null,null,null,null,null,null,null,null,null,"2","Kirchenschiff Mitte re, Reihe 8 ","446","Regulär","CHF",40,"Platz frei"]
["100756",null,"xxxxxxxxxxxxxxxxxx","Musterplan","Ref. Kirche ABC",null,null,null,null,null,null,null,null,null,"2","Kirchenschiff Mitte re, Reihe 8 ","448","Regulär","CHF",40,"Platz frei"]
["100757",null,"xxxxxxxxxxxxxxxxxx","Musterplan","Ref. Kirche ABC",null,null,null,null,null,null,null,null,null,"2","Kirchenschiff Mitte re, Reihe 8 ","450","Regulär","CHF",40,"Platz frei"]
["100429",null,"xxxxxxxxxxxxxxxxxx","Musterplan","Ref. Kirche ABC",null,null,null,null,null,null,null,null,null,"2","Kirchenschiff rechts, Reihe 10 ","260","Regulär","CHF",40,"Platz frei"]
["100443",null,"xxxxxxxxxxxxxxxxxx","Musterplan","Ref. Kirche ABC",null,null,null,null,null,null,null,null,null,"2","Kirchenschiff rechts, Reihe 10 ","262","Regulär","CHF",40,"Platz frei"]
["100479",null,"xxxxxxxxxxxxxxxxxx","Musterplan","Ref. Kirche ABC",null,null,null,null,null,null,null,null,null,"2","Kirchenschiff rechts, Reihe 10 ","264","Regulär","CHF",40,"Platz frei"]
["100493",null,"xxxxxxxxxxxxxxxxxx","Musterplan","Ref. Kirche ABC",null,null,null,null,null,null,null,null,null,"2","Kirchenschiff rechts, Reihe 10 ","266","Regulär","CHF",40,"Platz frei"]
["100531",null,"xxxxxxxxxxxxxxxxxx","Musterplan","Ref. Kirche ABC",null,null,null,null,null,null,null,null,null,"2","Kirchenschiff rechts, Reihe 10 ","268","Regulär","CHF",40,"Platz frei"]
["100545",null,"xxxxxxxxxxxxxxxxxx","Musterplan","Ref. Kirche ABC",null,null,null,null,null,null,null,null,null,"2","Kirchenschiff rechts, Reihe 10 ","270","Regulär","CHF",40,"Platz frei"]
["100583",null,"xxxxxxxxxxxxxxxxxx","Musterplan","Ref. Kirche ABC",null,null,null,null,null,null,null,null,null,"2","Kirchenschiff rechts, Reihe 10 ","272","Regulär","CHF",40,"Platz frei"]
["100597",null,"xxxxxxxxxxxxxxxxxx","Musterplan","Ref. Kirche ABC",null,null,null,null,null,null,null,null,null,"2","Kirchenschiff rechts, Reihe 10 ","274","Regulär","CHF",40,"Platz frei"]
["100635",null,"xxxxxxxxxxxxxxxxxx","Musterplan","Ref. Kirche ABC",null,null,null,null,null,null,null,null,null,"2","Kirchenschiff rechts, Reihe 10 ","276","Regulär","CHF",40,"Platz frei"]
["100649",null,"xxxxxxxxxxxxxxxxxx","Musterplan","Ref. Kirche ABC",null,null,null,null,null,null,null,null,null,"2","Kirchenschiff rechts, Reihe 10 ","278","Regulär","CHF",40,"Platz frei"]
["100687",null,"xxxxxxxxxxxxxxxxxx","Musterplan","Ref. Kirche ABC",null,null,null,null,null,null,null,null,null,"2","Kirchenschiff rechts, Reihe 10 ","280","Regulär","CHF",40,"Platz frei"]
["100700",null,"xxxxxxxxxxxxxxxxxx","Musterplan","Ref. Kirche ABC",null,null,null,null,null,null,null,null,null,"2","Kirchenschiff rechts, Reihe 10 ","282","Regulär","CHF",40,"Platz frei"]
["100430",null,"xxxxxxxxxxxxxxxxxx","Musterplan","Ref. Kirche ABC",null,null,null,null,null,null,null,null,null,"2","Kirchenschiff rechts, Reihe 11 ","236","Regulär","CHF",40,"Platz frei"]
["100444",null,"xxxxxxxxxxxxxxxxxx","Musterplan","Ref. Kirche ABC",null,null,null,null,null,null,null,null,null,"2","Kirchenschiff rechts, Reihe 11 ","238","Regulär","CHF",40,"Platz frei"]
["100480",null,"xxxxxxxxxxxxxxxxxx","Musterplan","Ref. Kirche ABC",null,null,null,null,null,null,null,null,null,"2","Kirchenschiff rechts, Reihe 11 ","240","Regulär","CHF",40,"Platz frei"]
["100494",null,"xxxxxxxxxxxxxxxxxx","Musterplan","Ref. Kirche ABC",null,null,null,null,null,null,null,null,null,"2","Kirchenschiff rechts, Reihe 11 ","242","Regulär","CHF",40,"Platz frei"]
["100532",null,"xxxxxxxxxxxxxxxxxx","Musterplan","Ref. Kirche ABC",null,null,null,null,null,null,null,null,null,"2","Kirchenschiff rechts, Reihe 11 ","244","Regulär","CHF",40,"Platz frei"]
["100546",null,"xxxxxxxxxxxxxxxxxx","Musterplan","Ref. Kirche ABC",null,null,null,null,null,null,null,null,null,"2","Kirchenschiff rechts, Reihe 11 ","246","Regulär","CHF",40,"Platz frei"]
["100584",null,"xxxxxxxxxxxxxxxxxx","Musterplan","Ref. Kirche ABC",null,null,null,null,null,null,null,null,null,"2","Kirchenschiff rechts, Reihe 11 ","248","Regulär","CHF",40,"Platz frei"]
["100598",null,"xxxxxxxxxxxxxxxxxx","Musterplan","Ref. Kirche ABC",null,null,null,null,null,null,null,null,null,"2","Kirchenschiff rechts, Reihe 11 ","250","Regulär","CHF",40,"Platz frei"]
["100636",null,"xxxxxxxxxxxxxxxxxx","Musterplan","Ref. Kirche ABC",null,null,null,null,null,null,null,null,null,"2","Kirchenschiff rechts, Reihe 11 ","252","Regulär","CHF",40,"Platz frei"]
["100650",null,"xxxxxxxxxxxxxxxxxx","Musterplan","Ref. Kirche ABC",null,null,null,null,null,null,null,null,null,"2","Kirchenschiff rechts, Reihe 11 ","254","Regulär","CHF",40,"Platz frei"]
["100688",null,"xxxxxxxxxxxxxxxxxx","Musterplan","Ref. Kirche ABC",null,null,null,null,null,null,null,null,null,"2","Kirchenschiff rechts, Reihe 11 ","256","Regulär","CHF",40,"Platz frei"]
["100701",null,"xxxxxxxxxxxxxxxxxx","Musterplan","Ref. Kirche ABC",null,null,null,null,null,null,null,null,null,"2","Kirchenschiff rechts, Reihe 11 ","258","Regulär","CHF",40,"Platz frei"]
["100431",null,"xxxxxxxxxxxxxxxxxx","Musterplan","Ref. Kirche ABC",null,null,null,null,null,null,null,null,null,"2","Kirchenschiff rechts, Reihe 12 ","212","Regulär","CHF",40,"Platz frei"]
["100445",null,"xxxxxxxxxxxxxxxxxx","Musterplan","Ref. Kirche ABC",null,null,null,null,null,null,null,null,null,"2","Kirchenschiff rechts, Reihe 12 ","214","Regulär","CHF",40,"Platz frei"]
["100481",null,"xxxxxxxxxxxxxxxxxx","Musterplan","Ref. Kirche ABC",null,null,null,null,null,null,null,null,null,"2","Kirchenschiff rechts, Reihe 12 ","216","Regulär","CHF",40,"Platz frei"]
["100495",null,"xxxxxxxxxxxxxxxxxx","Musterplan","Ref. Kirche ABC",null,null,null,null,null,null,null,null,null,"2","Kirchenschiff rechts, Reihe 12 ","218","Regulär","CHF",40,"Platz frei"]
["100533",null,"xxxxxxxxxxxxxxxxxx","Musterplan","Ref. Kirche ABC",null,null,null,null,null,null,null,null,null,"2","Kirchenschiff rechts, Reihe 12 ","220","Regulär","CHF",40,"Platz frei"]
["100547",null,"xxxxxxxxxxxxxxxxxx","Musterplan","Ref. Kirche ABC",null,null,null,null,null,null,null,null,null,"2","Kirchenschiff rechts, Reihe 12 ","222","Regulär","CHF",40,"Platz frei"]
["100585",null,"xxxxxxxxxxxxxxxxxx","Musterplan","Ref. Kirche ABC",null,null,null,null,null,null,null,null,null,"2","Kirchenschiff rechts, Reihe 12 ","224","Regulär","CHF",40,"Platz frei"]
["100599",null,"xxxxxxxxxxxxxxxxxx","Musterplan","Ref. Kirche ABC",null,null,null,null,null,null,null,null,null,"2","Kirchenschiff rechts, Reihe 12 ","226","Regulär","CHF",40,"Platz frei"]
["100637",null,"xxxxxxxxxxxxxxxxxx","Musterplan","Ref. Kirche ABC",null,null,null,null,null,null,null,null,null,"2","Kirchenschiff rechts, Reihe 12 ","228","Regulär","CHF",40,"Platz frei"]
["100651",null,"xxxxxxxxxxxxxxxxxx","Musterplan","Ref. Kirche ABC",null,null,null,null,null,null,null,null,null,"2","Kirchenschiff rechts, Reihe 12 ","230","Regulär","CHF",40,"Platz frei"]
["100689",null,"xxxxxxxxxxxxxxxxxx","Musterplan","Ref. Kirche ABC",null,null,null,null,null,null,null,null,null,"2","Kirchenschiff rechts, Reihe 12 ","232","Regulär","CHF",40,"Platz frei"]
["100702",null,"xxxxxxxxxxxxxxxxxx","Musterplan","Ref. Kirche ABC",null,null,null,null,null,null,null,null,null,"2","Kirchenschiff rechts, Reihe 12 ","234","Regulär","CHF",40,"Platz frei"]
["100432",null,"xxxxxxxxxxxxxxxxxx","Musterplan","Ref. Kirche ABC",null,null,null,null,null,null,null,null,null,"2","Kirchenschiff rechts, Reihe 13 ","188","Regulär","CHF",40,"Platz frei"]
["100446",null,"xxxxxxxxxxxxxxxxxx","Musterplan","Ref. Kirche ABC",null,null,null,null,null,null,null,null,null,"2","Kirchenschiff rechts, Reihe 13 ","190","Regulär","CHF",40,"Platz frei"]
["100482",null,"xxxxxxxxxxxxxxxxxx","Musterplan","Ref. Kirche ABC",null,null,null,null,null,null,null,null,null,"2","Kirchenschiff rechts, Reihe 13 ","192","Regulär","CHF",40,"Platz frei"]
["100496",null,"xxxxxxxxxxxxxxxxxx","Musterplan","Ref. Kirche ABC",null,null,null,null,null,null,null,null,null,"2","Kirchenschiff rechts, Reihe 13 ","194","Regulär","CHF",40,"Platz frei"]
["100534",null,"xxxxxxxxxxxxxxxxxx","Musterplan","Ref. Kirche ABC",null,null,null,null,null,null,null,null,null,"2","Kirchenschiff rechts, Reihe 13 ","196","Regulär","CHF",40,"Platz frei"]
["100548",null,"xxxxxxxxxxxxxxxxxx","Musterplan","Ref. Kirche ABC",null,null,null,null,null,null,null,null,null,"2","Kirchenschiff rechts, Reihe 13 ","198","Regulär","CHF",40,"Platz frei"]
["100586",null,"xxxxxxxxxxxxxxxxxx","Musterplan","Ref. Kirche ABC",null,null,null,null,null,null,null,null,null,"2","Kirchenschiff rechts, Reihe 13 ","200","Regulär","CHF",40,"Platz frei"]
["100600",null,"xxxxxxxxxxxxxxxxxx","Musterplan","Ref. Kirche ABC",null,null,null,null,null,null,null,null,null,"2","Kirchenschiff rechts, Reihe 13 ","202","Regulär","CHF",40,"Platz frei"]
["100638",null,"xxxxxxxxxxxxxxxxxx","Musterplan","Ref. Kirche ABC",null,null,null,null,null,null,null,null,null,"2","Kirchenschiff rechts, Reihe 13 ","204","Regulär","CHF",40,"Platz frei"]
["100652",null,"xxxxxxxxxxxxxxxxxx","Musterplan","Ref. Kirche ABC",null,null,null,null,null,null,null,null,null,"2","Kirchenschiff rechts, Reihe 13 ","206","Regulär","CHF",40,"Platz frei"]
["100690",null,"xxxxxxxxxxxxxxxxxx","Musterplan","Ref. Kirche ABC",null,null,null,null,null,null,null,null,null,"2","Kirchenschiff rechts, Reihe 13 ","208","Regulär","CHF",40,"Platz frei"]
["100703",null,"xxxxxxxxxxxxxxxxxx","Musterplan","Ref. Kirche ABC",null,null,null,null,null,null,null,null,null,"2","Kirchenschiff rechts, Reihe 13 ","210","Regulär","CHF",40,"Platz frei"]
["100433",null,"xxxxxxxxxxxxxxxxxx","Musterplan","Ref. Kirche ABC",null,null,null,null,null,null,null,null,null,"3","Kirchenschiff rechts, Reihe 14 ","164","Regulär","CHF",30,"Platz frei"]
["100447",null,"xxxxxxxxxxxxxxxxxx","Musterplan","Ref. Kirche ABC",null,null,null,null,null,null,null,null,null,"3","Kirchenschiff rechts, Reihe 14 ","166","Regulär","CHF",30,"Platz frei"]
["100483",null,"xxxxxxxxxxxxxxxxxx","Musterplan","Ref. Kirche ABC",null,null,null,null,null,null,null,null,null,"3","Kirchenschiff rechts, Reihe 14 ","168","Regulär","CHF",30,"Platz frei"]
["100497",null,"xxxxxxxxxxxxxxxxxx","Musterplan","Ref. Kirche ABC",null,null,null,null,null,null,null,null,null,"3","Kirchenschiff rechts, Reihe 14 ","170","Regulär","CHF",30,"Platz frei"]
["100535",null,"xxxxxxxxxxxxxxxxxx","Musterplan","Ref. Kirche ABC",null,null,null,null,null,null,null,null,null,"3","Kirchenschiff rechts, Reihe 14 ","172","Regulär","CHF",30,"Platz frei"]
["100549",null,"xxxxxxxxxxxxxxxxxx","Musterplan","Ref. Kirche ABC",null,null,null,null,null,null,null,null,null,"3","Kirchenschiff rechts, Reihe 14 ","174","Regulär","CHF",30,"Platz frei"]
["100587",null,"xxxxxxxxxxxxxxxxxx","Musterplan","Ref. Kirche ABC",null,null,null,null,null,null,null,null,null,"3","Kirchenschiff rechts, Reihe 14 ","176","Regulär","CHF",30,"Platz frei"]
["100601",null,"xxxxxxxxxxxxxxxxxx","Musterplan","Ref. Kirche ABC",null,null,null,null,null,null,null,null,null,"3","Kirchenschiff rechts, Reihe 14 ","178","Regulär","CHF",30,"Platz frei"]
["100639",null,"xxxxxxxxxxxxxxxxxx","Musterplan","Ref. Kirche ABC",null,null,null,null,null,null,null,null,null,"3","Kirchenschiff rechts, Reihe 14 ","180","Regulär","CHF",30,"Platz frei"]
["100653",null,"xxxxxxxxxxxxxxxxxx","Musterplan","Ref. Kirche ABC",null,null,null,null,null,null,null,null,null,"3","Kirchenschiff rechts, Reihe 14 ","182","Regulär","CHF",30,"Platz frei"]
["100691",null,"xxxxxxxxxxxxxxxxxx","Musterplan","Ref. Kirche ABC",null,null,null,null,null,null,null,null,null,"3","Kirchenschiff rechts, Reihe 14 ","184","Regulär","CHF",30,"Platz frei"]
["100704",null,"xxxxxxxxxxxxxxxxxx","Musterplan","Ref. Kirche ABC",null,null,null,null,null,null,null,null,null,"3","Kirchenschiff rechts, Reihe 14 ","186","Regulär","CHF",30,"Platz frei"]
["100434",null,"xxxxxxxxxxxxxxxxxx","Musterplan","Ref. Kirche ABC",null,null,null,null,null,null,null,null,null,"3","Kirchenschiff rechts, Reihe 15 ","140","Regulär","CHF",30,"Platz frei"]
["100448",null,"xxxxxxxxxxxxxxxxxx","Musterplan","Ref. Kirche ABC",null,null,null,null,null,null,null,null,null,"3","Kirchenschiff rechts, Reihe 15 ","142","Regulär","CHF",30,"Platz frei"]
["100484",null,"xxxxxxxxxxxxxxxxxx","Musterplan","Ref. Kirche ABC",null,null,null,null,null,null,null,null,null,"3","Kirchenschiff rechts, Reihe 15 ","144","Regulär","CHF",30,"Platz frei"]
["100498",null,"xxxxxxxxxxxxxxxxxx","Musterplan","Ref. Kirche ABC",null,null,null,null,null,null,null,null,null,"3","Kirchenschiff rechts, Reihe 15 ","146","Regulär","CHF",30,"Platz frei"]
["100536",null,"xxxxxxxxxxxxxxxxxx","Musterplan","Ref. Kirche ABC",null,null,null,null,null,null,null,null,null,"3","Kirchenschiff rechts, Reihe 15 ","148","Regulär","CHF",30,"Platz frei"]
["100550",null,"xxxxxxxxxxxxxxxxxx","Musterplan","Ref. Kirche ABC",null,null,null,null,null,null,null,null,null,"3","Kirchenschiff rechts, Reihe 15 ","150","Regulär","CHF",30,"Platz frei"]
["100588",null,"xxxxxxxxxxxxxxxxxx","Musterplan","Ref. Kirche ABC",null,null,null,null,null,null,null,null,null,"3","Kirchenschiff rechts, Reihe 15 ","152","Regulär","CHF",30,"Platz frei"]
["100602",null,"xxxxxxxxxxxxxxxxxx","Musterplan","Ref. Kirche ABC",null,null,null,null,null,null,null,null,null,"3","Kirchenschiff rechts, Reihe 15 ","154","Regulär","CHF",30,"Platz frei"]
["100640",null,"xxxxxxxxxxxxxxxxxx","Musterplan","Ref. Kirche ABC",null,null,null,null,null,null,null,null,null,"3","Kirchenschiff rechts, Reihe 15 ","156","Regulär","CHF",30,"Platz frei"]
["100654",null,"xxxxxxxxxxxxxxxxxx","Musterplan","Ref. Kirche ABC",null,null,null,null,null,null,null,null,null,"3","Kirchenschiff rechts, Reihe 15 ","158","Regulär","CHF",30,"Platz frei"]
["100692",null,"xxxxxxxxxxxxxxxxxx","Musterplan","Ref. Kirche ABC",null,null,null,null,null,null,null,null,null,"3","Kirchenschiff rechts, Reihe 15 ","160","Regulär","CHF",30,"Platz frei"]
["100705",null,"xxxxxxxxxxxxxxxxxx","Musterplan","Ref. Kirche ABC",null,null,null,null,null,null,null,null,null,"3","Kirchenschiff rechts, Reihe 15 ","162","Regulär","CHF",30,"Platz frei"]
["100693",null,"xxxxxxxxxxxxxxxxxx","Musterplan","Ref. Kirche ABC",null,null,null,null,null,null,null,null,null,"3","Kirchenschiff rechts, Reihe 16 ","472","Regulär","CHF",30,"Platz frei"]
["100655",null,"xxxxxxxxxxxxxxxxxx","Musterplan","Ref. Kirche ABC",null,null,null,null,null,null,null,null,null,"3","Kirchenschiff rechts, Reihe 16 ","474","Regulär","CHF",30,"Platz frei"]
["100641",null,"xxxxxxxxxxxxxxxxxx","Musterplan","Ref. Kirche ABC",null,null,null,null,null,null,null,null,null,"3","Kirchenschiff rechts, Reihe 16 ","476","Regulär","CHF",30,"Platz frei"]
["100603",null,"xxxxxxxxxxxxxxxxxx","Musterplan","Ref. Kirche ABC",null,null,null,null,null,null,null,null,null,"3","Kirchenschiff rechts, Reihe 16 ","478","Regulär","CHF",30,"Platz frei"]
["100589",null,"xxxxxxxxxxxxxxxxxx","Musterplan","Ref. Kirche ABC",null,null,null,null,null,null,null,null,null,"3","Kirchenschiff rechts, Reihe 16 ","480","Regulär","CHF",30,"Platz frei"]
["100551",null,"xxxxxxxxxxxxxxxxxx","Musterplan","Ref. Kirche ABC",null,null,null,null,null,null,null,null,null,"3","Kirchenschiff rechts, Reihe 16 ","482","Regulär","CHF",30,"Platz frei"]
["100537",null,"xxxxxxxxxxxxxxxxxx","Musterplan","Ref. Kirche ABC",null,null,null,null,null,null,null,null,null,"3","Kirchenschiff rechts, Reihe 16 ","484","Regulär","CHF",30,"Platz frei"]
["100499",null,"xxxxxxxxxxxxxxxxxx","Musterplan","Ref. Kirche ABC",null,null,null,null,null,null,null,null,null,"3","Kirchenschiff rechts, Reihe 16 ","486","Regulär","CHF",30,"Platz frei"]
["100485",null,"xxxxxxxxxxxxxxxxxx","Musterplan","Ref. Kirche ABC",null,null,null,null,null,null,null,null,null,"3","Kirchenschiff rechts, Reihe 16 ","488","Regulär","CHF",30,"Platz frei"]
["100449",null,"xxxxxxxxxxxxxxxxxx","Musterplan","Ref. Kirche ABC",null,null,null,null,null,null,null,null,null,"3","Kirchenschiff rechts, Reihe 16 ","490","Regulär","CHF",30,"Platz frei"]
["100435",null,"xxxxxxxxxxxxxxxxxx","Musterplan","Ref. Kirche ABC",null,null,null,null,null,null,null,null,null,"3","Kirchenschiff rechts, Reihe 16 ","492","Regulär","CHF",30,"Platz frei"]
["100736",null,"xxxxxxxxxxxxxxxxxx","Musterplan","Ref. Kirche ABC",null,null,null,null,null,null,null,null,null,"2","Kirchenschiff rechts, Reihe 9 ","452","Regulär","CHF",40,"Platz frei"]
["100737",null,"xxxxxxxxxxxxxxxxxx","Musterplan","Ref. Kirche ABC",null,null,null,null,null,null,null,null,null,"2","Kirchenschiff rechts, Reihe 9 ","454","Regulär","CHF",40,"Platz frei"]
["100738",null,"xxxxxxxxxxxxxxxxxx","Musterplan","Ref. Kirche ABC",null,null,null,null,null,null,null,null,null,"2","Kirchenschiff rechts, Reihe 9 ","456","Regulär","CHF",40,"Platz frei"]
["100739",null,"xxxxxxxxxxxxxxxxxx","Musterplan","Ref. Kirche ABC",null,null,null,null,null,null,null,null,null,"2","Kirchenschiff rechts, Reihe 9 ","458","Regulär","CHF",40,"Platz frei"]
["100740",null,"xxxxxxxxxxxxxxxxxx","Musterplan","Ref. Kirche ABC",null,null,null,null,null,null,null,null,null,"2","Kirchenschiff rechts, Reihe 9 ","460","Regulär","CHF",40,"Platz frei"]
["100741",null,"xxxxxxxxxxxxxxxxxx","Musterplan","Ref. Kirche ABC",null,null,null,null,null,null,null,null,null,"2","Kirchenschiff rechts, Reihe 9 ","462","Regulär","CHF",40,"Platz frei"]
["100742",null,"xxxxxxxxxxxxxxxxxx","Musterplan","Ref. Kirche ABC",null,null,null,null,null,null,null,null,null,"2","Kirchenschiff rechts, Reihe 9 ","464","Regulär","CHF",40,"Platz frei"]
["100743",null,"xxxxxxxxxxxxxxxxxx","Musterplan","Ref. Kirche ABC",null,null,null,null,null,null,null,null,null,"3","Kirchenschiff rechts, Reihe 9 ","466","Regulär","CHF",30,"Platz frei"]
["100744",null,"xxxxxxxxxxxxxxxxxx","Musterplan","Ref. Kirche ABC",null,null,null,null,null,null,null,null,null,"3","Kirchenschiff rechts, Reihe 9 ","468","Regulär","CHF",30,"Platz frei"]
["100745",null,"xxxxxxxxxxxxxxxxxx","Musterplan","Ref. Kirche ABC",null,null,null,null,null,null,null,null,null,"3","Kirchenschiff rechts, Reihe 9 ","470","Regulär","CHF",30,"Platz frei"]